{"text_format":"1","workbook":"xlsx","n_sheets":14,"sheets":["手順書_はじめに","自動生成_地図データ","CHANGELOG","地図テンプレート_1","地図テンプレート_2","市町村データ","手順書_市町村なまえ","自動生成_市町村なまえ","手順書_交通","自動生成_交通","手順書_人口密度","自動生成_人口密度","手順書_人口","自動生成_人口"],"not_rendered":{"charts":0,"images":10,"macros":1,"external_links":0,"defined_names":1,"comments":0,"pivot_tables":0},"unopened":[],"bounds":{"document_bytes":16777216,"sheet_cells":100000,"rows_first":2000,"rows_last":500,"rows_between":2000,"halvings":0,"cell_chars":16384,"cell_head_chars":4096},"cells_cut":0,"cells_raw":0,"read":"whole","date_system":"1900"}

{"sheet":"手順書_はじめに","index":0,"n_rows":144,"n_cols":32,"rows_kept":144,"cut":false,"hidden":false,"merged":[[77,6,77,15],[77,17,77,20],[71,6,71,15],[71,17,71,20],[73,6,73,15],[73,17,73,20],[75,6,75,15],[75,17,75,20],[65,6,65,15],[65,17,65,20],[67,6,67,15],[67,17,67,20],[69,6,69,15],[69,17,69,20],[61,6,61,15],[61,17,61,20],[59,6,59,15],[59,17,59,20],[63,6,63,15],[63,17,63,20]]}
[null,null,null,null,null,null,"C1.0",null,null,null,null,null,null,null,null,null,null,"C2.0",null,null,null,null,null,null,null,null,null,null,null,null,null,"EOL"]
[null,"ヒートマップ 4.1.1　＞　手順書　＞　はじめに"]
[]
[null,null,null,"このワークブックは？"]
[]
[]
[]
[]
[]
[]
[]
[]
[]
[]
[]
[]
[]
[]
[]
[]
[]
[null,null,null,null,null,"👆","いわゆるヒートマップですが、その地図の部分を編集できるようにしたツールです。"]
[null,null,null,null,null,null,"強くデフォルメした地図を用意できることで、現場での暗記力、判断速度を補うことを狙うものです。"]
[]
[]
[null,null,null,"手順１"]
[]
[]
[]
[]
[]
[]
[]
[]
[]
[]
[]
[]
[]
[]
[]
[]
[]
[]
[null,null,null,null,null,null,null,"［地図テンプレート_1］",null,null,null,null,null,"ワークシートを編集して地図をお絵描きしてください。"]
[]
[null,null,null,null,null,null,null,"このとき、"]
[null,null,null,null,null,null,null,null,null,null,1]
[null,null,null,null,null,null,null,"をコピー貼り付けして、非公式市区町村番号（InformalCityId）を任意に付けて置いていってください。背景色、文字色で認識します。"]
[]
[null,null,null,null,null,"内容は、既存のワークシートを参考にしてください。"]
[null,null,null,null,null,"ワークシートの _1 の部分を変えて最大１０シートまで対応することができます。"]
[]
[]
[null,null,null,"手順２"]
[]
[null,null,null,null,null,"👇","作った",null,"［地図テンプレート_n］",null,null,null,null,null,"ワークシートのシート名を入力してください。"]
[null,null,null,null,null,null,"１０件まで対応します。"]
[null,null,null,null,null,null,"ワークシート名",null,null,null,null,null,null,null,null,null,null,"範囲"]
["R1.1.0",null,null,null,null,1,"地図テンプレート_1",null,null,null,null,null,null,null,null,null,null,"A1:BT53"]
[null,null,null,null,null,null,"ワークシート名",null,null,null,null,null,null,null,null,null,null,"範囲"]
["R1.2.0",null,null,null,null,2,"地図テンプレート_2",null,null,null,null,null,null,null,null,null,null,"A1:BT53"]
[null,null,null,null,null,null,"ワークシート名",null,null,null,null,null,null,null,null,null,null,"範囲"]
["R1.3.0",null,null,null,null,3]
[null,null,null,null,null,null,"ワークシート名",null,null,null,null,null,null,null,null,null,null,"範囲"]
["R1.4.0",null,null,null,null,4]
[null,null,null,null,null,null,"ワークシート名",null,null,null,null,null,null,null,null,null,null,"範囲"]
["R1.5.0",null,null,null,null,5]
[null,null,null,null,null,null,"ワークシート名",null,null,null,null,null,null,null,null,null,null,"範囲"]
["R1.6.0",null,null,null,null,6]
[null,null,null,null,null,null,"ワークシート名",null,null,null,null,null,null,null,null,null,null,"範囲"]
["R1.7.0",null,null,null,null,7]
[null,null,null,null,null,null,"ワークシート名",null,null,null,null,null,null,null,null,null,null,"範囲"]
["R1.8.0",null,null,null,null,8]
[null,null,null,null,null,null,"ワークシート名",null,null,null,null,null,null,null,null,null,null,"範囲"]
["R1.9.0",null,null,null,null,9]
[null,null,null,null,null,null,"ワークシート名",null,null,null,null,null,null,null,null,null,null,"範囲"]
["R1.10.0",null,null,null,null,10]
[]
[]
[null,null,null,"手順２"]
[]
[]
[]
[]
[]
[]
[]
[]
[]
[]
[]
[]
[]
[]
[null,null,null,null,null,null,null,"［市町村データ］",null,null,null,"ワークシートを頑張って入力してください。コピー貼り付けと手調整の能力が試されます。"]
[]
[null,null,null,null,null,"既存のワークシートを参考にしてください。"]
[]
[null,null,null,null,null,"TIPS",null,"この表は［なまえ］列で昇順ソートすると、［InformalCityId］を逆引きするのに便利です。"]
[]
[]
[null,null,null,"手順３"]
[]
[null,null,null,null,null,"👇","以下のボタンを押してください。"]
[]
[]
[]
[]
[]
[]
[]
[]
[]
[]
[]
[]
[]
[]
[]
[]
[]
[]
[]
[]
[null,null,null,null,null,null,null,"［自動生成_地図データ］",null,null,null,null,null,"ワークシートが自動生成されます。これは後でヒートマップを自動生成するときに使われます。"]
[]
[]
[null,null,null,"手順４"]
[]
[]
[]
[]
[]
[]
[]
[null,null,null,null,null,"引き続き、"]
[null,null,null,null,null,null,"■","［手順書_市町村なまえ］",null,null,null,null,null,"ワークシート"]
[null,null,null,null,null,null,"■","［手順書_人口密度］",null,null,null,null,"ワークシート"]
[null,null,null,null,null,null,"■","［手順書_人口］",null,null,null,"ワークシート"]
[null,null,null,null,null,"を読んでください。"]
[]
[null,"以上"]
["EOF"]

{"sheet":"自動生成_地図データ","index":1,"n_rows":106,"n_cols":2,"rows_kept":106,"cut":false,"hidden":false,"merged":[]}
["InformalCityId","セル"]
[1,"K7"]
[2,"O7"]
[3,"S7"]
[4,"W7"]
[5,"AA7"]
[6,"AE7"]
[7,"G11"]
[8,"K11"]
[9,"S11"]
[10,"W11"]
[11,"AA11"]
[12,"AE11"]
[13,"AI11"]
[14,"AM11"]
[15,"G15"]
[16,"K15"]
[17,"O15"]
[18,"S15"]
[19,"W15"]
[20,"AA15"]
[21,"AE15"]
[22,"AI15"]
[23,"AM15"]
[24,"O19"]
[25,"S19"]
[26,"W19"]
[27,"AA19"]
[28,"AE19"]
[29,"AI19"]
[30,"AM19"]
[31,"AQ19"]
[32,"O23"]
[33,"S23"]
[34,"W23"]
[35,"AA23"]
[36,"AE23"]
[37,"AI23"]
[38,"AM23"]
[39,"AQ23"]
[40,"AU23"]
[41,"AY23"]
[42,"S27"]
[43,"W27"]
[44,"AA27"]
[45,"AE27"]
[46,"AI27"]
[47,"AM27"]
[48,"AQ27"]
[49,"AU27"]
[50,"AY27"]
[51,"BC27"]
[52,"BG27"]
[53,"BK27"]
[54,"G31"]
[55,"K31"]
[56,"O31"]
[57,"S31"]
[58,"AA31"]
[59,"AE31"]
[60,"AI31"]
[61,"AM31"]
[62,"AU31"]
[63,"AY31"]
[64,"BC31"]
[65,"BG31"]
[66,"BK31"]
[67,"AA35"]
[68,"AE35"]
[69,"BC35"]
[70,"BG35"]
[71,"BK35"]
[72,"AY39"]
[73,"BC39"]
[74,"BG39"]
[75,"BK39"]
[76,"BO39"]
[77,"AY43"]
[78,"BC43"]
[79,"BG43"]
[80,"AY47"]
[81,"BC47"]
[82,"BG47"]
["A","K7"]
["B","W7"]
["C","AA7"]
["D","G11"]
["E","K11"]
["F","AE11"]
["G","W15"]
["H","AM15"]
["I","O19"]
["J","O23"]
["K","AA23"]
["L","AI23"]
["M","AM23"]
["N","AU23"]
["O","S27"]
["P","AA27"]
["Q","AU27"]
["R","G31"]
["S","AI31"]
["T","AU31"]
["U","BC35"]
["V","AY39"]
["W","AY43"]

{"sheet":"CHANGELOG","index":2,"n_rows":6,"n_cols":4,"rows_kept":6,"cut":false,"hidden":false,"merged":[]}
["日付","バージョン","操作","概要"]
[]
["2025-06-11T09:56:00","4.1.1","Changed","交通アクセスのデータとマップを追加。"]
["2025-06-11T07:54:00","4.1.0","Changed","ヒートマップの着色で、文字色が反映されていなかったのを修正。"]
["2025-06-11T05:02:00","4.0.0","Changed","手順書には画像を挿入するなど、テキストボックス等コントロールの番地がよく変わることから、これによりコントロールが使えなくなることがないよう、\n固定セル番地にするのではなく、１行目とA列目にラベルを置くようにし、コントロールの位置にタグ付けする運用に変更するよう作り直した。\nまた、黄色い枠にはサブ番地を置き、サブ番地による範囲指定を行うように仕様変更した。"]
["2025-06-10T06:52:00","3.0.1","Changed","3.0.0 から［市町村データ］ワークシートの最終行を読み込まなくなっていた不具合を修正。\n［地図テンプレート］には市町村名も振るように運用を変更。"]

{"sheet":"地図テンプレート_1","index":3,"n_rows":54,"n_cols":68,"rows_kept":54,"cut":false,"hidden":false,"merged":[[31,54,31,57],[32,54,32,57],[33,54,33,57],[33,50,33,53],[30,51,30,53],[30,55,30,57],[31,50,31,53],[32,50,32,53],[31,46,31,49],[32,46,32,49],[33,46,33,49],[27,42,27,45],[30,35,30,37],[30,39,30,41],[31,34,31,37],[32,34,32,37],[33,34,33,37],[31,38,31,41],[32,38,32,41],[33,38,33,41],[25,42,25,45],[31,18,31,21],[32,18,32,21],[33,18,33,21],[29,54,29,57],[27,38,27,41],[28,38,28,41],[29,38,29,41],[26,51,26,53],[26,55,26,57],[27,54,27,57],[28,54,28,57],[27,50,27,53],[28,50,28,53],[29,50,29,53],[27,30,27,33],[28,30,28,33],[29,30,29,33],[27,34,27,37],[28,34,28,37],[29,34,29,37],[26,31,26,33],[26,35,26,37],[26,39,26,41],[30,47,30,49],[27,46,27,49],[28,46,28,49],[29,46,29,49],[26,43,26,45],[28,42,28,45],[29,42,29,45],[22,23,22,25],[22,27,22,29],[22,31,22,33],[22,35,22,37],[22,43,22,45],[22,47,22,49],[23,30,23,33],[24,30,24,33],[25,22,25,25],[23,26,23,29],[24,26,24,29],[25,26,25,29],[23,34,23,37],[24,34,24,37],[25,34,25,37],[25,30,25,33],[23,46,23,49],[23,22,23,25],[24,22,24,25],[22,15,22,17],[23,14,23,17],[24,14,24,17],[25,14,25,17],[21,18,21,21],[22,19,22,21],[23,18,23,21],[24,18,24,21],[25,18,25,21],[15,38,15,41],[16,38,16,41],[18,35,18,37],[15,30,15,33],[16,30,16,33],[17,30,17,33],[15,34,15,37],[16,34,16,37],[17,34,17,37],[18,39,18,41],[18,31,18,33],[10,39,10,41],[14,11,14,13],[14,15,14,17],[14,19,14,21],[14,23,14,25],[14,27,14,29],[14,31,14,33],[14,35,14,37],[14,39,14,41],[10,23,10,25],[11,22,11,25],[12,22,12,25],[13,22,13,25],[10,27,10,29],[11,26,11,29],[12,26,12,29],[13,26,13,29],[10,31,10,33],[11,30,11,33],[12,30,12,33],[13,30,13,33],[10,35,10,37],[11,34,11,37],[12,34,12,37],[15,6,15,9],[16,6,16,9],[17,6,17,9],[11,6,11,9],[12,6,12,9],[13,6,13,9],[11,38,11,41],[12,38,12,41],[13,38,13,41],[15,10,15,13],[16,10,16,13],[17,10,17,13],[15,14,15,17],[16,14,16,17],[17,14,17,17],[15,18,15,21],[16,18,16,21],[17,18,17,21],[15,22,15,25],[16,22,16,25],[17,22,17,25],[15,26,15,29],[16,26,16,29],[17,26,17,29],[14,7,14,9],[10,7,10,9],[6,11,6,13],[6,19,6,21],[7,10,7,13],[8,10,8,13],[9,10,9,13],[7,18,7,21],[8,18,8,21],[9,18,9,21],[10,11,10,13],[6,15,6,17],[7,14,7,17],[8,14,8,17],[9,14,9,17],[11,10,11,13],[12,10,12,13],[13,10,13,13],[10,19,10,21],[11,18,11,21],[12,18,12,21],[13,18,13,21],[6,23,6,25],[7,22,7,25],[8,22,8,25],[9,22,9,25],[6,27,6,29],[7,26,7,29],[8,26,8,29],[9,26,9,29],[6,31,6,33],[7,30,7,33],[8,30,8,33],[9,30,9,33],[13,34,13,37],[18,27,18,29],[26,23,26,25],[27,22,27,25],[28,22,28,25],[29,22,29,25],[26,19,26,21],[27,18,27,21],[28,18,28,21],[29,18,29,21],[19,30,19,33],[20,30,20,33],[21,30,21,33],[19,34,19,37],[20,34,20,37],[21,34,21,37],[21,22,21,25],[18,19,18,21],[19,18,19,21],[20,18,20,21],[18,23,18,25],[19,22,19,25],[20,22,20,25],[19,26,19,29],[30,7,30,9],[31,6,31,9],[32,6,32,9],[33,6,33,9],[17,38,17,41],[22,39,22,41],[23,38,23,41],[24,38,24,41],[25,38,25,41],[30,15,30,17],[30,19,30,21],[31,14,31,17],[32,14,32,17],[33,14,33,17],[30,11,30,13],[31,10,31,13],[32,10,32,13],[33,10,33,13],[18,15,18,17],[19,14,19,17],[20,14,20,17],[21,14,21,17],[20,26,20,29],[21,26,21,29],[26,63,26,65],[27,62,27,65],[28,62,28,65],[29,62,29,65],[19,38,19,41],[20,38,20,41],[21,38,21,41],[18,43,18,45],[19,42,19,45],[20,42,20,45],[21,42,21,45],[24,50,24,53],[26,59,26,61],[27,58,27,61],[28,58,28,61],[29,58,29,61],[22,51,22,53],[23,50,23,53],[26,47,26,49],[25,50,25,53],[24,46,24,49],[25,46,25,49],[23,42,23,45],[24,42,24,45],[30,63,30,65],[31,58,31,61],[31,62,31,65],[32,58,32,61],[32,62,32,65],[33,58,33,61],[33,62,33,65],[38,51,38,53],[38,55,38,57],[38,59,38,61],[38,63,38,65],[30,59,30,61],[34,63,34,65],[34,55,34,57],[34,59,34,61],[35,62,35,65],[36,62,36,65],[37,62,37,65],[35,54,35,57],[36,54,36,57],[37,54,37,57],[35,58,35,61],[36,58,36,61],[37,58,37,61],[44,54,44,57],[44,58,44,61],[45,50,45,53],[45,54,45,57],[45,58,45,61],[38,67,38,69],[39,62,39,65],[39,66,39,69],[40,62,40,65],[40,66,40,69],[41,62,41,65],[41,66,41,69],[42,51,42,53],[42,55,42,57],[42,59,42,61],[39,50,39,53],[39,54,39,57],[39,58,39,61],[40,50,40,53],[40,54,40,57],[40,58,40,61],[41,50,41,53],[41,54,41,57],[41,58,41,61],[49,50,49,53],[49,54,49,57],[49,58,49,61],[30,31,30,33],[31,30,31,33],[32,30,32,33],[33,30,33,33],[34,31,34,33],[35,30,35,33],[36,30,36,33],[37,30,37,33],[46,51,46,53],[46,55,46,57],[46,59,46,61],[47,50,47,53],[47,54,47,57],[47,58,47,61],[48,50,48,53],[48,54,48,57],[48,58,48,61],[43,50,43,53],[43,54,43,57],[43,58,43,61],[44,50,44,53],[34,27,34,29],[35,26,35,29],[36,26,36,29],[37,26,37,29],[30,27,30,29],[31,26,31,29],[32,26,32,29],[33,26,33,29],[26,27,26,29],[27,26,27,29],[28,26,28,29],[29,26,29,29]]}
[]
[]
[null,null,null,null,null,null,"あ",null,null,null,"い",null,null,null,"う",null,null,null,"え",null,null,null,"お",null,null,null,"か",null,null,null,"き",null,null,null,"く",null,null,null,"け",null,null,null,"こ",null,null,null,"さ",null,null,null,"し",null,null,null,"す",null,null,null,"せ",null,null,null,"そ",null,null,null,"た"]
[]
[]
[]
[null,null,"A",null,null,null,null,null,null,null,1,"新座3",null,null,2,"新座2",null,null,3,"新座1",null,null,4,"北野3",null,null,5,"東北1",null,null,6,"東北2"]
[]
[]
[]
[null,null,"B",null,null,null,7,"中野2",null,null,8,"大和田4",null,null,null,null,null,null,9,"大和田5",null,null,10,"北野2",null,null,11,"北野1",null,null,12,"東3",null,null,13,"東2",null,null,14,"東1"]
[]
[]
[]
[null,null,"C",null,null,null,15,"中野1",null,null,16,"大和田3",null,null,17,"大和田2",null,null,18,"大和田1",null,null,19,"野火止5",null,null,20,"野火止6",null,null,21,"野火止7",null,null,22,"野火止8",null,null,23,"畑中3"]
[]
[]
[]
[null,null,"D",null,null,null,null,null,null,null,null,null,null,null,24,"菅沢2",null,null,25,"菅沢1",null,null,26,"野火止4",null,null,27,"野火止3",null,null,28,"野火止2",null,null,29,"野火止1",null,null,30,"畑中1",null,null,31,"畑中2"]
[]
[]
[]
[null,null,"E",null,null,null,null,null,null,null,null,null,null,null,32,"あたご3",null,null,33,"あたご2",null,null,34,"あたご1",null,null,35,"本多2",null,null,36,"本多1",null,null,37,"堀ノ内1",null,null,38,"馬場1",null,null,39,"馬場2",null,null,40,"新塚1",null,null,41,"新塚その他"]
[]
[]
[]
[null,null,"F",null,null,null,null,null,null,null,null,null,null,null,null,null,null,null,42,"西堀3",null,null,43,"西堀1",null,null,44,"石神5",null,null,45,"堀ノ内3",null,null,46,"堀ノ内2",null,null,47,"馬場4",null,null,48,"馬場3",null,null,49,"栄1",null,null,50,"栄2",null,null,51,"栄3",null,null,52,"栄4",null,null,53,"栄5"]
[]
[]
[]
[null,null,"G",null,null,null,54,"新堀3",null,null,55,"新堀2",null,null,56,"新堀1",null,null,57,"西堀2",null,null,null,null,null,null,58,"石神4",null,null,59,"石神1",null,null,60,"道場2",null,null,61,"道場1",null,null,null,null,null,null,62,"池田1",null,null,63,"池田2",null,null,64,"池田3",null,null,65,"池田4",null,null,66,"池田5"]
[]
[]
[]
[null,null,"H",null,null,null,null,null,null,null,null,null,null,null,null,null,null,null,null,null,null,null,null,null,null,null,67,"石神3",null,null,68,"石神2",null,null,null,null,null,null,null,null,null,null,null,null,null,null,null,null,null,null,null,null,null,null,69,"片山1",null,null,70,"片山2",null,null,71,"片山3"]
[]
[]
[]
[null,null,"I",null,null,null,null,null,null,null,null,null,null,null,null,null,null,null,null,null,null,null,null,null,null,null,null,null,null,null,null,null,null,null,null,null,null,null,null,null,null,null,null,null,null,null,null,null,null,null,72,"野寺1",null,null,73,"野寺2",null,null,74,"野寺3",null,null,75,"野寺4",null,null,76,"野寺5"]
[]
[]
[]
[null,null,"J",null,null,null,null,null,null,null,null,null,null,null,null,null,null,null,null,null,null,null,null,null,null,null,null,null,null,null,null,null,null,null,null,null,null,null,null,null,null,null,null,null,null,null,null,null,null,null,77,"栗原1",null,null,78,"栗原2",null,null,79,"栗原3"]
[]
[]
[]
[null,null,"K",null,null,null,null,null,null,null,null,null,null,null,null,null,null,null,null,null,null,null,null,null,null,null,null,null,null,null,null,null,null,null,null,null,null,null,null,null,null,null,null,null,null,null,null,null,null,null,80,"栗原6",null,null,81,"栗原5",null,null,82,"栗原4"]
[]
[]
[]
[null,"［国勢調査］＞［令和２年国勢調査（総務省統計局）　都道府県・市区町村別の主な結果］"]
[null,"https://www.e-stat.go.jp/stat-search/files?page=1&layout=datalist&toukei=00200521&tstat=000001049104&cycle=0&tclass1=000001049105&tclass2val=0"]
[]
["黄色いラインは転写範囲の外側です。"]

{"sheet":"地図テンプレート_2","index":4,"n_rows":54,"n_cols":67,"rows_kept":54,"cut":false,"hidden":false,"merged":[[7,10,7,13],[7,22,7,25],[7,26,7,29],[6,11,6,13],[6,23,6,25],[6,27,6,29],[9,10,9,13],[9,22,9,25],[9,26,9,29],[8,10,8,13],[8,22,8,25],[8,26,8,29],[11,6,11,9],[11,10,11,13],[11,30,11,33],[10,7,10,9],[10,11,10,13],[10,31,10,33],[13,6,13,9],[13,10,13,13],[13,30,13,33],[12,6,12,9],[12,10,12,13],[12,30,12,33],[15,38,15,41],[16,22,16,25],[14,39,14,41],[15,22,15,25],[14,23,14,25],[21,14,21,17],[20,14,20,17],[19,14,19,17],[18,15,18,17],[16,38,16,41],[17,22,17,25],[17,38,17,41],[22,39,22,41],[22,47,22,49],[23,14,23,17],[23,26,23,29],[23,34,23,37],[22,15,22,17],[22,27,22,29],[22,35,22,37],[23,38,23,41],[23,46,23,49],[24,14,24,17],[24,26,24,29],[24,34,24,37],[24,38,24,41],[24,46,24,49],[25,14,25,17],[25,26,25,29],[25,34,25,37],[26,47,26,49],[25,38,25,41],[25,46,25,49],[26,19,26,21],[26,27,26,29],[28,46,28,49],[28,18,28,21],[28,26,28,29],[27,46,27,49],[27,18,27,21],[27,26,27,29],[31,6,31,9],[31,34,31,37],[30,35,30,37],[30,7,30,9],[29,46,29,49],[29,18,29,21],[29,26,29,29],[34,55,34,57],[33,6,33,9],[33,34,33,37],[32,34,32,37],[32,6,32,9],[39,50,39,53],[37,54,37,57],[38,51,38,53],[35,54,35,57],[36,54,36,57],[44,50,44,53],[45,50,45,53],[42,51,42,53],[43,50,43,53],[40,50,40,53],[41,50,41,53]]}
[]
[]
[null,null,null,null,null,null,"あ",null,null,null,"い",null,null,null,"う",null,null,null,"え",null,null,null,"お",null,null,null,"か",null,null,null,"き",null,null,null,"く",null,null,null,"け",null,null,null,"こ",null,null,null,"さ",null,null,null,"し",null,null,null,"す",null,null,null,"せ",null,null,null,"そ",null,null,null,"た"]
[]
[]
[]
[null,null,"A",null,null,null,null,null,null,null,"A","新座",null,null,null,null,null,null,null,null,null,null,"B","北野",null,null,"C","東北"]
[]
[]
[]
[null,null,"B",null,null,null,"D","中野",null,null,"E","大和田",null,null,null,null,null,null,null,null,null,null,null,null,null,null,null,null,null,null,"F","東"]
[]
[]
[]
[null,null,"C",null,null,null,null,null,null,null,null,null,null,null,null,null,null,null,null,null,null,null,"G","野火止",null,null,null,null,null,null,null,null,null,null,null,null,null,null,"H","畑中"]
[]
[]
[]
[null,null,"D",null,null,null,null,null,null,null,null,null,null,null,"I","菅沢"]
[]
[]
[]
[null,null,"E",null,null,null,null,null,null,null,null,null,null,null,"J","あたご",null,null,null,null,null,null,null,null,null,null,"K","本多",null,null,null,null,null,null,"L","堀ノ内",null,null,"M","馬場",null,null,null,null,null,null,"N","新塚"]
[]
[]
[]
[null,null,"F",null,null,null,null,null,null,null,null,null,null,null,null,null,null,null,"O","西堀3",null,null,null,null,null,null,"P","石神5",null,null,null,null,null,null,null,null,null,null,null,null,null,null,null,null,null,null,"Q","栄1"]
[]
[]
[]
[null,null,"G",null,null,null,"R","新堀3",null,null,null,null,null,null,null,null,null,null,null,null,null,null,null,null,null,null,null,null,null,null,null,null,null,null,"S","道場2",null,null,null,null,null,null,null,null,null,null,"T","池田1"]
[]
[]
[]
[null,null,"H",null,null,null,null,null,null,null,null,null,null,null,null,null,null,null,null,null,null,null,null,null,null,null,null,null,null,null,null,null,null,null,null,null,null,null,null,null,null,null,null,null,null,null,null,null,null,null,null,null,null,null,"U","片山1"]
[]
[]
[]
[null,null,"I",null,null,null,null,null,null,null,null,null,null,null,null,null,null,null,null,null,null,null,null,null,null,null,null,null,null,null,null,null,null,null,null,null,null,null,null,null,null,null,null,null,null,null,null,null,null,null,"V","野寺1"]
[]
[]
[]
[null,null,"J",null,null,null,null,null,null,null,null,null,null,null,null,null,null,null,null,null,null,null,null,null,null,null,null,null,null,null,null,null,null,null,null,null,null,null,null,null,null,null,null,null,null,null,null,null,null,null,"W","栗原1"]
[]
[]
[]
[null,null,"K"]
[]
[]
[]
[null,"［国勢調査］＞［令和２年国勢調査（総務省統計局）　都道府県・市区町村別の主な結果］"]
[null,"https://www.e-stat.go.jp/stat-search/files?page=1&layout=datalist&toukei=00200521&tstat=000001049104&cycle=0&tclass1=000001049105&tclass2val=0"]
[]
["黄色いラインは転写範囲の外側です。"]

{"sheet":"市町村データ","index":5,"n_rows":106,"n_cols":15,"rows_kept":106,"cut":false,"hidden":false,"merged":[]}
["InformalCityId","元データSort","名前","なまえ","人口（人）","世帯数","郵便番号","面積（ha）","人口密度（人/ha）","交通1","交通2","交通3","交通4","交通5","交通6"]
["J",4,"あたご","あたご",1476,730,"352-0021",55.6,{"$f":"ROUND(E2/H2,1)","v":26.5},"","","","","",""]
[34,1,"あたご1","あたご1",125,67,null,15.9,{"$f":"ROUND(E3/H3,1)","v":7.9},"","","","","",""]
[33,2,"あたご2","あたご2",137,52,null,15.9,8.6,"○菅沢","","","","",""]
[32,3,"あたご3","あたご3",1214,611,null,23.8,51,"○あたご第二児童遊園","","","","",""]
["T",10,"池田","いけだ",3138,1448,"352-0015",55.3,56.7,"","","","","",""]
[62,5,"池田1","いけだ1",12,11,null,9.9,1.2,"","","","","",""]
[63,6,"池田2","いけだ2",226,114,null,11.9,19,"○池田二丁目","","","","",""]
[64,7,"池田3","いけだ3",599,278,null,12,49.9,"","","","","",""]
[65,8,"池田4","いけだ4",1123,506,null,13.5,83.2,"○池田小学校入口","","","","",""]
[66,9,"池田5","いけだ5",1178,539,null,8,147.30000000000001,"","","","","",""]
["P",16,"石神","いしがみ",9311,4250,"352-0033",77.900000000000006,119.5,"","","","","",""]
[59,11,"石神1","いしがみ1",1529,742,null,18.7,81.8,"○新座病院前","","","","",""]
[68,12,"石神2","いしがみ2",1894,796,null,15.5,122.2,"○堀ノ内病院","","","","",""]
[67,13,"石神3","いしがみ3",2169,1049,null,13.7,158.30000000000001,"","","","","",""]
[58,14,"石神4","いしがみ4",1686,745,null,18,93.7,"","","","","",""]
[44,15,"石神5","いしがみ5",2033,918,null,12,169.4,"","","","","",""]
["E",22,"大和田","おおわだ",9278,4328,"352-0004",178.2,52.1,"","","","","",""]
[18,17,"大和田1","おおわだ1",3836,1824,null,54,71,"○新座駅北入口","","","","",""]
[17,18,"大和田2","おおわだ2",156,89,null,29.7,5.3,"","","","","",""]
[16,19,"大和田3","おおわだ3",26,13,null,30.7,0.8,"○第二老人福祉センター","","","","",""]
[8,20,"大和田4","おおわだ4",1352,654,null,36.799999999999997,36.700000000000003,"○新座柳瀬高校入口","○英橋","○大和田","○新座団地郵便局","",""]
[9,21,"大和田5","おおわだ5",3908,1748,null,27,144.69999999999999,"○新座車庫","","","","",""]
["U",26,"片山","かたやま",7510,3257,"352-0025",73,102.9,"","","","","",""]
[69,23,"片山1","かたやま1",2365,1069,null,23,102.8,"○あけぼの住宅前","","","","",""]
[70,24,"片山2","かたやま2",1327,601,null,18,73.7,"○片山二丁目","","","","",""]
[71,25,"片山3","かたやま3",3818,1587,null,32,119.3,"○庚申塚前","","","","",""]
["B",30,"北野","きたの",7064,3601,"352-0003",64,110.4,"","","","","",""]
[11,27,"北野1","きたの1",816,444,null,24,34,"○北野入口","○立教前","","","",""]
[10,28,"北野2","きたの2",2791,1280,null,21,132.9,"","","","","",""]
[4,29,"北野3","きたの3",3457,1877,null,19,181.9,"○東寮前","","","","",""]
["W",37,"栗原","くりはら",13621,7355,"352-0035",88.4,154.1,"","","","","",""]
[77,31,"栗原1","くりはら1",3350,1548,null,21.9,153,"○火の見下","○栗原","","","",""]
[78,32,"栗原2","くりはら2",920,440,null,10,92,"","","","","",""]
[79,33,"栗原3","くりはら3",2061,1036,null,15,137.4,"○別れ道","○栗原公民館前","○栗原公民館前","","",""]
[82,34,"栗原4","くりはら4",2036,1083,null,13,156.6,"","","","","",""]
[81,35,"栗原5","くりはら5",2661,1613,null,14.5,183.5,"◆ひばりヶ丘駅","○栗原五丁目","","","",""]
[80,36,"栗原6","くりはら6",2593,1635,null,14,185.2,"○新座栗原郵便局","","","","",""]
["Q",43,"栄","さかえ",9403,4762,"352-0014",68,138.30000000000001,"","","","","",""]
[49,38,"栄1","さかえ1",849,467,null,10,84.9,"","","","","",""]
[50,39,"栄2","さかえ2",2229,992,null,15,148.6,"○新座栄","○妙音沢入口","","","",""]
[51,40,"栄3","さかえ3",1839,953,null,13,141.5,"○栄公民館前(福祉の里)","","","","",""]
[52,41,"栄4","さかえ4",1835,1027,null,13.5,135.9,"○都民農園セコニック","","","","",""]
[53,42,"栄5","さかえ5",2651,1323,null,16.5,160.69999999999999,"","","","","",""]
["R",47,"新堀","しんぼり",10458,5364,"352-0032",78,134.1,"","","","","",""]
[56,44,"新堀1","しんぼり1",3429,1585,null,29,118.2,"","","","","",""]
[55,45,"新堀2","しんぼり2",3856,1981,null,29,133,"","","","","",""]
[54,46,"新堀3","しんぼり3",3173,1798,null,20,158.69999999999999,"","","","","",""]
["I",50,"菅沢","すがさわ",1453,692,"352-0017",82.1,17.7,"","","","","",""]
[25,48,"菅沢1","すがさわ1",460,202,null,39.6,11.6,"○オリエンタル酵母工業前","○野火止三丁目","○あたご橋","","",""]
[24,49,"菅沢2","すがさわ2",993,490,null,42.5,23.4,"○十文字女子大前","○中郷","○菅沢子供広場","","",""]
["S",56,"道場","どうじょう",1615,772,"352-0024",42.6,37.9,"","","","","",""]
[61,54,"道場1","どうじょう1",1024,496,null,16.8,61,"","","","","",""]
[60,55,"道場2","どうじょう2",591,276,null,25.8,22.9,"○堀の内橋","○片山小学校","○道場","","",""]
["C",53,"東北","とおほく",8135,4493,"352-0001",51,159.5,"","","","","",""]
[5,51,"東北1","とおほく1",1952,1026,null,11,177.5,"○新座志木中央総合病院","○すきっぷたうん","","","",""]
[6,52,"東北2","とおほく2",6183,3467,null,40,154.6,"○東北通り","○東北二丁目","○志木駅南","○志木駅南口","",""]
["D",59,"中野","なかの",583,285,"352-0005",73.7,7.9,"","","","","",""]
[15,57,"中野1","なかの1",388,213,null,33.700000000000003,11.5,"○中野","○跡見女子大","","","",""]
[7,58,"中野2","なかの2",195,72,null,40,4.9000000000000004,"","","","","",""]
["A",63,"新座","にいざ",7791,4202,"352-0006",47,165.8,"","","","","",""]
[3,60,"新座1","にいざ1",1350,684,null,8,168.8,"○富士見ヶ丘","○富士見ヶ丘団地","","","",""]
[2,61,"新座2","にいざ2",2439,1132,null,14,174.2,"","","","","",""]
[1,62,"新座3","にいざ3",4002,2386,null,25,160.1,"○団地南","○新座団地東","○新座団地","","",""]
["N",105,"新塚","にいづか",1451,568,"352-0013",62.9,23.1,"","","","","",""]
[40,103,"新塚1","にいづか1",1451,568,null,21.1,68.8,"○新座市営墓園","","","","",""]
[41,104,"新塚他の地域","にいづかほかのちいき",0,0,null,41.8,{"$f":"ROUND(E67/H67,1)","v":0},"","","","","",""]
["O",67,"西堀","にしぼり",6376,2730,"352-0031",104.6,61,"","","","","",""]
[43,64,"西堀1","にしぼり1",1864,826,null,21,88.8,"○西堀","○小山入口","","","",""]
[42,65,"西堀2","にしぼり2",4393,1841,null,40,109.8,"○西堀小学校","○西堀南","","","",""]
[57,66,"西堀3","にしぼり3",119,63,null,43.6,2.7,"","","","","",""]
["V",73,"野寺","のでら",9852,4690,"352-0034",89.2,110.4,"","","","","",""]
[72,68,"野寺1","のでら1",1322,691,null,11,120.2,"","","","","",""]
[73,69,"野寺2","のでら2",2411,1185,null,26.5,91,"○貝沼","","","","",""]
[74,70,"野寺3","のでら3",2246,933,null,21.2,105.9,"","","","","",""]
[75,71,"野寺4","のでら4",2570,1199,null,20,128.5,"○第五中学前","○上後","","","",""]
[76,72,"野寺5","のでら5",1303,682,null,10.5,124.1,"○野寺小学校東","","","","",""]
["G",82,"野火止","のびとめ",32499,15021,"352-0011",487.2,66.7,"","","","","",""]
[29,74,"野火止1","のびとめ1",3149,1466,null,52.8,59.6,"○野火止ふれあい公園前","","","","",""]
[28,75,"野火止2","のびとめ2",450,224,null,45.6,9.9,"○新座中学校","○新座中学校","○台","","",""]
[27,76,"野火止3","のびとめ3",2316,1085,null,101.1,22.9,"○新座市役所","○陣屋","○平林寺","○山下橋","○菅沢中央",""]
[26,77,"野火止4","のびとめ4",5240,2515,null,65.7,79.8,"○望芙台住宅","○野火止小学校","","","",""]
[19,78,"野火止5","のびとめ5",8004,3732,null,60,133.4,"◆新座駅","○ふるさと小道","○野火止角","○新座駅南口","○野火止中央","○山川工業前"]
[20,79,"野火止6","のびとめ6",4944,2270,null,47,105.2,"○中堀","","","","",""]
[21,80,"野火止7","のびとめ7",3539,1609,null,55,64.3,"○野火止中","○野火止七丁目","○凸版印刷","○第二中学校","",""]
[22,81,"野火止8","のびとめ8",4857,2120,null,60,81,"○新座警察署前","○野火止大門","○野火止坂上","","",""]
["H",86,"畑中","はたなか",9767,4562,"352-0012",115.8,84.3,"","","","","",""]
[30,83,"畑中1","はたなか1",5131,2453,null,58.8,87.3,"○エクレール前","○榎木ガード","○畑中ふれあい遊園","○下片山","○畑中二丁目",""]
[31,84,"畑中2","はたなか2",3037,1310,null,42,72.3,"○東福寺前","","","","",""]
[23,85,"畑中3","はたなか3",1599,799,null,15,106.6,"○榎木","","","","",""]
["M",91,"馬場","ばば",5781,2637,"352-0016",125.9,45.9,"","","","","",""]
[38,87,"馬場1","ばば1",1342,625,null,39.700000000000003,33.799999999999997,"○原ヶ谷戸","○蓮光寺前","","","",""]
[39,88,"馬場2","ばば2",1603,731,null,19,84.4,"","","","","",""]
[48,89,"馬場3","ばば3",1390,577,null,26.1,53.3,"","","","","",""]
[47,90,"馬場4","ばば4",1446,704,null,41.1,35.200000000000003,"○新座高校","","","","",""]
["F",95,"東","ひがし",7078,3330,"352-0002",47,150.6,"","","","","",""]
[14,92,"東1","ひがし1",3213,1404,null,19,169.1,"○東一丁目","","","","",""]
[13,93,"東2","ひがし2",1405,595,null,13,108.1,"","","","","",""]
[12,94,"東3","ひがし3",2460,1331,null,15,164,"○東三丁目","","","","",""]
["L",99,"堀ノ内","ほりのうち",1539,778,"352-0023",78.2,19.7,"","","","","",""]
[37,96,"堀ノ内1","ほりのうち1",480,236,null,27.7,17.3,"","","","","",""]
[46,97,"堀ノ内2","ほりのうち2",768,358,null,18.8,40.9,"","","","","",""]
[45,98,"堀ノ内3","ほりのうち3",291,184,null,31.7,9.1999999999999993,"○新座市児童センター前","○福祉センター入口","○老人福祉センター",null,"",""]
["K",102,"本多","ほんだ",1233,622,"352-0022",93.1,13.2,"","","","","",""]
[36,100,"本多1","ほんだ1",1175,598,null,51.5,22.8,"○新座総合体育館入口","○本多一丁目","○新座営業所","○西屋敷","",""]
[35,101,"本多2","ほんだ2",58,24,null,41.6,1.4,"○史跡公園","","","","",""]

{"sheet":"手順書_市町村なまえ","index":6,"n_rows":114,"n_cols":32,"rows_kept":114,"cut":false,"hidden":false,"merged":[[74,11,74,12],[78,16,78,19],[50,16,50,17],[59,16,59,19],[56,5,56,8],[15,16,15,19],[81,5,81,8],[70,16,70,17],[15,5,15,14],[30,5,30,14],[53,6,53,8],[54,5,54,8],[55,5,55,8],[73,6,73,8],[73,9,73,10],[73,11,73,12],[30,16,30,17],[74,6,74,8],[74,9,74,10]]}
[null,null,null,null,null,"C1.0",null,null,null,null,null,null,null,null,null,null,"C2.0",null,null,null,null,null,null,null,null,null,null,null,null,null,null,"EOL"]
[null,"手順書　＞　人口"]
[]
[null,null,null,"手順１"]
[]
[]
[]
[]
[]
[]
[]
[null,null,null,null,null,null,"転写元になる［地図テンプレート］のワークシート名等を、"]
[null,null,null,null,null,"👇","以下に入力してください。"]
[]
[null,null,null,null,null,"ワークシート名",null,null,null,null,null,null,null,null,null,null,"範囲"]
["R1.1.0",null,null,null,null,"地図テンプレート_2",null,null,null,null,null,null,null,null,null,null,"A1:BT53"]
[]
[]
[null,null,null,"手順２"]
[]
[]
[]
[]
[]
[]
[null,null,null,null,null,null,null,"地図の転写先を、"]
[null,null,null,null,null,null,"👇","入力してください。"]
[]
[null,null,null,null,null,null,"ワークシート名を間違えて上書きすると、このワークブックの機能を破損させてしまいかねますので慎重に確認してください。"]
[null,null,null,null,null,"ワークシート名",null,null,null,null,null,null,null,null,null,null,"左上隅セル"]
["R2.1.0",null,null,null,null,"自動生成_市町村なまえ",null,null,null,null,null,null,null,null,null,null,"A1"]
[]
[]
[null,null,null,"手順３"]
[]
[]
[]
[]
[]
[]
[]
[]
[]
[]
[]
[null,null,null,null,null,"👇","以下は市町村１つ分の凡例です。"]
[null,null,null,null,null,null,null,null,null,null,null,null,null,null,null,"［市町村データ］",null,null,null,"ワークシートの列名を、"]
[null,null,null,null,null,null,null,null,null,null,null,null,null,null,null,"👇","以下の凡例に入れてください。"]
[]
[null,null,null,null,null,null,null,null,null,null,null,null,null,null,null,null,"転写先セル"]
["R3.0.5.0",null,null,null,null,null,null,null,null,null,null,null,null,null,null,null,"C3"]
[null,null,null,null,"ここに入力できます。"]
[null,null,null,null,null,"A","B","C","D"]
["R3.1.0",null,null,null,1,null,"名前"]
[null,null,null,null,2,"なまえ"]
[null,null,null,null,3,"郵便番号"]
[null,null,null,null,4]
[]
[null,null,null,null,null,null,null,null,null,null,null,null,null,null,null,null,"凡例の元データのテーブルの右下隅のセル"]
["R3.3.0",null,null,null,null,null,null,null,null,null,null,null,null,null,null,null,"D4"]
[null,null,null,null,null,null,null,null,null,null,null,null,null,null,null,null,"上の黄色い枠に書かれている番地を使ってください。"]
[]
[null,null,null,null,null,null,"よくわからないときは、このままにしてください。"]
[]
[]
[null,null,null,"手順４"]
[]
[null,null,null,null,null,"👇","以下はヒートマップの色の凡例です。"]
[null,null,null,null,null,null,"今回は使っていないので、このままにして、次の手順へ進んでください。"]
[null,null,null,null,null,null,null,null,null,null,null,null,null,null,null,null,"転写先セル"]
["R4.0.9.0",null,null,null,null,null,null,null,null,null,null,null,null,null,null,null,"BK7"]
[null,null,null,null,null,null,null,null,null,null,null,null,null,null,null,null,"使っていないのでこのまま。"]
[null,null,null,null,null,"A","B","C","D","E","F","G","H"]
["R4.1.0",null,null,null,1,"No","以上",null,null,"背景色",null,"前景色"]
[null,null,null,null,2,1]
[]
[]
[null,null,null,null,null,null,null,null,null,null,null,null,null,null,null,null,"凡例の元データのテーブルの右下隅のセル"]
["R4.3.5.0",null,null,null,null,null,null,null,null,null,null,null,null,null,null,null,"H2"]
[null,null,null,null,null,null,null,null,null,null,null,null,null,null,null,null,"上の黄色い枠に書かれている番地を使ってください。"]
[null,null,null,null,null,"転写元の範囲"]
["R4.4.0",null,null,null,null,"B1:F1"]
[null,null,null,null,null,"上の黄色い枠に書かれている番地を使ってください。"]
[]
[]
[null,null,null,"手順４"]
[]
[null,null,null,null,null,"👇","以下のボタンを押してください。"]
[]
[]
[]
[]
[]
[]
[]
[]
[]
[]
[]
[]
[]
[]
[]
[]
[]
[]
[]
[]
[]
[]
[null,null,null,null,null,null,null,"ワークシートが生成できたら完了です。"]
[]
[null,"以上"]
["EOF"]

{"sheet":"自動生成_市町村なまえ","index":7,"n_rows":52,"n_cols":67,"rows_kept":52,"cut":false,"hidden":false,"merged":[[6,11,6,13],[6,23,6,25],[6,27,6,29],[7,10,7,13],[7,22,7,25],[7,26,7,29],[8,10,8,13],[8,22,8,25],[8,26,8,29],[9,10,9,13],[9,22,9,25],[9,26,9,29],[10,7,10,9],[10,11,10,13],[10,31,10,33],[11,6,11,9],[11,10,11,13],[11,30,11,33],[12,6,12,9],[12,10,12,13],[12,30,12,33],[13,6,13,9],[13,10,13,13],[13,30,13,33],[21,14,21,17],[14,23,14,25],[14,39,14,41],[15,22,15,25],[15,38,15,41],[16,22,16,25],[16,38,16,41],[17,22,17,25],[17,38,17,41],[18,15,18,17],[19,14,19,17],[20,14,20,17],[23,14,23,17],[23,26,23,29],[23,34,23,37],[23,38,23,41],[23,46,23,49],[22,15,22,17],[22,27,22,29],[22,35,22,37],[22,39,22,41],[22,47,22,49],[25,14,25,17],[25,26,25,29],[25,34,25,37],[25,38,25,41],[25,46,25,49],[24,14,24,17],[24,26,24,29],[24,34,24,37],[24,38,24,41],[24,46,24,49],[28,46,28,49],[29,18,29,21],[29,26,29,29],[29,46,29,49],[26,19,26,21],[26,27,26,29],[26,47,26,49],[27,18,27,21],[27,26,27,29],[27,46,27,49],[34,55,34,57],[35,54,35,57],[36,54,36,57],[37,54,37,57],[30,7,30,9],[30,35,30,37],[31,6,31,9],[31,34,31,37],[32,6,32,9],[32,34,32,37],[44,50,44,53],[45,50,45,53],[2,3,2,5],[3,2,3,5],[4,2,4,5],[5,2,5,5],[38,51,38,53],[39,50,39,53],[40,50,40,53],[41,50,41,53],[42,51,42,53],[43,50,43,53],[33,6,33,9],[33,34,33,37],[28,18,28,21],[28,26,28,29]]}
[]
[]
[null,null,null,"名前",null,null,"あ",null,null,null,"い",null,null,null,"う",null,null,null,"え",null,null,null,"お",null,null,null,"か",null,null,null,"き",null,null,null,"く",null,null,null,"け",null,null,null,"こ",null,null,null,"さ",null,null,null,"し",null,null,null,"す",null,null,null,"せ",null,null,null,"そ",null,null,null,"た"]
[null,null,"なまえ"]
[null,null,"郵便番号"]
[]
[null,null,"A",null,null,null,null,null,null,null,"A",{"$f":"VLOOKUP(K7,市町村データ!A2:O106,MATCH(手順書_市町村なまえ!$G$54, 市町村データ!A1:O1, 0),FALSE)","v":"新座"},null,null,null,null,null,null,null,null,null,null,"B",{"$f":"VLOOKUP(W7,市町村データ!A2:O106,MATCH(手順書_市町村なまえ!$G$54, 市町村データ!A1:O1, 0),FALSE)","v":"北野"},null,null,"C",{"$f":"VLOOKUP(AA7,市町村データ!A2:O106,MATCH(手順書_市町村なまえ!$G$54, 市町村データ!A1:O1, 0),FALSE)","v":"東北"}]
[null,null,null,null,null,null,null,null,null,null,{"$f":"VLOOKUP(K7,市町村データ!A2:O106,MATCH(手順書_市町村なまえ!$F$55, 市町村データ!A1:O1, 0),FALSE)","v":"にいざ"},null,null,null,null,null,null,null,null,null,null,null,{"$f":"VLOOKUP(W7,市町村データ!A2:O106,MATCH(手順書_市町村なまえ!$F$55, 市町村データ!A1:O1, 0),FALSE)","v":"きたの"},null,null,null,{"$f":"VLOOKUP(AA7,市町村データ!A2:O106,MATCH(手順書_市町村なまえ!$F$55, 市町村データ!A1:O1, 0),FALSE)","v":"とおほく"}]
[null,null,null,null,null,null,null,null,null,null,{"$f":"VLOOKUP(K7,市町村データ!A2:O106,MATCH(手順書_市町村なまえ!$F$56, 市町村データ!A1:O1, 0),FALSE)","v":"352-0006"},null,null,null,null,null,null,null,null,null,null,null,{"$f":"VLOOKUP(W7,市町村データ!A2:O106,MATCH(手順書_市町村なまえ!$F$56, 市町村データ!A1:O1, 0),FALSE)","v":"352-0003"},null,null,null,{"$f":"VLOOKUP(AA7,市町村データ!A2:O106,MATCH(手順書_市町村なまえ!$F$56, 市町村データ!A1:O1, 0),FALSE)","v":"352-0001"}]
[]
[null,null,"B",null,null,null,"D",{"$f":"VLOOKUP(G11,市町村データ!A2:O106,MATCH(手順書_市町村なまえ!$G$54, 市町村データ!A1:O1, 0),FALSE)","v":"中野"},null,null,"E",{"$f":"VLOOKUP(K11,市町村データ!A2:O106,MATCH(手順書_市町村なまえ!$G$54, 市町村データ!A1:O1, 0),FALSE)","v":"大和田"},null,null,null,null,null,null,null,null,null,null,null,null,null,null,null,null,null,null,"F",{"$f":"VLOOKUP(AE11,市町村データ!A2:O106,MATCH(手順書_市町村なまえ!$G$54, 市町村データ!A1:O1, 0),FALSE)","v":"東"}]
[null,null,null,null,null,null,{"$f":"VLOOKUP(G11,市町村データ!A2:O106,MATCH(手順書_市町村なまえ!$F$55, 市町村データ!A1:O1, 0),FALSE)","v":"なかの"},null,null,null,{"$f":"VLOOKUP(K11,市町村データ!A2:O106,MATCH(手順書_市町村なまえ!$F$55, 市町村データ!A1:O1, 0),FALSE)","v":"おおわだ"},null,null,null,null,null,null,null,null,null,null,null,null,null,null,null,null,null,null,null,{"$f":"VLOOKUP(AE11,市町村データ!A2:O106,MATCH(手順書_市町村なまえ!$F$55, 市町村データ!A1:O1, 0),FALSE)","v":"ひがし"}]
[null,null,null,null,null,null,{"$f":"VLOOKUP(G11,市町村データ!A2:O106,MATCH(手順書_市町村なまえ!$F$56, 市町村データ!A1:O1, 0),FALSE)","v":"352-0005"},null,null,null,{"$f":"VLOOKUP(K11,市町村データ!A2:O106,MATCH(手順書_市町村なまえ!$F$56, 市町村データ!A1:O1, 0),FALSE)","v":"352-0004"},null,null,null,null,null,null,null,null,null,null,null,null,null,null,null,null,null,null,null,{"$f":"VLOOKUP(AE11,市町村データ!A2:O106,MATCH(手順書_市町村なまえ!$F$56, 市町村データ!A1:O1, 0),FALSE)","v":"352-0002"}]
[]
[null,null,"C",null,null,null,null,null,null,null,null,null,null,null,null,null,null,null,null,null,null,null,"G",{"$f":"VLOOKUP(W15,市町村データ!A2:O106,MATCH(手順書_市町村なまえ!$G$54, 市町村データ!A1:O1, 0),FALSE)","v":"野火止"},null,null,null,null,null,null,null,null,null,null,null,null,null,null,"H",{"$f":"VLOOKUP(AM15,市町村データ!A2:O106,MATCH(手順書_市町村なまえ!$G$54, 市町村データ!A1:O1, 0),FALSE)","v":"畑中"}]
[null,null,null,null,null,null,null,null,null,null,null,null,null,null,null,null,null,null,null,null,null,null,{"$f":"VLOOKUP(W15,市町村データ!A2:O106,MATCH(手順書_市町村なまえ!$F$55, 市町村データ!A1:O1, 0),FALSE)","v":"のびとめ"},null,null,null,null,null,null,null,null,null,null,null,null,null,null,null,{"$f":"VLOOKUP(AM15,市町村データ!A2:O106,MATCH(手順書_市町村なまえ!$F$55, 市町村データ!A1:O1, 0),FALSE)","v":"はたなか"}]
[null,null,null,null,null,null,null,null,null,null,null,null,null,null,null,null,null,null,null,null,null,null,{"$f":"VLOOKUP(W15,市町村データ!A2:O106,MATCH(手順書_市町村なまえ!$F$56, 市町村データ!A1:O1, 0),FALSE)","v":"352-0011"},null,null,null,null,null,null,null,null,null,null,null,null,null,null,null,{"$f":"VLOOKUP(AM15,市町村データ!A2:O106,MATCH(手順書_市町村なまえ!$F$56, 市町村データ!A1:O1, 0),FALSE)","v":"352-0012"}]
[]
[null,null,"D",null,null,null,null,null,null,null,null,null,null,null,"I",{"$f":"VLOOKUP(O19,市町村データ!A2:O106,MATCH(手順書_市町村なまえ!$G$54, 市町村データ!A1:O1, 0),FALSE)","v":"菅沢"}]
[null,null,null,null,null,null,null,null,null,null,null,null,null,null,{"$f":"VLOOKUP(O19,市町村データ!A2:O106,MATCH(手順書_市町村なまえ!$F$55, 市町村データ!A1:O1, 0),FALSE)","v":"すがさわ"}]
[null,null,null,null,null,null,null,null,null,null,null,null,null,null,{"$f":"VLOOKUP(O19,市町村データ!A2:O106,MATCH(手順書_市町村なまえ!$F$56, 市町村データ!A1:O1, 0),FALSE)","v":"352-0017"}]
[]
[null,null,"E",null,null,null,null,null,null,null,null,null,null,null,"J",{"$f":"VLOOKUP(O23,市町村データ!A2:O106,MATCH(手順書_市町村なまえ!$G$54, 市町村データ!A1:O1, 0),FALSE)","v":"あたご"},null,null,null,null,null,null,null,null,null,null,"K",{"$f":"VLOOKUP(AA23,市町村データ!A2:O106,MATCH(手順書_市町村なまえ!$G$54, 市町村データ!A1:O1, 0),FALSE)","v":"本多"},null,null,null,null,null,null,"L",{"$f":"VLOOKUP(AI23,市町村データ!A2:O106,MATCH(手順書_市町村なまえ!$G$54, 市町村データ!A1:O1, 0),FALSE)","v":"堀ノ内"},null,null,"M",{"$f":"VLOOKUP(AM23,市町村データ!A2:O106,MATCH(手順書_市町村なまえ!$G$54, 市町村データ!A1:O1, 0),FALSE)","v":"馬場"},null,null,null,null,null,null,"N",{"$f":"VLOOKUP(AU23,市町村データ!A2:O106,MATCH(手順書_市町村なまえ!$G$54, 市町村データ!A1:O1, 0),FALSE)","v":"新塚"}]
[null,null,null,null,null,null,null,null,null,null,null,null,null,null,{"$f":"VLOOKUP(O23,市町村データ!A2:O106,MATCH(手順書_市町村なまえ!$F$55, 市町村データ!A1:O1, 0),FALSE)","v":"あたご"},null,null,null,null,null,null,null,null,null,null,null,{"$f":"VLOOKUP(AA23,市町村データ!A2:O106,MATCH(手順書_市町村なまえ!$F$55, 市町村データ!A1:O1, 0),FALSE)","v":"ほんだ"},null,null,null,null,null,null,null,{"$f":"VLOOKUP(AI23,市町村データ!A2:O106,MATCH(手順書_市町村なまえ!$F$55, 市町村データ!A1:O1, 0),FALSE)","v":"ほりのうち"},null,null,null,{"$f":"VLOOKUP(AM23,市町村データ!A2:O106,MATCH(手順書_市町村なまえ!$F$55, 市町村データ!A1:O1, 0),FALSE)","v":"ばば"},null,null,null,null,null,null,null,{"$f":"VLOOKUP(AU23,市町村データ!A2:O106,MATCH(手順書_市町村なまえ!$F$55, 市町村データ!A1:O1, 0),FALSE)","v":"にいづか"}]
[null,null,null,null,null,null,null,null,null,null,null,null,null,null,{"$f":"VLOOKUP(O23,市町村データ!A2:O106,MATCH(手順書_市町村なまえ!$F$56, 市町村データ!A1:O1, 0),FALSE)","v":"352-0021"},null,null,null,null,null,null,null,null,null,null,null,{"$f":"VLOOKUP(AA23,市町村データ!A2:O106,MATCH(手順書_市町村なまえ!$F$56, 市町村データ!A1:O1, 0),FALSE)","v":"352-0022"},null,null,null,null,null,null,null,{"$f":"VLOOKUP(AI23,市町村データ!A2:O106,MATCH(手順書_市町村なまえ!$F$56, 市町村データ!A1:O1, 0),FALSE)","v":"352-0023"},null,null,null,{"$f":"VLOOKUP(AM23,市町村データ!A2:O106,MATCH(手順書_市町村なまえ!$F$56, 市町村データ!A1:O1, 0),FALSE)","v":"352-0016"},null,null,null,null,null,null,null,{"$f":"VLOOKUP(AU23,市町村データ!A2:O106,MATCH(手順書_市町村なまえ!$F$56, 市町村データ!A1:O1, 0),FALSE)","v":"352-0013"}]
[]
[null,null,"F",null,null,null,null,null,null,null,null,null,null,null,null,null,null,null,"O",{"$f":"VLOOKUP(S27,市町村データ!A2:O106,MATCH(手順書_市町村なまえ!$G$54, 市町村データ!A1:O1, 0),FALSE)","v":"西堀"},null,null,null,null,null,null,"P",{"$f":"VLOOKUP(AA27,市町村データ!A2:O106,MATCH(手順書_市町村なまえ!$G$54, 市町村データ!A1:O1, 0),FALSE)","v":"石神"},null,null,null,null,null,null,null,null,null,null,null,null,null,null,null,null,null,null,"Q",{"$f":"VLOOKUP(AU27,市町村データ!A2:O106,MATCH(手順書_市町村なまえ!$G$54, 市町村データ!A1:O1, 0),FALSE)","v":"栄"}]
[null,null,null,null,null,null,null,null,null,null,null,null,null,null,null,null,null,null,{"$f":"VLOOKUP(S27,市町村データ!A2:O106,MATCH(手順書_市町村なまえ!$F$55, 市町村データ!A1:O1, 0),FALSE)","v":"にしぼり"},null,null,null,null,null,null,null,{"$f":"VLOOKUP(AA27,市町村データ!A2:O106,MATCH(手順書_市町村なまえ!$F$55, 市町村データ!A1:O1, 0),FALSE)","v":"いしがみ"},null,null,null,null,null,null,null,null,null,null,null,null,null,null,null,null,null,null,null,{"$f":"VLOOKUP(AU27,市町村データ!A2:O106,MATCH(手順書_市町村なまえ!$F$55, 市町村データ!A1:O1, 0),FALSE)","v":"さかえ"}]
[null,null,null,null,null,null,null,null,null,null,null,null,null,null,null,null,null,null,{"$f":"VLOOKUP(S27,市町村データ!A2:O106,MATCH(手順書_市町村なまえ!$F$56, 市町村データ!A1:O1, 0),FALSE)","v":"352-0031"},null,null,null,null,null,null,null,{"$f":"VLOOKUP(AA27,市町村データ!A2:O106,MATCH(手順書_市町村なまえ!$F$56, 市町村データ!A1:O1, 0),FALSE)","v":"352-0033"},null,null,null,null,null,null,null,null,null,null,null,null,null,null,null,null,null,null,null,{"$f":"VLOOKUP(AU27,市町村データ!A2:O106,MATCH(手順書_市町村なまえ!$F$56, 市町村データ!A1:O1, 0),FALSE)","v":"352-0014"}]
[]
[null,null,"G",null,null,null,"R",{"$f":"VLOOKUP(G31,市町村データ!A2:O106,MATCH(手順書_市町村なまえ!$G$54, 市町村データ!A1:O1, 0),FALSE)","v":"新堀"},null,null,null,null,null,null,null,null,null,null,null,null,null,null,null,null,null,null,null,null,null,null,null,null,null,null,"S",{"$f":"VLOOKUP(AI31,市町村データ!A2:O106,MATCH(手順書_市町村なまえ!$G$54, 市町村データ!A1:O1, 0),FALSE)","v":"道場"},null,null,null,null,null,null,null,null,null,null,"T",{"$f":"VLOOKUP(AU31,市町村データ!A2:O106,MATCH(手順書_市町村なまえ!$G$54, 市町村データ!A1:O1, 0),FALSE)","v":"池田"}]
[null,null,null,null,null,null,{"$f":"VLOOKUP(G31,市町村データ!A2:O106,MATCH(手順書_市町村なまえ!$F$55, 市町村データ!A1:O1, 0),FALSE)","v":"しんぼり"},null,null,null,null,null,null,null,null,null,null,null,null,null,null,null,null,null,null,null,null,null,null,null,null,null,null,null,{"$f":"VLOOKUP(AI31,市町村データ!A2:O106,MATCH(手順書_市町村なまえ!$F$55, 市町村データ!A1:O1, 0),FALSE)","v":"どうじょう"},null,null,null,null,null,null,null,null,null,null,null,{"$f":"VLOOKUP(AU31,市町村データ!A2:O106,MATCH(手順書_市町村なまえ!$F$55, 市町村データ!A1:O1, 0),FALSE)","v":"いけだ"}]
[null,null,null,null,null,null,{"$f":"VLOOKUP(G31,市町村データ!A2:O106,MATCH(手順書_市町村なまえ!$F$56, 市町村データ!A1:O1, 0),FALSE)","v":"352-0032"},null,null,null,null,null,null,null,null,null,null,null,null,null,null,null,null,null,null,null,null,null,null,null,null,null,null,null,{"$f":"VLOOKUP(AI31,市町村データ!A2:O106,MATCH(手順書_市町村なまえ!$F$56, 市町村データ!A1:O1, 0),FALSE)","v":"352-0024"},null,null,null,null,null,null,null,null,null,null,null,{"$f":"VLOOKUP(AU31,市町村データ!A2:O106,MATCH(手順書_市町村なまえ!$F$56, 市町村データ!A1:O1, 0),FALSE)","v":"352-0015"}]
[]
[null,null,"H",null,null,null,null,null,null,null,null,null,null,null,null,null,null,null,null,null,null,null,null,null,null,null,null,null,null,null,null,null,null,null,null,null,null,null,null,null,null,null,null,null,null,null,null,null,null,null,null,null,null,null,"U",{"$f":"VLOOKUP(BC35,市町村データ!A2:O106,MATCH(手順書_市町村なまえ!$G$54, 市町村データ!A1:O1, 0),FALSE)","v":"片山"}]
[null,null,null,null,null,null,null,null,null,null,null,null,null,null,null,null,null,null,null,null,null,null,null,null,null,null,null,null,null,null,null,null,null,null,null,null,null,null,null,null,null,null,null,null,null,null,null,null,null,null,null,null,null,null,{"$f":"VLOOKUP(BC35,市町村データ!A2:O106,MATCH(手順書_市町村なまえ!$F$55, 市町村データ!A1:O1, 0),FALSE)","v":"かたやま"}]
[null,null,null,null,null,null,null,null,null,null,null,null,null,null,null,null,null,null,null,null,null,null,null,null,null,null,null,null,null,null,null,null,null,null,null,null,null,null,null,null,null,null,null,null,null,null,null,null,null,null,null,null,null,null,{"$f":"VLOOKUP(BC35,市町村データ!A2:O106,MATCH(手順書_市町村なまえ!$F$56, 市町村データ!A1:O1, 0),FALSE)","v":"352-0025"}]
[]
[null,null,"I",null,null,null,null,null,null,null,null,null,null,null,null,null,null,null,null,null,null,null,null,null,null,null,null,null,null,null,null,null,null,null,null,null,null,null,null,null,null,null,null,null,null,null,null,null,null,null,"V",{"$f":"VLOOKUP(AY39,市町村データ!A2:O106,MATCH(手順書_市町村なまえ!$G$54, 市町村データ!A1:O1, 0),FALSE)","v":"野寺"}]
[null,null,null,null,null,null,null,null,null,null,null,null,null,null,null,null,null,null,null,null,null,null,null,null,null,null,null,null,null,null,null,null,null,null,null,null,null,null,null,null,null,null,null,null,null,null,null,null,null,null,{"$f":"VLOOKUP(AY39,市町村データ!A2:O106,MATCH(手順書_市町村なまえ!$F$55, 市町村データ!A1:O1, 0),FALSE)","v":"のでら"}]
[null,null,null,null,null,null,null,null,null,null,null,null,null,null,null,null,null,null,null,null,null,null,null,null,null,null,null,null,null,null,null,null,null,null,null,null,null,null,null,null,null,null,null,null,null,null,null,null,null,null,{"$f":"VLOOKUP(AY39,市町村データ!A2:O106,MATCH(手順書_市町村なまえ!$F$56, 市町村データ!A1:O1, 0),FALSE)","v":"352-0034"}]
[]
[null,null,"J",null,null,null,null,null,null,null,null,null,null,null,null,null,null,null,null,null,null,null,null,null,null,null,null,null,null,null,null,null,null,null,null,null,null,null,null,null,null,null,null,null,null,null,null,null,null,null,"W",{"$f":"VLOOKUP(AY43,市町村データ!A2:O106,MATCH(手順書_市町村なまえ!$G$54, 市町村データ!A1:O1, 0),FALSE)","v":"栗原"}]
[null,null,null,null,null,null,null,null,null,null,null,null,null,null,null,null,null,null,null,null,null,null,null,null,null,null,null,null,null,null,null,null,null,null,null,null,null,null,null,null,null,null,null,null,null,null,null,null,null,null,{"$f":"VLOOKUP(AY43,市町村データ!A2:O106,MATCH(手順書_市町村なまえ!$F$55, 市町村データ!A1:O1, 0),FALSE)","v":"くりはら"}]
[null,null,null,null,null,null,null,null,null,null,null,null,null,null,null,null,null,null,null,null,null,null,null,null,null,null,null,null,null,null,null,null,null,null,null,null,null,null,null,null,null,null,null,null,null,null,null,null,null,null,{"$f":"VLOOKUP(AY43,市町村データ!A2:O106,MATCH(手順書_市町村なまえ!$F$56, 市町村データ!A1:O1, 0),FALSE)","v":"352-0035"}]
[]
[null,null,"K"]
[]
[]
[]
[null,"［国勢調査］＞［令和２年国勢調査（総務省統計局）　都道府県・市区町村別の主な結果］"]
[null,"https://www.e-stat.go.jp/stat-search/files?page=1&layout=datalist&toukei=00200521&tstat=000001049104&cycle=0&tclass1=000001049105&tclass2val=0"]

{"sheet":"手順書_交通","index":8,"n_rows":114,"n_cols":32,"rows_kept":114,"cut":false,"hidden":false,"merged":[[73,6,73,8],[73,9,73,10],[73,11,73,12],[15,5,15,14],[15,16,15,19],[30,5,30,14],[30,16,30,17],[50,16,50,17],[53,6,53,8],[54,5,54,8],[55,5,55,8],[56,5,56,8],[59,16,59,19],[70,16,70,17],[74,6,74,8],[74,9,74,10],[74,11,74,12],[78,16,78,19],[81,5,81,8]]}
[null,null,null,null,null,"C1.0",null,null,null,null,null,null,null,null,null,null,"C2.0",null,null,null,null,null,null,null,null,null,null,null,null,null,null,"EOL"]
[null,"手順書　＞　人口"]
[]
[null,null,null,"手順１"]
[]
[]
[]
[]
[]
[]
[]
[null,null,null,null,null,null,"転写元になる［地図テンプレート］のワークシート名等を、"]
[null,null,null,null,null,"👇","以下に入力してください。"]
[]
[null,null,null,null,null,"ワークシート名",null,null,null,null,null,null,null,null,null,null,"範囲"]
["R1.1.0",null,null,null,null,"地図テンプレート_1",null,null,null,null,null,null,null,null,null,null,"A1:BT53"]
[]
[]
[null,null,null,"手順２"]
[]
[]
[]
[]
[]
[]
[null,null,null,null,null,null,null,"地図の転写先を、"]
[null,null,null,null,null,null,"👇","入力してください。"]
[]
[null,null,null,null,null,null,"ワークシート名を間違えて上書きすると、このワークブックの機能を破損させてしまいかねますので慎重に確認してください。"]
[null,null,null,null,null,"ワークシート名",null,null,null,null,null,null,null,null,null,null,"左上隅セル"]
["R2.1.0",null,null,null,null,"自動生成_交通",null,null,null,null,null,null,null,null,null,null,"A1"]
[]
[]
[null,null,null,"手順３"]
[]
[]
[]
[]
[]
[]
[]
[]
[]
[]
[]
[null,null,null,null,null,"👇","以下は市町村１つ分の凡例です。"]
[null,null,null,null,null,null,null,null,null,null,null,null,null,null,null,"［市町村データ］",null,null,null,"ワークシートの列名を、"]
[null,null,null,null,null,null,null,null,null,null,null,null,null,null,null,"👇","以下の凡例に入れてください。"]
[]
[null,null,null,null,null,null,null,null,null,null,null,null,null,null,null,null,"転写先セル"]
["R3.0.5.0",null,null,null,null,null,null,null,null,null,null,null,null,null,null,null,"C3"]
[null,null,null,null,"ここに入力できます。"]
[null,null,null,null,null,"A","B","C","D"]
["R3.1.0",null,null,null,1,null,"名前"]
[null,null,null,null,2,"交通1"]
[null,null,null,null,3,"交通2"]
[null,null,null,null,4,"交通3"]
[]
[null,null,null,null,null,null,null,null,null,null,null,null,null,null,null,null,"凡例の元データのテーブルの右下隅のセル"]
["R3.3.0",null,null,null,null,null,null,null,null,null,null,null,null,null,null,null,"D4"]
[null,null,null,null,null,null,null,null,null,null,null,null,null,null,null,null,"上の黄色い枠に書かれている番地を使ってください。"]
[]
[null,null,null,null,null,null,"よくわからないときは、このままにしてください。"]
[]
[]
[null,null,null,"手順４"]
[]
[null,null,null,null,null,"👇","以下はヒートマップの色の凡例です。"]
[null,null,null,null,null,null,"今回は使っていないので、このままにして、次の手順へ進んでください。"]
[null,null,null,null,null,null,null,null,null,null,null,null,null,null,null,null,"転写先セル"]
["R4.0.9.0",null,null,null,null,null,null,null,null,null,null,null,null,null,null,null,"BK7"]
[null,null,null,null,null,null,null,null,null,null,null,null,null,null,null,null,"使っていないのでこのまま。"]
[null,null,null,null,null,"A","B","C","D","E","F","G","H"]
["R4.1.0",null,null,null,1,"No","以上",null,null,"背景色",null,"前景色"]
[null,null,null,null,2,1]
[]
[]
[null,null,null,null,null,null,null,null,null,null,null,null,null,null,null,null,"凡例の元データのテーブルの右下隅のセル"]
["R4.3.5.0",null,null,null,null,null,null,null,null,null,null,null,null,null,null,null,"H2"]
[null,null,null,null,null,null,null,null,null,null,null,null,null,null,null,null,"上の黄色い枠に書かれている番地を使ってください。"]
[null,null,null,null,null,"転写元の範囲"]
["R4.4.0",null,null,null,null,"B1:F1"]
[null,null,null,null,null,"上の黄色い枠に書かれている番地を使ってください。"]
[]
[]
[null,null,null,"手順４"]
[]
[null,null,null,null,null,"👇","以下のボタンを押してください。"]
[]
[]
[]
[]
[]
[]
[]
[]
[]
[]
[]
[]
[]
[]
[]
[]
[]
[]
[]
[]
[]
[]
[null,null,null,null,null,null,null,"ワークシートが生成できたら完了です。"]
[]
[null,"以上"]
["EOF"]

{"sheet":"自動生成_交通","index":9,"n_rows":52,"n_cols":68,"rows_kept":52,"cut":false,"hidden":false,"merged":[[7,10,7,13],[7,14,7,17],[7,18,7,21],[7,22,7,25],[7,26,7,29],[7,30,7,33],[6,11,6,13],[6,15,6,17],[6,19,6,21],[6,23,6,25],[6,27,6,29],[6,31,6,33],[9,10,9,13],[9,14,9,17],[9,18,9,21],[9,22,9,25],[9,26,9,29],[9,30,9,33],[8,10,8,13],[8,14,8,17],[8,18,8,21],[8,22,8,25],[8,26,8,29],[8,30,8,33],[10,35,10,37],[10,39,10,41],[11,6,11,9],[11,10,11,13],[11,18,11,21],[11,22,11,25],[11,26,11,29],[11,30,11,33],[11,34,11,37],[11,38,11,41],[10,7,10,9],[10,11,10,13],[10,19,10,21],[10,23,10,25],[10,27,10,29],[10,31,10,33],[12,34,12,37],[12,38,12,41],[13,6,13,9],[13,10,13,13],[13,18,13,21],[13,22,13,25],[13,26,13,29],[13,30,13,33],[13,34,13,37],[13,38,13,41],[12,6,12,9],[12,10,12,13],[12,18,12,21],[12,22,12,25],[12,26,12,29],[12,30,12,33],[14,31,14,33],[14,35,14,37],[14,39,14,41],[15,6,15,9],[15,10,15,13],[15,14,15,17],[15,18,15,21],[15,22,15,25],[15,26,15,29],[15,30,15,33],[14,7,14,9],[14,11,14,13],[14,15,14,17],[14,19,14,21],[14,23,14,25],[14,27,14,29],[15,34,15,37],[15,38,15,41],[16,6,16,9],[16,10,16,13],[16,14,16,17],[16,18,16,21],[16,22,16,25],[16,26,16,29],[16,30,16,33],[16,34,16,37],[16,38,16,41],[17,6,17,9],[17,10,17,13],[17,14,17,17],[17,18,17,21],[17,22,17,25],[17,26,17,29],[17,30,17,33],[17,34,17,37],[17,38,17,41],[18,39,18,41],[18,43,18,45],[19,14,19,17],[19,18,19,21],[19,22,19,25],[19,26,19,29],[19,30,19,33],[19,34,19,37],[19,38,19,41],[19,42,19,45],[18,15,18,17],[18,19,18,21],[18,23,18,25],[18,27,18,29],[18,31,18,33],[18,35,18,37],[20,38,20,41],[20,42,20,45],[21,14,21,17],[21,18,21,21],[21,22,21,25],[21,26,21,29],[21,30,21,33],[21,34,21,37],[21,38,21,41],[21,42,21,45],[20,14,20,17],[20,18,20,21],[20,22,20,25],[20,26,20,29],[20,30,20,33],[20,34,20,37],[22,39,22,41],[22,43,22,45],[22,47,22,49],[22,51,22,53],[23,14,23,17],[23,18,23,21],[23,22,23,25],[23,26,23,29],[23,30,23,33],[23,34,23,37],[22,15,22,17],[22,19,22,21],[22,23,22,25],[22,27,22,29],[22,31,22,33],[22,35,22,37],[24,50,24,53],[25,14,25,17],[25,18,25,21],[25,22,25,25],[25,26,25,29],[25,30,25,33],[25,34,25,37],[23,38,23,41],[23,42,23,45],[23,46,23,49],[23,50,23,53],[24,14,24,17],[24,18,24,21],[24,22,24,25],[24,26,24,29],[24,30,24,33],[24,34,24,37],[26,19,26,21],[26,23,26,25],[26,27,26,29],[26,31,26,33],[26,35,26,37],[26,39,26,41],[24,38,24,41],[24,42,24,45],[24,46,24,49],[26,43,26,45],[26,47,26,49],[26,51,26,53],[26,55,26,57],[26,59,26,61],[26,63,26,65],[25,38,25,41],[25,42,25,45],[25,46,25,49],[25,50,25,53],[27,42,27,45],[27,46,27,49],[27,50,27,53],[27,54,27,57],[27,58,27,61],[27,62,27,65],[27,18,27,21],[27,22,27,25],[27,26,27,29],[27,30,27,33],[27,34,27,37],[27,38,27,41],[28,42,28,45],[28,46,28,49],[28,50,28,53],[28,54,28,57],[28,58,28,61],[28,62,28,65],[28,18,28,21],[28,22,28,25],[28,26,28,29],[28,30,28,33],[28,34,28,37],[28,38,28,41],[29,42,29,45],[29,46,29,49],[29,50,29,53],[29,54,29,57],[29,58,29,61],[29,62,29,65],[29,18,29,21],[29,22,29,25],[29,26,29,29],[29,30,29,33],[29,34,29,37],[29,38,29,41],[30,63,30,65],[31,6,31,9],[31,10,31,13],[31,14,31,17],[31,18,31,21],[31,26,31,29],[31,30,31,33],[31,34,31,37],[31,38,31,41],[31,46,31,49],[30,35,30,37],[30,39,30,41],[30,47,30,49],[30,51,30,53],[30,55,30,57],[30,59,30,61],[30,7,30,9],[30,11,30,13],[30,15,30,17],[30,19,30,21],[30,27,30,29],[30,31,30,33],[31,50,31,53],[31,54,31,57],[31,58,31,61],[31,62,31,65],[32,6,32,9],[32,10,32,13],[32,14,32,17],[32,18,32,21],[32,26,32,29],[32,30,32,33],[32,62,32,65],[33,6,33,9],[33,10,33,13],[33,14,33,17],[33,18,33,21],[33,26,33,29],[33,30,33,33],[33,34,33,37],[33,38,33,41],[33,46,33,49],[32,34,32,37],[32,38,32,41],[32,46,32,49],[32,50,32,53],[32,54,32,57],[32,58,32,61],[33,50,33,53],[33,54,33,57],[33,58,33,61],[33,62,33,65],[34,27,34,29],[34,31,34,33],[34,55,34,57],[34,59,34,61],[34,63,34,65],[35,26,35,29],[35,30,35,33],[35,54,35,57],[35,58,35,61],[35,62,35,65],[36,26,36,29],[36,30,36,33],[36,54,36,57],[36,58,36,61],[36,62,36,65],[38,67,38,69],[39,50,39,53],[39,54,39,57],[39,58,39,61],[39,62,39,65],[39,66,39,69],[37,26,37,29],[37,30,37,33],[37,54,37,57],[37,58,37,61],[37,62,37,65],[38,51,38,53],[38,55,38,57],[38,59,38,61],[38,63,38,65],[42,59,42,61],[43,50,43,53],[43,54,43,57],[43,58,43,61],[40,50,40,53],[40,54,40,57],[40,58,40,61],[40,62,40,65],[40,66,40,69],[41,50,41,53],[41,54,41,57],[41,58,41,61],[41,62,41,65],[41,66,41,69],[2,3,2,5],[3,2,3,5],[4,2,4,5],[5,2,5,5],[48,50,48,53],[48,54,48,57],[48,58,48,61],[49,50,49,53],[49,54,49,57],[49,58,49,61],[46,51,46,53],[46,55,46,57],[46,59,46,61],[47,50,47,53],[47,54,47,57],[47,58,47,61],[44,50,44,53],[44,54,44,57],[44,58,44,61],[45,50,45,53],[45,54,45,57],[45,58,45,61],[42,51,42,53],[42,55,42,57]]}
[]
[]
[null,null,null,"名前",null,null,"あ",null,null,null,"い",null,null,null,"う",null,null,null,"え",null,null,null,"お",null,null,null,"か",null,null,null,"き",null,null,null,"く",null,null,null,"け",null,null,null,"こ",null,null,null,"さ",null,null,null,"し",null,null,null,"す",null,null,null,"せ",null,null,null,"そ",null,null,null,"た"]
[null,null,"交通1"]
[null,null,"交通2"]
[null,null,"交通3"]
[null,null,"A",null,null,null,null,null,null,null,1,{"$f":"VLOOKUP(K7,市町村データ!A2:O106,MATCH(手順書_交通!$G$54, 市町村データ!A1:O1, 0),FALSE)","v":"新座3"},null,null,2,{"$f":"VLOOKUP(O7,市町村データ!A2:O106,MATCH(手順書_交通!$G$54, 市町村データ!A1:O1, 0),FALSE)","v":"新座2"},null,null,3,{"$f":"VLOOKUP(S7,市町村データ!A2:O106,MATCH(手順書_交通!$G$54, 市町村データ!A1:O1, 0),FALSE)","v":"新座1"},null,null,4,{"$f":"VLOOKUP(W7,市町村データ!A2:O106,MATCH(手順書_交通!$G$54, 市町村データ!A1:O1, 0),FALSE)","v":"北野3"},null,null,5,{"$f":"VLOOKUP(AA7,市町村データ!A2:O106,MATCH(手順書_交通!$G$54, 市町村データ!A1:O1, 0),FALSE)","v":"東北1"},null,null,6,{"$f":"VLOOKUP(AE7,市町村データ!A2:O106,MATCH(手順書_交通!$G$54, 市町村データ!A1:O1, 0),FALSE)","v":"東北2"}]
[null,null,null,null,null,null,null,null,null,null,{"$f":"VLOOKUP(K7,市町村データ!A2:O106,MATCH(手順書_交通!$F$55, 市町村データ!A1:O1, 0),FALSE)","v":"○団地南"},null,null,null,{"$f":"VLOOKUP(O7,市町村データ!A2:O106,MATCH(手順書_交通!$F$55, 市町村データ!A1:O1, 0),FALSE)","v":""},null,null,null,{"$f":"VLOOKUP(S7,市町村データ!A2:O106,MATCH(手順書_交通!$F$55, 市町村データ!A1:O1, 0),FALSE)","v":"○富士見ヶ丘"},null,null,null,{"$f":"VLOOKUP(W7,市町村データ!A2:O106,MATCH(手順書_交通!$F$55, 市町村データ!A1:O1, 0),FALSE)","v":"○東寮前"},null,null,null,{"$f":"VLOOKUP(AA7,市町村データ!A2:O106,MATCH(手順書_交通!$F$55, 市町村データ!A1:O1, 0),FALSE)","v":"○新座志木中央総合病院"},null,null,null,{"$f":"VLOOKUP(AE7,市町村データ!A2:O106,MATCH(手順書_交通!$F$55, 市町村データ!A1:O1, 0),FALSE)","v":"○東北通り"}]
[null,null,null,null,null,null,null,null,null,null,{"$f":"VLOOKUP(K7,市町村データ!A2:O106,MATCH(手順書_交通!$F$56, 市町村データ!A1:O1, 0),FALSE)","v":"○新座団地東"},null,null,null,{"$f":"VLOOKUP(O7,市町村データ!A2:O106,MATCH(手順書_交通!$F$56, 市町村データ!A1:O1, 0),FALSE)","v":""},null,null,null,{"$f":"VLOOKUP(S7,市町村データ!A2:O106,MATCH(手順書_交通!$F$56, 市町村データ!A1:O1, 0),FALSE)","v":"○富士見ヶ丘団地"},null,null,null,{"$f":"VLOOKUP(W7,市町村データ!A2:O106,MATCH(手順書_交通!$F$56, 市町村データ!A1:O1, 0),FALSE)","v":""},null,null,null,{"$f":"VLOOKUP(AA7,市町村データ!A2:O106,MATCH(手順書_交通!$F$56, 市町村データ!A1:O1, 0),FALSE)","v":"○すきっぷたうん"},null,null,null,{"$f":"VLOOKUP(AE7,市町村データ!A2:O106,MATCH(手順書_交通!$F$56, 市町村データ!A1:O1, 0),FALSE)","v":"○東北二丁目"}]
[null,null,null,null,null,null,null,null,null,null,{"$f":"VLOOKUP(K7,市町村データ!A2:O106,MATCH(手順書_交通!$F$57, 市町村データ!A1:O1, 0),FALSE)","v":"○新座団地"},null,null,null,{"$f":"VLOOKUP(O7,市町村データ!A2:O106,MATCH(手順書_交通!$F$57, 市町村データ!A1:O1, 0),FALSE)","v":""},null,null,null,{"$f":"VLOOKUP(S7,市町村データ!A2:O106,MATCH(手順書_交通!$F$57, 市町村データ!A1:O1, 0),FALSE)","v":""},null,null,null,{"$f":"VLOOKUP(W7,市町村データ!A2:O106,MATCH(手順書_交通!$F$57, 市町村データ!A1:O1, 0),FALSE)","v":""},null,null,null,{"$f":"VLOOKUP(AA7,市町村データ!A2:O106,MATCH(手順書_交通!$F$57, 市町村データ!A1:O1, 0),FALSE)","v":""},null,null,null,{"$f":"VLOOKUP(AE7,市町村データ!A2:O106,MATCH(手順書_交通!$F$57, 市町村データ!A1:O1, 0),FALSE)","v":"○志木駅南"}]
[null,null,"B",null,null,null,7,{"$f":"VLOOKUP(G11,市町村データ!A2:O106,MATCH(手順書_交通!$G$54, 市町村データ!A1:O1, 0),FALSE)","v":"中野2"},null,null,8,{"$f":"VLOOKUP(K11,市町村データ!A2:O106,MATCH(手順書_交通!$G$54, 市町村データ!A1:O1, 0),FALSE)","v":"大和田4"},null,null,null,null,null,null,9,{"$f":"VLOOKUP(S11,市町村データ!A2:O106,MATCH(手順書_交通!$G$54, 市町村データ!A1:O1, 0),FALSE)","v":"大和田5"},null,null,10,{"$f":"VLOOKUP(W11,市町村データ!A2:O106,MATCH(手順書_交通!$G$54, 市町村データ!A1:O1, 0),FALSE)","v":"北野2"},null,null,11,{"$f":"VLOOKUP(AA11,市町村データ!A2:O106,MATCH(手順書_交通!$G$54, 市町村データ!A1:O1, 0),FALSE)","v":"北野1"},null,null,12,{"$f":"VLOOKUP(AE11,市町村データ!A2:O106,MATCH(手順書_交通!$G$54, 市町村データ!A1:O1, 0),FALSE)","v":"東3"},null,null,13,{"$f":"VLOOKUP(AI11,市町村データ!A2:O106,MATCH(手順書_交通!$G$54, 市町村データ!A1:O1, 0),FALSE)","v":"東2"},null,null,14,{"$f":"VLOOKUP(AM11,市町村データ!A2:O106,MATCH(手順書_交通!$G$54, 市町村データ!A1:O1, 0),FALSE)","v":"東1"}]
[null,null,null,null,null,null,{"$f":"VLOOKUP(G11,市町村データ!A2:O106,MATCH(手順書_交通!$F$55, 市町村データ!A1:O1, 0),FALSE)","v":""},null,null,null,{"$f":"VLOOKUP(K11,市町村データ!A2:O106,MATCH(手順書_交通!$F$55, 市町村データ!A1:O1, 0),FALSE)","v":"○新座柳瀬高校入口"},null,null,null,null,null,null,null,{"$f":"VLOOKUP(S11,市町村データ!A2:O106,MATCH(手順書_交通!$F$55, 市町村データ!A1:O1, 0),FALSE)","v":"○新座車庫"},null,null,null,{"$f":"VLOOKUP(W11,市町村データ!A2:O106,MATCH(手順書_交通!$F$55, 市町村データ!A1:O1, 0),FALSE)","v":""},null,null,null,{"$f":"VLOOKUP(AA11,市町村データ!A2:O106,MATCH(手順書_交通!$F$55, 市町村データ!A1:O1, 0),FALSE)","v":"○北野入口"},null,null,null,{"$f":"VLOOKUP(AE11,市町村データ!A2:O106,MATCH(手順書_交通!$F$55, 市町村データ!A1:O1, 0),FALSE)","v":"○東三丁目"},null,null,null,{"$f":"VLOOKUP(AI11,市町村データ!A2:O106,MATCH(手順書_交通!$F$55, 市町村データ!A1:O1, 0),FALSE)","v":""},null,null,null,{"$f":"VLOOKUP(AM11,市町村データ!A2:O106,MATCH(手順書_交通!$F$55, 市町村データ!A1:O1, 0),FALSE)","v":"○東一丁目"}]
[null,null,null,null,null,null,{"$f":"VLOOKUP(G11,市町村データ!A2:O106,MATCH(手順書_交通!$F$56, 市町村データ!A1:O1, 0),FALSE)","v":""},null,null,null,{"$f":"VLOOKUP(K11,市町村データ!A2:O106,MATCH(手順書_交通!$F$56, 市町村データ!A1:O1, 0),FALSE)","v":"○英橋"},null,null,null,null,null,null,null,{"$f":"VLOOKUP(S11,市町村データ!A2:O106,MATCH(手順書_交通!$F$56, 市町村データ!A1:O1, 0),FALSE)","v":""},null,null,null,{"$f":"VLOOKUP(W11,市町村データ!A2:O106,MATCH(手順書_交通!$F$56, 市町村データ!A1:O1, 0),FALSE)","v":""},null,null,null,{"$f":"VLOOKUP(AA11,市町村データ!A2:O106,MATCH(手順書_交通!$F$56, 市町村データ!A1:O1, 0),FALSE)","v":"○立教前"},null,null,null,{"$f":"VLOOKUP(AE11,市町村データ!A2:O106,MATCH(手順書_交通!$F$56, 市町村データ!A1:O1, 0),FALSE)","v":""},null,null,null,{"$f":"VLOOKUP(AI11,市町村データ!A2:O106,MATCH(手順書_交通!$F$56, 市町村データ!A1:O1, 0),FALSE)","v":""},null,null,null,{"$f":"VLOOKUP(AM11,市町村データ!A2:O106,MATCH(手順書_交通!$F$56, 市町村データ!A1:O1, 0),FALSE)","v":""}]
[null,null,null,null,null,null,{"$f":"VLOOKUP(G11,市町村データ!A2:O106,MATCH(手順書_交通!$F$57, 市町村データ!A1:O1, 0),FALSE)","v":""},null,null,null,{"$f":"VLOOKUP(K11,市町村データ!A2:O106,MATCH(手順書_交通!$F$57, 市町村データ!A1:O1, 0),FALSE)","v":"○大和田"},null,null,null,null,null,null,null,{"$f":"VLOOKUP(S11,市町村データ!A2:O106,MATCH(手順書_交通!$F$57, 市町村データ!A1:O1, 0),FALSE)","v":""},null,null,null,{"$f":"VLOOKUP(W11,市町村データ!A2:O106,MATCH(手順書_交通!$F$57, 市町村データ!A1:O1, 0),FALSE)","v":""},null,null,null,{"$f":"VLOOKUP(AA11,市町村データ!A2:O106,MATCH(手順書_交通!$F$57, 市町村データ!A1:O1, 0),FALSE)","v":""},null,null,null,{"$f":"VLOOKUP(AE11,市町村データ!A2:O106,MATCH(手順書_交通!$F$57, 市町村データ!A1:O1, 0),FALSE)","v":""},null,null,null,{"$f":"VLOOKUP(AI11,市町村データ!A2:O106,MATCH(手順書_交通!$F$57, 市町村データ!A1:O1, 0),FALSE)","v":""},null,null,null,{"$f":"VLOOKUP(AM11,市町村データ!A2:O106,MATCH(手順書_交通!$F$57, 市町村データ!A1:O1, 0),FALSE)","v":""}]
[null,null,"C",null,null,null,15,{"$f":"VLOOKUP(G15,市町村データ!A2:O106,MATCH(手順書_交通!$G$54, 市町村データ!A1:O1, 0),FALSE)","v":"中野1"},null,null,16,{"$f":"VLOOKUP(K15,市町村データ!A2:O106,MATCH(手順書_交通!$G$54, 市町村データ!A1:O1, 0),FALSE)","v":"大和田3"},null,null,17,{"$f":"VLOOKUP(O15,市町村データ!A2:O106,MATCH(手順書_交通!$G$54, 市町村データ!A1:O1, 0),FALSE)","v":"大和田2"},null,null,18,{"$f":"VLOOKUP(S15,市町村データ!A2:O106,MATCH(手順書_交通!$G$54, 市町村データ!A1:O1, 0),FALSE)","v":"大和田1"},null,null,19,{"$f":"VLOOKUP(W15,市町村データ!A2:O106,MATCH(手順書_交通!$G$54, 市町村データ!A1:O1, 0),FALSE)","v":"野火止5"},null,null,20,{"$f":"VLOOKUP(AA15,市町村データ!A2:O106,MATCH(手順書_交通!$G$54, 市町村データ!A1:O1, 0),FALSE)","v":"野火止6"},null,null,21,{"$f":"VLOOKUP(AE15,市町村データ!A2:O106,MATCH(手順書_交通!$G$54, 市町村データ!A1:O1, 0),FALSE)","v":"野火止7"},null,null,22,{"$f":"VLOOKUP(AI15,市町村データ!A2:O106,MATCH(手順書_交通!$G$54, 市町村データ!A1:O1, 0),FALSE)","v":"野火止8"},null,null,23,{"$f":"VLOOKUP(AM15,市町村データ!A2:O106,MATCH(手順書_交通!$G$54, 市町村データ!A1:O1, 0),FALSE)","v":"畑中3"}]
[null,null,null,null,null,null,{"$f":"VLOOKUP(G15,市町村データ!A2:O106,MATCH(手順書_交通!$F$55, 市町村データ!A1:O1, 0),FALSE)","v":"○中野"},null,null,null,{"$f":"VLOOKUP(K15,市町村データ!A2:O106,MATCH(手順書_交通!$F$55, 市町村データ!A1:O1, 0),FALSE)","v":"○第二老人福祉センター"},null,null,null,{"$f":"VLOOKUP(O15,市町村データ!A2:O106,MATCH(手順書_交通!$F$55, 市町村データ!A1:O1, 0),FALSE)","v":""},null,null,null,{"$f":"VLOOKUP(S15,市町村データ!A2:O106,MATCH(手順書_交通!$F$55, 市町村データ!A1:O1, 0),FALSE)","v":"○新座駅北入口"},null,null,null,{"$f":"VLOOKUP(W15,市町村データ!A2:O106,MATCH(手順書_交通!$F$55, 市町村データ!A1:O1, 0),FALSE)","v":"◆新座駅"},null,null,null,{"$f":"VLOOKUP(AA15,市町村データ!A2:O106,MATCH(手順書_交通!$F$55, 市町村データ!A1:O1, 0),FALSE)","v":"○中堀"},null,null,null,{"$f":"VLOOKUP(AE15,市町村データ!A2:O106,MATCH(手順書_交通!$F$55, 市町村データ!A1:O1, 0),FALSE)","v":"○野火止中"},null,null,null,{"$f":"VLOOKUP(AI15,市町村データ!A2:O106,MATCH(手順書_交通!$F$55, 市町村データ!A1:O1, 0),FALSE)","v":"○新座警察署前"},null,null,null,{"$f":"VLOOKUP(AM15,市町村データ!A2:O106,MATCH(手順書_交通!$F$55, 市町村データ!A1:O1, 0),FALSE)","v":"○榎木"}]
[null,null,null,null,null,null,{"$f":"VLOOKUP(G15,市町村データ!A2:O106,MATCH(手順書_交通!$F$56, 市町村データ!A1:O1, 0),FALSE)","v":"○跡見女子大"},null,null,null,{"$f":"VLOOKUP(K15,市町村データ!A2:O106,MATCH(手順書_交通!$F$56, 市町村データ!A1:O1, 0),FALSE)","v":""},null,null,null,{"$f":"VLOOKUP(O15,市町村データ!A2:O106,MATCH(手順書_交通!$F$56, 市町村データ!A1:O1, 0),FALSE)","v":""},null,null,null,{"$f":"VLOOKUP(S15,市町村データ!A2:O106,MATCH(手順書_交通!$F$56, 市町村データ!A1:O1, 0),FALSE)","v":""},null,null,null,{"$f":"VLOOKUP(W15,市町村データ!A2:O106,MATCH(手順書_交通!$F$56, 市町村データ!A1:O1, 0),FALSE)","v":"○ふるさと小道"},null,null,null,{"$f":"VLOOKUP(AA15,市町村データ!A2:O106,MATCH(手順書_交通!$F$56, 市町村データ!A1:O1, 0),FALSE)","v":""},null,null,null,{"$f":"VLOOKUP(AE15,市町村データ!A2:O106,MATCH(手順書_交通!$F$56, 市町村データ!A1:O1, 0),FALSE)","v":"○野火止七丁目"},null,null,null,{"$f":"VLOOKUP(AI15,市町村データ!A2:O106,MATCH(手順書_交通!$F$56, 市町村データ!A1:O1, 0),FALSE)","v":"○野火止大門"},null,null,null,{"$f":"VLOOKUP(AM15,市町村データ!A2:O106,MATCH(手順書_交通!$F$56, 市町村データ!A1:O1, 0),FALSE)","v":""}]
[null,null,null,null,null,null,{"$f":"VLOOKUP(G15,市町村データ!A2:O106,MATCH(手順書_交通!$F$57, 市町村データ!A1:O1, 0),FALSE)","v":""},null,null,null,{"$f":"VLOOKUP(K15,市町村データ!A2:O106,MATCH(手順書_交通!$F$57, 市町村データ!A1:O1, 0),FALSE)","v":""},null,null,null,{"$f":"VLOOKUP(O15,市町村データ!A2:O106,MATCH(手順書_交通!$F$57, 市町村データ!A1:O1, 0),FALSE)","v":""},null,null,null,{"$f":"VLOOKUP(S15,市町村データ!A2:O106,MATCH(手順書_交通!$F$57, 市町村データ!A1:O1, 0),FALSE)","v":""},null,null,null,{"$f":"VLOOKUP(W15,市町村データ!A2:O106,MATCH(手順書_交通!$F$57, 市町村データ!A1:O1, 0),FALSE)","v":"○野火止角"},null,null,null,{"$f":"VLOOKUP(AA15,市町村データ!A2:O106,MATCH(手順書_交通!$F$57, 市町村データ!A1:O1, 0),FALSE)","v":""},null,null,null,{"$f":"VLOOKUP(AE15,市町村データ!A2:O106,MATCH(手順書_交通!$F$57, 市町村データ!A1:O1, 0),FALSE)","v":"○凸版印刷"},null,null,null,{"$f":"VLOOKUP(AI15,市町村データ!A2:O106,MATCH(手順書_交通!$F$57, 市町村データ!A1:O1, 0),FALSE)","v":"○野火止坂上"},null,null,null,{"$f":"VLOOKUP(AM15,市町村データ!A2:O106,MATCH(手順書_交通!$F$57, 市町村データ!A1:O1, 0),FALSE)","v":""}]
[null,null,"D",null,null,null,null,null,null,null,null,null,null,null,24,{"$f":"VLOOKUP(O19,市町村データ!A2:O106,MATCH(手順書_交通!$G$54, 市町村データ!A1:O1, 0),FALSE)","v":"菅沢2"},null,null,25,{"$f":"VLOOKUP(S19,市町村データ!A2:O106,MATCH(手順書_交通!$G$54, 市町村データ!A1:O1, 0),FALSE)","v":"菅沢1"},null,null,26,{"$f":"VLOOKUP(W19,市町村データ!A2:O106,MATCH(手順書_交通!$G$54, 市町村データ!A1:O1, 0),FALSE)","v":"野火止4"},null,null,27,{"$f":"VLOOKUP(AA19,市町村データ!A2:O106,MATCH(手順書_交通!$G$54, 市町村データ!A1:O1, 0),FALSE)","v":"野火止3"},null,null,28,{"$f":"VLOOKUP(AE19,市町村データ!A2:O106,MATCH(手順書_交通!$G$54, 市町村データ!A1:O1, 0),FALSE)","v":"野火止2"},null,null,29,{"$f":"VLOOKUP(AI19,市町村データ!A2:O106,MATCH(手順書_交通!$G$54, 市町村データ!A1:O1, 0),FALSE)","v":"野火止1"},null,null,30,{"$f":"VLOOKUP(AM19,市町村データ!A2:O106,MATCH(手順書_交通!$G$54, 市町村データ!A1:O1, 0),FALSE)","v":"畑中1"},null,null,31,{"$f":"VLOOKUP(AQ19,市町村データ!A2:O106,MATCH(手順書_交通!$G$54, 市町村データ!A1:O1, 0),FALSE)","v":"畑中2"}]
[null,null,null,null,null,null,null,null,null,null,null,null,null,null,{"$f":"VLOOKUP(O19,市町村データ!A2:O106,MATCH(手順書_交通!$F$55, 市町村データ!A1:O1, 0),FALSE)","v":"○十文字女子大前"},null,null,null,{"$f":"VLOOKUP(S19,市町村データ!A2:O106,MATCH(手順書_交通!$F$55, 市町村データ!A1:O1, 0),FALSE)","v":"○オリエンタル酵母工業前"},null,null,null,{"$f":"VLOOKUP(W19,市町村データ!A2:O106,MATCH(手順書_交通!$F$55, 市町村データ!A1:O1, 0),FALSE)","v":"○望芙台住宅"},null,null,null,{"$f":"VLOOKUP(AA19,市町村データ!A2:O106,MATCH(手順書_交通!$F$55, 市町村データ!A1:O1, 0),FALSE)","v":"○新座市役所"},null,null,null,{"$f":"VLOOKUP(AE19,市町村データ!A2:O106,MATCH(手順書_交通!$F$55, 市町村データ!A1:O1, 0),FALSE)","v":"○新座中学校"},null,null,null,{"$f":"VLOOKUP(AI19,市町村データ!A2:O106,MATCH(手順書_交通!$F$55, 市町村データ!A1:O1, 0),FALSE)","v":"○野火止ふれあい公園前"},null,null,null,{"$f":"VLOOKUP(AM19,市町村データ!A2:O106,MATCH(手順書_交通!$F$55, 市町村データ!A1:O1, 0),FALSE)","v":"○エクレール前"},null,null,null,{"$f":"VLOOKUP(AQ19,市町村データ!A2:O106,MATCH(手順書_交通!$F$55, 市町村データ!A1:O1, 0),FALSE)","v":"○東福寺前"}]
[null,null,null,null,null,null,null,null,null,null,null,null,null,null,{"$f":"VLOOKUP(O19,市町村データ!A2:O106,MATCH(手順書_交通!$F$56, 市町村データ!A1:O1, 0),FALSE)","v":"○中郷"},null,null,null,{"$f":"VLOOKUP(S19,市町村データ!A2:O106,MATCH(手順書_交通!$F$56, 市町村データ!A1:O1, 0),FALSE)","v":"○野火止三丁目"},null,null,null,{"$f":"VLOOKUP(W19,市町村データ!A2:O106,MATCH(手順書_交通!$F$56, 市町村データ!A1:O1, 0),FALSE)","v":"○野火止小学校"},null,null,null,{"$f":"VLOOKUP(AA19,市町村データ!A2:O106,MATCH(手順書_交通!$F$56, 市町村データ!A1:O1, 0),FALSE)","v":"○陣屋"},null,null,null,{"$f":"VLOOKUP(AE19,市町村データ!A2:O106,MATCH(手順書_交通!$F$56, 市町村データ!A1:O1, 0),FALSE)","v":"○新座中学校"},null,null,null,{"$f":"VLOOKUP(AI19,市町村データ!A2:O106,MATCH(手順書_交通!$F$56, 市町村データ!A1:O1, 0),FALSE)","v":""},null,null,null,{"$f":"VLOOKUP(AM19,市町村データ!A2:O106,MATCH(手順書_交通!$F$56, 市町村データ!A1:O1, 0),FALSE)","v":"○榎木ガード"},null,null,null,{"$f":"VLOOKUP(AQ19,市町村データ!A2:O106,MATCH(手順書_交通!$F$56, 市町村データ!A1:O1, 0),FALSE)","v":""}]
[null,null,null,null,null,null,null,null,null,null,null,null,null,null,{"$f":"VLOOKUP(O19,市町村データ!A2:O106,MATCH(手順書_交通!$F$57, 市町村データ!A1:O1, 0),FALSE)","v":"○菅沢子供広場"},null,null,null,{"$f":"VLOOKUP(S19,市町村データ!A2:O106,MATCH(手順書_交通!$F$57, 市町村データ!A1:O1, 0),FALSE)","v":"○あたご橋"},null,null,null,{"$f":"VLOOKUP(W19,市町村データ!A2:O106,MATCH(手順書_交通!$F$57, 市町村データ!A1:O1, 0),FALSE)","v":""},null,null,null,{"$f":"VLOOKUP(AA19,市町村データ!A2:O106,MATCH(手順書_交通!$F$57, 市町村データ!A1:O1, 0),FALSE)","v":"○平林寺"},null,null,null,{"$f":"VLOOKUP(AE19,市町村データ!A2:O106,MATCH(手順書_交通!$F$57, 市町村データ!A1:O1, 0),FALSE)","v":"○台"},null,null,null,{"$f":"VLOOKUP(AI19,市町村データ!A2:O106,MATCH(手順書_交通!$F$57, 市町村データ!A1:O1, 0),FALSE)","v":""},null,null,null,{"$f":"VLOOKUP(AM19,市町村データ!A2:O106,MATCH(手順書_交通!$F$57, 市町村データ!A1:O1, 0),FALSE)","v":"○畑中ふれあい遊園"},null,null,null,{"$f":"VLOOKUP(AQ19,市町村データ!A2:O106,MATCH(手順書_交通!$F$57, 市町村データ!A1:O1, 0),FALSE)","v":""}]
[null,null,"E",null,null,null,null,null,null,null,null,null,null,null,32,{"$f":"VLOOKUP(O23,市町村データ!A2:O106,MATCH(手順書_交通!$G$54, 市町村データ!A1:O1, 0),FALSE)","v":"あたご3"},null,null,33,{"$f":"VLOOKUP(S23,市町村データ!A2:O106,MATCH(手順書_交通!$G$54, 市町村データ!A1:O1, 0),FALSE)","v":"あたご2"},null,null,34,{"$f":"VLOOKUP(W23,市町村データ!A2:O106,MATCH(手順書_交通!$G$54, 市町村データ!A1:O1, 0),FALSE)","v":"あたご1"},null,null,35,{"$f":"VLOOKUP(AA23,市町村データ!A2:O106,MATCH(手順書_交通!$G$54, 市町村データ!A1:O1, 0),FALSE)","v":"本多2"},null,null,36,{"$f":"VLOOKUP(AE23,市町村データ!A2:O106,MATCH(手順書_交通!$G$54, 市町村データ!A1:O1, 0),FALSE)","v":"本多1"},null,null,37,{"$f":"VLOOKUP(AI23,市町村データ!A2:O106,MATCH(手順書_交通!$G$54, 市町村データ!A1:O1, 0),FALSE)","v":"堀ノ内1"},null,null,38,{"$f":"VLOOKUP(AM23,市町村データ!A2:O106,MATCH(手順書_交通!$G$54, 市町村データ!A1:O1, 0),FALSE)","v":"馬場1"},null,null,39,{"$f":"VLOOKUP(AQ23,市町村データ!A2:O106,MATCH(手順書_交通!$G$54, 市町村データ!A1:O1, 0),FALSE)","v":"馬場2"},null,null,40,{"$f":"VLOOKUP(AU23,市町村データ!A2:O106,MATCH(手順書_交通!$G$54, 市町村データ!A1:O1, 0),FALSE)","v":"新塚1"},null,null,41,{"$f":"VLOOKUP(AY23,市町村データ!A2:O106,MATCH(手順書_交通!$G$54, 市町村データ!A1:O1, 0),FALSE)","v":"新塚他の地域"}]
[null,null,null,null,null,null,null,null,null,null,null,null,null,null,{"$f":"VLOOKUP(O23,市町村データ!A2:O106,MATCH(手順書_交通!$F$55, 市町村データ!A1:O1, 0),FALSE)","v":"○あたご第二児童遊園"},null,null,null,{"$f":"VLOOKUP(S23,市町村データ!A2:O106,MATCH(手順書_交通!$F$55, 市町村データ!A1:O1, 0),FALSE)","v":"○菅沢"},null,null,null,{"$f":"VLOOKUP(W23,市町村データ!A2:O106,MATCH(手順書_交通!$F$55, 市町村データ!A1:O1, 0),FALSE)","v":""},null,null,null,{"$f":"VLOOKUP(AA23,市町村データ!A2:O106,MATCH(手順書_交通!$F$55, 市町村データ!A1:O1, 0),FALSE)","v":"○史跡公園"},null,null,null,{"$f":"VLOOKUP(AE23,市町村データ!A2:O106,MATCH(手順書_交通!$F$55, 市町村データ!A1:O1, 0),FALSE)","v":"○新座総合体育館入口"},null,null,null,{"$f":"VLOOKUP(AI23,市町村データ!A2:O106,MATCH(手順書_交通!$F$55, 市町村データ!A1:O1, 0),FALSE)","v":""},null,null,null,{"$f":"VLOOKUP(AM23,市町村データ!A2:O106,MATCH(手順書_交通!$F$55, 市町村データ!A1:O1, 0),FALSE)","v":"○原ヶ谷戸"},null,null,null,{"$f":"VLOOKUP(AQ23,市町村データ!A2:O106,MATCH(手順書_交通!$F$55, 市町村データ!A1:O1, 0),FALSE)","v":""},null,null,null,{"$f":"VLOOKUP(AU23,市町村データ!A2:O106,MATCH(手順書_交通!$F$55, 市町村データ!A1:O1, 0),FALSE)","v":"○新座市営墓園"},null,null,null,{"$f":"VLOOKUP(AY23,市町村データ!A2:O106,MATCH(手順書_交通!$F$55, 市町村データ!A1:O1, 0),FALSE)","v":""}]
[null,null,null,null,null,null,null,null,null,null,null,null,null,null,{"$f":"VLOOKUP(O23,市町村データ!A2:O106,MATCH(手順書_交通!$F$56, 市町村データ!A1:O1, 0),FALSE)","v":""},null,null,null,{"$f":"VLOOKUP(S23,市町村データ!A2:O106,MATCH(手順書_交通!$F$56, 市町村データ!A1:O1, 0),FALSE)","v":""},null,null,null,{"$f":"VLOOKUP(W23,市町村データ!A2:O106,MATCH(手順書_交通!$F$56, 市町村データ!A1:O1, 0),FALSE)","v":""},null,null,null,{"$f":"VLOOKUP(AA23,市町村データ!A2:O106,MATCH(手順書_交通!$F$56, 市町村データ!A1:O1, 0),FALSE)","v":""},null,null,null,{"$f":"VLOOKUP(AE23,市町村データ!A2:O106,MATCH(手順書_交通!$F$56, 市町村データ!A1:O1, 0),FALSE)","v":"○本多一丁目"},null,null,null,{"$f":"VLOOKUP(AI23,市町村データ!A2:O106,MATCH(手順書_交通!$F$56, 市町村データ!A1:O1, 0),FALSE)","v":""},null,null,null,{"$f":"VLOOKUP(AM23,市町村データ!A2:O106,MATCH(手順書_交通!$F$56, 市町村データ!A1:O1, 0),FALSE)","v":"○蓮光寺前"},null,null,null,{"$f":"VLOOKUP(AQ23,市町村データ!A2:O106,MATCH(手順書_交通!$F$56, 市町村データ!A1:O1, 0),FALSE)","v":""},null,null,null,{"$f":"VLOOKUP(AU23,市町村データ!A2:O106,MATCH(手順書_交通!$F$56, 市町村データ!A1:O1, 0),FALSE)","v":""},null,null,null,{"$f":"VLOOKUP(AY23,市町村データ!A2:O106,MATCH(手順書_交通!$F$56, 市町村データ!A1:O1, 0),FALSE)","v":""}]
[null,null,null,null,null,null,null,null,null,null,null,null,null,null,{"$f":"VLOOKUP(O23,市町村データ!A2:O106,MATCH(手順書_交通!$F$57, 市町村データ!A1:O1, 0),FALSE)","v":""},null,null,null,{"$f":"VLOOKUP(S23,市町村データ!A2:O106,MATCH(手順書_交通!$F$57, 市町村データ!A1:O1, 0),FALSE)","v":""},null,null,null,{"$f":"VLOOKUP(W23,市町村データ!A2:O106,MATCH(手順書_交通!$F$57, 市町村データ!A1:O1, 0),FALSE)","v":""},null,null,null,{"$f":"VLOOKUP(AA23,市町村データ!A2:O106,MATCH(手順書_交通!$F$57, 市町村データ!A1:O1, 0),FALSE)","v":""},null,null,null,{"$f":"VLOOKUP(AE23,市町村データ!A2:O106,MATCH(手順書_交通!$F$57, 市町村データ!A1:O1, 0),FALSE)","v":"○新座営業所"},null,null,null,{"$f":"VLOOKUP(AI23,市町村データ!A2:O106,MATCH(手順書_交通!$F$57, 市町村データ!A1:O1, 0),FALSE)","v":""},null,null,null,{"$f":"VLOOKUP(AM23,市町村データ!A2:O106,MATCH(手順書_交通!$F$57, 市町村データ!A1:O1, 0),FALSE)","v":""},null,null,null,{"$f":"VLOOKUP(AQ23,市町村データ!A2:O106,MATCH(手順書_交通!$F$57, 市町村データ!A1:O1, 0),FALSE)","v":""},null,null,null,{"$f":"VLOOKUP(AU23,市町村データ!A2:O106,MATCH(手順書_交通!$F$57, 市町村データ!A1:O1, 0),FALSE)","v":""},null,null,null,{"$f":"VLOOKUP(AY23,市町村データ!A2:O106,MATCH(手順書_交通!$F$57, 市町村データ!A1:O1, 0),FALSE)","v":""}]
[null,null,"F",null,null,null,null,null,null,null,null,null,null,null,null,null,null,null,42,{"$f":"VLOOKUP(S27,市町村データ!A2:O106,MATCH(手順書_交通!$G$54, 市町村データ!A1:O1, 0),FALSE)","v":"西堀2"},null,null,43,{"$f":"VLOOKUP(W27,市町村データ!A2:O106,MATCH(手順書_交通!$G$54, 市町村データ!A1:O1, 0),FALSE)","v":"西堀1"},null,null,44,{"$f":"VLOOKUP(AA27,市町村データ!A2:O106,MATCH(手順書_交通!$G$54, 市町村データ!A1:O1, 0),FALSE)","v":"石神5"},null,null,45,{"$f":"VLOOKUP(AE27,市町村データ!A2:O106,MATCH(手順書_交通!$G$54, 市町村データ!A1:O1, 0),FALSE)","v":"堀ノ内3"},null,null,46,{"$f":"VLOOKUP(AI27,市町村データ!A2:O106,MATCH(手順書_交通!$G$54, 市町村データ!A1:O1, 0),FALSE)","v":"堀ノ内2"},null,null,47,{"$f":"VLOOKUP(AM27,市町村データ!A2:O106,MATCH(手順書_交通!$G$54, 市町村データ!A1:O1, 0),FALSE)","v":"馬場4"},null,null,48,{"$f":"VLOOKUP(AQ27,市町村データ!A2:O106,MATCH(手順書_交通!$G$54, 市町村データ!A1:O1, 0),FALSE)","v":"馬場3"},null,null,49,{"$f":"VLOOKUP(AU27,市町村データ!A2:O106,MATCH(手順書_交通!$G$54, 市町村データ!A1:O1, 0),FALSE)","v":"栄1"},null,null,50,{"$f":"VLOOKUP(AY27,市町村データ!A2:O106,MATCH(手順書_交通!$G$54, 市町村データ!A1:O1, 0),FALSE)","v":"栄2"},null,null,51,{"$f":"VLOOKUP(BC27,市町村データ!A2:O106,MATCH(手順書_交通!$G$54, 市町村データ!A1:O1, 0),FALSE)","v":"栄3"},null,null,52,{"$f":"VLOOKUP(BG27,市町村データ!A2:O106,MATCH(手順書_交通!$G$54, 市町村データ!A1:O1, 0),FALSE)","v":"栄4"},null,null,53,{"$f":"VLOOKUP(BK27,市町村データ!A2:O106,MATCH(手順書_交通!$G$54, 市町村データ!A1:O1, 0),FALSE)","v":"栄5"}]
[null,null,null,null,null,null,null,null,null,null,null,null,null,null,null,null,null,null,{"$f":"VLOOKUP(S27,市町村データ!A2:O106,MATCH(手順書_交通!$F$55, 市町村データ!A1:O1, 0),FALSE)","v":"○西堀小学校"},null,null,null,{"$f":"VLOOKUP(W27,市町村データ!A2:O106,MATCH(手順書_交通!$F$55, 市町村データ!A1:O1, 0),FALSE)","v":"○西堀"},null,null,null,{"$f":"VLOOKUP(AA27,市町村データ!A2:O106,MATCH(手順書_交通!$F$55, 市町村データ!A1:O1, 0),FALSE)","v":""},null,null,null,{"$f":"VLOOKUP(AE27,市町村データ!A2:O106,MATCH(手順書_交通!$F$55, 市町村データ!A1:O1, 0),FALSE)","v":"○新座市児童センター前"},null,null,null,{"$f":"VLOOKUP(AI27,市町村データ!A2:O106,MATCH(手順書_交通!$F$55, 市町村データ!A1:O1, 0),FALSE)","v":""},null,null,null,{"$f":"VLOOKUP(AM27,市町村データ!A2:O106,MATCH(手順書_交通!$F$55, 市町村データ!A1:O1, 0),FALSE)","v":"○新座高校"},null,null,null,{"$f":"VLOOKUP(AQ27,市町村データ!A2:O106,MATCH(手順書_交通!$F$55, 市町村データ!A1:O1, 0),FALSE)","v":""},null,null,null,{"$f":"VLOOKUP(AU27,市町村データ!A2:O106,MATCH(手順書_交通!$F$55, 市町村データ!A1:O1, 0),FALSE)","v":""},null,null,null,{"$f":"VLOOKUP(AY27,市町村データ!A2:O106,MATCH(手順書_交通!$F$55, 市町村データ!A1:O1, 0),FALSE)","v":"○新座栄"},null,null,null,{"$f":"VLOOKUP(BC27,市町村データ!A2:O106,MATCH(手順書_交通!$F$55, 市町村データ!A1:O1, 0),FALSE)","v":"○栄公民館前(福祉の里)"},null,null,null,{"$f":"VLOOKUP(BG27,市町村データ!A2:O106,MATCH(手順書_交通!$F$55, 市町村データ!A1:O1, 0),FALSE)","v":"○都民農園セコニック"},null,null,null,{"$f":"VLOOKUP(BK27,市町村データ!A2:O106,MATCH(手順書_交通!$F$55, 市町村データ!A1:O1, 0),FALSE)","v":""}]
[null,null,null,null,null,null,null,null,null,null,null,null,null,null,null,null,null,null,{"$f":"VLOOKUP(S27,市町村データ!A2:O106,MATCH(手順書_交通!$F$56, 市町村データ!A1:O1, 0),FALSE)","v":"○西堀南"},null,null,null,{"$f":"VLOOKUP(W27,市町村データ!A2:O106,MATCH(手順書_交通!$F$56, 市町村データ!A1:O1, 0),FALSE)","v":"○小山入口"},null,null,null,{"$f":"VLOOKUP(AA27,市町村データ!A2:O106,MATCH(手順書_交通!$F$56, 市町村データ!A1:O1, 0),FALSE)","v":""},null,null,null,{"$f":"VLOOKUP(AE27,市町村データ!A2:O106,MATCH(手順書_交通!$F$56, 市町村データ!A1:O1, 0),FALSE)","v":"○福祉センター入口"},null,null,null,{"$f":"VLOOKUP(AI27,市町村データ!A2:O106,MATCH(手順書_交通!$F$56, 市町村データ!A1:O1, 0),FALSE)","v":""},null,null,null,{"$f":"VLOOKUP(AM27,市町村データ!A2:O106,MATCH(手順書_交通!$F$56, 市町村データ!A1:O1, 0),FALSE)","v":""},null,null,null,{"$f":"VLOOKUP(AQ27,市町村データ!A2:O106,MATCH(手順書_交通!$F$56, 市町村データ!A1:O1, 0),FALSE)","v":""},null,null,null,{"$f":"VLOOKUP(AU27,市町村データ!A2:O106,MATCH(手順書_交通!$F$56, 市町村データ!A1:O1, 0),FALSE)","v":""},null,null,null,{"$f":"VLOOKUP(AY27,市町村データ!A2:O106,MATCH(手順書_交通!$F$56, 市町村データ!A1:O1, 0),FALSE)","v":"○妙音沢入口"},null,null,null,{"$f":"VLOOKUP(BC27,市町村データ!A2:O106,MATCH(手順書_交通!$F$56, 市町村データ!A1:O1, 0),FALSE)","v":""},null,null,null,{"$f":"VLOOKUP(BG27,市町村データ!A2:O106,MATCH(手順書_交通!$F$56, 市町村データ!A1:O1, 0),FALSE)","v":""},null,null,null,{"$f":"VLOOKUP(BK27,市町村データ!A2:O106,MATCH(手順書_交通!$F$56, 市町村データ!A1:O1, 0),FALSE)","v":""}]
[null,null,null,null,null,null,null,null,null,null,null,null,null,null,null,null,null,null,{"$f":"VLOOKUP(S27,市町村データ!A2:O106,MATCH(手順書_交通!$F$57, 市町村データ!A1:O1, 0),FALSE)","v":""},null,null,null,{"$f":"VLOOKUP(W27,市町村データ!A2:O106,MATCH(手順書_交通!$F$57, 市町村データ!A1:O1, 0),FALSE)","v":""},null,null,null,{"$f":"VLOOKUP(AA27,市町村データ!A2:O106,MATCH(手順書_交通!$F$57, 市町村データ!A1:O1, 0),FALSE)","v":""},null,null,null,{"$f":"VLOOKUP(AE27,市町村データ!A2:O106,MATCH(手順書_交通!$F$57, 市町村データ!A1:O1, 0),FALSE)","v":"○老人福祉センター"},null,null,null,{"$f":"VLOOKUP(AI27,市町村データ!A2:O106,MATCH(手順書_交通!$F$57, 市町村データ!A1:O1, 0),FALSE)","v":""},null,null,null,{"$f":"VLOOKUP(AM27,市町村データ!A2:O106,MATCH(手順書_交通!$F$57, 市町村データ!A1:O1, 0),FALSE)","v":""},null,null,null,{"$f":"VLOOKUP(AQ27,市町村データ!A2:O106,MATCH(手順書_交通!$F$57, 市町村データ!A1:O1, 0),FALSE)","v":""},null,null,null,{"$f":"VLOOKUP(AU27,市町村データ!A2:O106,MATCH(手順書_交通!$F$57, 市町村データ!A1:O1, 0),FALSE)","v":""},null,null,null,{"$f":"VLOOKUP(AY27,市町村データ!A2:O106,MATCH(手順書_交通!$F$57, 市町村データ!A1:O1, 0),FALSE)","v":""},null,null,null,{"$f":"VLOOKUP(BC27,市町村データ!A2:O106,MATCH(手順書_交通!$F$57, 市町村データ!A1:O1, 0),FALSE)","v":""},null,null,null,{"$f":"VLOOKUP(BG27,市町村データ!A2:O106,MATCH(手順書_交通!$F$57, 市町村データ!A1:O1, 0),FALSE)","v":""},null,null,null,{"$f":"VLOOKUP(BK27,市町村データ!A2:O106,MATCH(手順書_交通!$F$57, 市町村データ!A1:O1, 0),FALSE)","v":""}]
[null,null,"G",null,null,null,54,{"$f":"VLOOKUP(G31,市町村データ!A2:O106,MATCH(手順書_交通!$G$54, 市町村データ!A1:O1, 0),FALSE)","v":"新堀3"},null,null,55,{"$f":"VLOOKUP(K31,市町村データ!A2:O106,MATCH(手順書_交通!$G$54, 市町村データ!A1:O1, 0),FALSE)","v":"新堀2"},null,null,56,{"$f":"VLOOKUP(O31,市町村データ!A2:O106,MATCH(手順書_交通!$G$54, 市町村データ!A1:O1, 0),FALSE)","v":"新堀1"},null,null,57,{"$f":"VLOOKUP(S31,市町村データ!A2:O106,MATCH(手順書_交通!$G$54, 市町村データ!A1:O1, 0),FALSE)","v":"西堀3"},null,null,null,null,null,null,58,{"$f":"VLOOKUP(AA31,市町村データ!A2:O106,MATCH(手順書_交通!$G$54, 市町村データ!A1:O1, 0),FALSE)","v":"石神4"},null,null,59,{"$f":"VLOOKUP(AE31,市町村データ!A2:O106,MATCH(手順書_交通!$G$54, 市町村データ!A1:O1, 0),FALSE)","v":"石神1"},null,null,60,{"$f":"VLOOKUP(AI31,市町村データ!A2:O106,MATCH(手順書_交通!$G$54, 市町村データ!A1:O1, 0),FALSE)","v":"道場2"},null,null,61,{"$f":"VLOOKUP(AM31,市町村データ!A2:O106,MATCH(手順書_交通!$G$54, 市町村データ!A1:O1, 0),FALSE)","v":"道場1"},null,null,null,null,null,null,62,{"$f":"VLOOKUP(AU31,市町村データ!A2:O106,MATCH(手順書_交通!$G$54, 市町村データ!A1:O1, 0),FALSE)","v":"池田1"},null,null,63,{"$f":"VLOOKUP(AY31,市町村データ!A2:O106,MATCH(手順書_交通!$G$54, 市町村データ!A1:O1, 0),FALSE)","v":"池田2"},null,null,64,{"$f":"VLOOKUP(BC31,市町村データ!A2:O106,MATCH(手順書_交通!$G$54, 市町村データ!A1:O1, 0),FALSE)","v":"池田3"},null,null,65,{"$f":"VLOOKUP(BG31,市町村データ!A2:O106,MATCH(手順書_交通!$G$54, 市町村データ!A1:O1, 0),FALSE)","v":"池田4"},null,null,66,{"$f":"VLOOKUP(BK31,市町村データ!A2:O106,MATCH(手順書_交通!$G$54, 市町村データ!A1:O1, 0),FALSE)","v":"池田5"}]
[null,null,null,null,null,null,{"$f":"VLOOKUP(G31,市町村データ!A2:O106,MATCH(手順書_交通!$F$55, 市町村データ!A1:O1, 0),FALSE)","v":""},null,null,null,{"$f":"VLOOKUP(K31,市町村データ!A2:O106,MATCH(手順書_交通!$F$55, 市町村データ!A1:O1, 0),FALSE)","v":""},null,null,null,{"$f":"VLOOKUP(O31,市町村データ!A2:O106,MATCH(手順書_交通!$F$55, 市町村データ!A1:O1, 0),FALSE)","v":""},null,null,null,{"$f":"VLOOKUP(S31,市町村データ!A2:O106,MATCH(手順書_交通!$F$55, 市町村データ!A1:O1, 0),FALSE)","v":""},null,null,null,null,null,null,null,{"$f":"VLOOKUP(AA31,市町村データ!A2:O106,MATCH(手順書_交通!$F$55, 市町村データ!A1:O1, 0),FALSE)","v":""},null,null,null,{"$f":"VLOOKUP(AE31,市町村データ!A2:O106,MATCH(手順書_交通!$F$55, 市町村データ!A1:O1, 0),FALSE)","v":"○新座病院前"},null,null,null,{"$f":"VLOOKUP(AI31,市町村データ!A2:O106,MATCH(手順書_交通!$F$55, 市町村データ!A1:O1, 0),FALSE)","v":"○堀の内橋"},null,null,null,{"$f":"VLOOKUP(AM31,市町村データ!A2:O106,MATCH(手順書_交通!$F$55, 市町村データ!A1:O1, 0),FALSE)","v":""},null,null,null,null,null,null,null,{"$f":"VLOOKUP(AU31,市町村データ!A2:O106,MATCH(手順書_交通!$F$55, 市町村データ!A1:O1, 0),FALSE)","v":""},null,null,null,{"$f":"VLOOKUP(AY31,市町村データ!A2:O106,MATCH(手順書_交通!$F$55, 市町村データ!A1:O1, 0),FALSE)","v":"○池田二丁目"},null,null,null,{"$f":"VLOOKUP(BC31,市町村データ!A2:O106,MATCH(手順書_交通!$F$55, 市町村データ!A1:O1, 0),FALSE)","v":""},null,null,null,{"$f":"VLOOKUP(BG31,市町村データ!A2:O106,MATCH(手順書_交通!$F$55, 市町村データ!A1:O1, 0),FALSE)","v":"○池田小学校入口"},null,null,null,{"$f":"VLOOKUP(BK31,市町村データ!A2:O106,MATCH(手順書_交通!$F$55, 市町村データ!A1:O1, 0),FALSE)","v":""}]
[null,null,null,null,null,null,{"$f":"VLOOKUP(G31,市町村データ!A2:O106,MATCH(手順書_交通!$F$56, 市町村データ!A1:O1, 0),FALSE)","v":""},null,null,null,{"$f":"VLOOKUP(K31,市町村データ!A2:O106,MATCH(手順書_交通!$F$56, 市町村データ!A1:O1, 0),FALSE)","v":""},null,null,null,{"$f":"VLOOKUP(O31,市町村データ!A2:O106,MATCH(手順書_交通!$F$56, 市町村データ!A1:O1, 0),FALSE)","v":""},null,null,null,{"$f":"VLOOKUP(S31,市町村データ!A2:O106,MATCH(手順書_交通!$F$56, 市町村データ!A1:O1, 0),FALSE)","v":""},null,null,null,null,null,null,null,{"$f":"VLOOKUP(AA31,市町村データ!A2:O106,MATCH(手順書_交通!$F$56, 市町村データ!A1:O1, 0),FALSE)","v":""},null,null,null,{"$f":"VLOOKUP(AE31,市町村データ!A2:O106,MATCH(手順書_交通!$F$56, 市町村データ!A1:O1, 0),FALSE)","v":""},null,null,null,{"$f":"VLOOKUP(AI31,市町村データ!A2:O106,MATCH(手順書_交通!$F$56, 市町村データ!A1:O1, 0),FALSE)","v":"○片山小学校"},null,null,null,{"$f":"VLOOKUP(AM31,市町村データ!A2:O106,MATCH(手順書_交通!$F$56, 市町村データ!A1:O1, 0),FALSE)","v":""},null,null,null,null,null,null,null,{"$f":"VLOOKUP(AU31,市町村データ!A2:O106,MATCH(手順書_交通!$F$56, 市町村データ!A1:O1, 0),FALSE)","v":""},null,null,null,{"$f":"VLOOKUP(AY31,市町村データ!A2:O106,MATCH(手順書_交通!$F$56, 市町村データ!A1:O1, 0),FALSE)","v":""},null,null,null,{"$f":"VLOOKUP(BC31,市町村データ!A2:O106,MATCH(手順書_交通!$F$56, 市町村データ!A1:O1, 0),FALSE)","v":""},null,null,null,{"$f":"VLOOKUP(BG31,市町村データ!A2:O106,MATCH(手順書_交通!$F$56, 市町村データ!A1:O1, 0),FALSE)","v":""},null,null,null,{"$f":"VLOOKUP(BK31,市町村データ!A2:O106,MATCH(手順書_交通!$F$56, 市町村データ!A1:O1, 0),FALSE)","v":""}]
[null,null,null,null,null,null,{"$f":"VLOOKUP(G31,市町村データ!A2:O106,MATCH(手順書_交通!$F$57, 市町村データ!A1:O1, 0),FALSE)","v":""},null,null,null,{"$f":"VLOOKUP(K31,市町村データ!A2:O106,MATCH(手順書_交通!$F$57, 市町村データ!A1:O1, 0),FALSE)","v":""},null,null,null,{"$f":"VLOOKUP(O31,市町村データ!A2:O106,MATCH(手順書_交通!$F$57, 市町村データ!A1:O1, 0),FALSE)","v":""},null,null,null,{"$f":"VLOOKUP(S31,市町村データ!A2:O106,MATCH(手順書_交通!$F$57, 市町村データ!A1:O1, 0),FALSE)","v":""},null,null,null,null,null,null,null,{"$f":"VLOOKUP(AA31,市町村データ!A2:O106,MATCH(手順書_交通!$F$57, 市町村データ!A1:O1, 0),FALSE)","v":""},null,null,null,{"$f":"VLOOKUP(AE31,市町村データ!A2:O106,MATCH(手順書_交通!$F$57, 市町村データ!A1:O1, 0),FALSE)","v":""},null,null,null,{"$f":"VLOOKUP(AI31,市町村データ!A2:O106,MATCH(手順書_交通!$F$57, 市町村データ!A1:O1, 0),FALSE)","v":"○道場"},null,null,null,{"$f":"VLOOKUP(AM31,市町村データ!A2:O106,MATCH(手順書_交通!$F$57, 市町村データ!A1:O1, 0),FALSE)","v":""},null,null,null,null,null,null,null,{"$f":"VLOOKUP(AU31,市町村データ!A2:O106,MATCH(手順書_交通!$F$57, 市町村データ!A1:O1, 0),FALSE)","v":""},null,null,null,{"$f":"VLOOKUP(AY31,市町村データ!A2:O106,MATCH(手順書_交通!$F$57, 市町村データ!A1:O1, 0),FALSE)","v":""},null,null,null,{"$f":"VLOOKUP(BC31,市町村データ!A2:O106,MATCH(手順書_交通!$F$57, 市町村データ!A1:O1, 0),FALSE)","v":""},null,null,null,{"$f":"VLOOKUP(BG31,市町村データ!A2:O106,MATCH(手順書_交通!$F$57, 市町村データ!A1:O1, 0),FALSE)","v":""},null,null,null,{"$f":"VLOOKUP(BK31,市町村データ!A2:O106,MATCH(手順書_交通!$F$57, 市町村データ!A1:O1, 0),FALSE)","v":""}]
[null,null,"H",null,null,null,null,null,null,null,null,null,null,null,null,null,null,null,null,null,null,null,null,null,null,null,67,{"$f":"VLOOKUP(AA35,市町村データ!A2:O106,MATCH(手順書_交通!$G$54, 市町村データ!A1:O1, 0),FALSE)","v":"石神3"},null,null,68,{"$f":"VLOOKUP(AE35,市町村データ!A2:O106,MATCH(手順書_交通!$G$54, 市町村データ!A1:O1, 0),FALSE)","v":"石神2"},null,null,null,null,null,null,null,null,null,null,null,null,null,null,null,null,null,null,null,null,null,null,69,{"$f":"VLOOKUP(BC35,市町村データ!A2:O106,MATCH(手順書_交通!$G$54, 市町村データ!A1:O1, 0),FALSE)","v":"片山1"},null,null,70,{"$f":"VLOOKUP(BG35,市町村データ!A2:O106,MATCH(手順書_交通!$G$54, 市町村データ!A1:O1, 0),FALSE)","v":"片山2"},null,null,71,{"$f":"VLOOKUP(BK35,市町村データ!A2:O106,MATCH(手順書_交通!$G$54, 市町村データ!A1:O1, 0),FALSE)","v":"片山3"}]
[null,null,null,null,null,null,null,null,null,null,null,null,null,null,null,null,null,null,null,null,null,null,null,null,null,null,{"$f":"VLOOKUP(AA35,市町村データ!A2:O106,MATCH(手順書_交通!$F$55, 市町村データ!A1:O1, 0),FALSE)","v":""},null,null,null,{"$f":"VLOOKUP(AE35,市町村データ!A2:O106,MATCH(手順書_交通!$F$55, 市町村データ!A1:O1, 0),FALSE)","v":"○堀ノ内病院"},null,null,null,null,null,null,null,null,null,null,null,null,null,null,null,null,null,null,null,null,null,null,null,{"$f":"VLOOKUP(BC35,市町村データ!A2:O106,MATCH(手順書_交通!$F$55, 市町村データ!A1:O1, 0),FALSE)","v":"○あけぼの住宅前"},null,null,null,{"$f":"VLOOKUP(BG35,市町村データ!A2:O106,MATCH(手順書_交通!$F$55, 市町村データ!A1:O1, 0),FALSE)","v":"○片山二丁目"},null,null,null,{"$f":"VLOOKUP(BK35,市町村データ!A2:O106,MATCH(手順書_交通!$F$55, 市町村データ!A1:O1, 0),FALSE)","v":"○庚申塚前"}]
[null,null,null,null,null,null,null,null,null,null,null,null,null,null,null,null,null,null,null,null,null,null,null,null,null,null,{"$f":"VLOOKUP(AA35,市町村データ!A2:O106,MATCH(手順書_交通!$F$56, 市町村データ!A1:O1, 0),FALSE)","v":""},null,null,null,{"$f":"VLOOKUP(AE35,市町村データ!A2:O106,MATCH(手順書_交通!$F$56, 市町村データ!A1:O1, 0),FALSE)","v":""},null,null,null,null,null,null,null,null,null,null,null,null,null,null,null,null,null,null,null,null,null,null,null,{"$f":"VLOOKUP(BC35,市町村データ!A2:O106,MATCH(手順書_交通!$F$56, 市町村データ!A1:O1, 0),FALSE)","v":""},null,null,null,{"$f":"VLOOKUP(BG35,市町村データ!A2:O106,MATCH(手順書_交通!$F$56, 市町村データ!A1:O1, 0),FALSE)","v":""},null,null,null,{"$f":"VLOOKUP(BK35,市町村データ!A2:O106,MATCH(手順書_交通!$F$56, 市町村データ!A1:O1, 0),FALSE)","v":""}]
[null,null,null,null,null,null,null,null,null,null,null,null,null,null,null,null,null,null,null,null,null,null,null,null,null,null,{"$f":"VLOOKUP(AA35,市町村データ!A2:O106,MATCH(手順書_交通!$F$57, 市町村データ!A1:O1, 0),FALSE)","v":""},null,null,null,{"$f":"VLOOKUP(AE35,市町村データ!A2:O106,MATCH(手順書_交通!$F$57, 市町村データ!A1:O1, 0),FALSE)","v":""},null,null,null,null,null,null,null,null,null,null,null,null,null,null,null,null,null,null,null,null,null,null,null,{"$f":"VLOOKUP(BC35,市町村データ!A2:O106,MATCH(手順書_交通!$F$57, 市町村データ!A1:O1, 0),FALSE)","v":""},null,null,null,{"$f":"VLOOKUP(BG35,市町村データ!A2:O106,MATCH(手順書_交通!$F$57, 市町村データ!A1:O1, 0),FALSE)","v":""},null,null,null,{"$f":"VLOOKUP(BK35,市町村データ!A2:O106,MATCH(手順書_交通!$F$57, 市町村データ!A1:O1, 0),FALSE)","v":""}]
[null,null,"I",null,null,null,null,null,null,null,null,null,null,null,null,null,null,null,null,null,null,null,null,null,null,null,null,null,null,null,null,null,null,null,null,null,null,null,null,null,null,null,null,null,null,null,null,null,null,null,72,{"$f":"VLOOKUP(AY39,市町村データ!A2:O106,MATCH(手順書_交通!$G$54, 市町村データ!A1:O1, 0),FALSE)","v":"野寺1"},null,null,73,{"$f":"VLOOKUP(BC39,市町村データ!A2:O106,MATCH(手順書_交通!$G$54, 市町村データ!A1:O1, 0),FALSE)","v":"野寺2"},null,null,74,{"$f":"VLOOKUP(BG39,市町村データ!A2:O106,MATCH(手順書_交通!$G$54, 市町村データ!A1:O1, 0),FALSE)","v":"野寺3"},null,null,75,{"$f":"VLOOKUP(BK39,市町村データ!A2:O106,MATCH(手順書_交通!$G$54, 市町村データ!A1:O1, 0),FALSE)","v":"野寺4"},null,null,76,{"$f":"VLOOKUP(BO39,市町村データ!A2:O106,MATCH(手順書_交通!$G$54, 市町村データ!A1:O1, 0),FALSE)","v":"野寺5"}]
[null,null,null,null,null,null,null,null,null,null,null,null,null,null,null,null,null,null,null,null,null,null,null,null,null,null,null,null,null,null,null,null,null,null,null,null,null,null,null,null,null,null,null,null,null,null,null,null,null,null,{"$f":"VLOOKUP(AY39,市町村データ!A2:O106,MATCH(手順書_交通!$F$55, 市町村データ!A1:O1, 0),FALSE)","v":""},null,null,null,{"$f":"VLOOKUP(BC39,市町村データ!A2:O106,MATCH(手順書_交通!$F$55, 市町村データ!A1:O1, 0),FALSE)","v":"○貝沼"},null,null,null,{"$f":"VLOOKUP(BG39,市町村データ!A2:O106,MATCH(手順書_交通!$F$55, 市町村データ!A1:O1, 0),FALSE)","v":""},null,null,null,{"$f":"VLOOKUP(BK39,市町村データ!A2:O106,MATCH(手順書_交通!$F$55, 市町村データ!A1:O1, 0),FALSE)","v":"○第五中学前"},null,null,null,{"$f":"VLOOKUP(BO39,市町村データ!A2:O106,MATCH(手順書_交通!$F$55, 市町村データ!A1:O1, 0),FALSE)","v":"○野寺小学校東"}]
[null,null,null,null,null,null,null,null,null,null,null,null,null,null,null,null,null,null,null,null,null,null,null,null,null,null,null,null,null,null,null,null,null,null,null,null,null,null,null,null,null,null,null,null,null,null,null,null,null,null,{"$f":"VLOOKUP(AY39,市町村データ!A2:O106,MATCH(手順書_交通!$F$56, 市町村データ!A1:O1, 0),FALSE)","v":""},null,null,null,{"$f":"VLOOKUP(BC39,市町村データ!A2:O106,MATCH(手順書_交通!$F$56, 市町村データ!A1:O1, 0),FALSE)","v":""},null,null,null,{"$f":"VLOOKUP(BG39,市町村データ!A2:O106,MATCH(手順書_交通!$F$56, 市町村データ!A1:O1, 0),FALSE)","v":""},null,null,null,{"$f":"VLOOKUP(BK39,市町村データ!A2:O106,MATCH(手順書_交通!$F$56, 市町村データ!A1:O1, 0),FALSE)","v":"○上後"},null,null,null,{"$f":"VLOOKUP(BO39,市町村データ!A2:O106,MATCH(手順書_交通!$F$56, 市町村データ!A1:O1, 0),FALSE)","v":""}]
[null,null,null,null,null,null,null,null,null,null,null,null,null,null,null,null,null,null,null,null,null,null,null,null,null,null,null,null,null,null,null,null,null,null,null,null,null,null,null,null,null,null,null,null,null,null,null,null,null,null,{"$f":"VLOOKUP(AY39,市町村データ!A2:O106,MATCH(手順書_交通!$F$57, 市町村データ!A1:O1, 0),FALSE)","v":""},null,null,null,{"$f":"VLOOKUP(BC39,市町村データ!A2:O106,MATCH(手順書_交通!$F$57, 市町村データ!A1:O1, 0),FALSE)","v":""},null,null,null,{"$f":"VLOOKUP(BG39,市町村データ!A2:O106,MATCH(手順書_交通!$F$57, 市町村データ!A1:O1, 0),FALSE)","v":""},null,null,null,{"$f":"VLOOKUP(BK39,市町村データ!A2:O106,MATCH(手順書_交通!$F$57, 市町村データ!A1:O1, 0),FALSE)","v":""},null,null,null,{"$f":"VLOOKUP(BO39,市町村データ!A2:O106,MATCH(手順書_交通!$F$57, 市町村データ!A1:O1, 0),FALSE)","v":""}]
[null,null,"J",null,null,null,null,null,null,null,null,null,null,null,null,null,null,null,null,null,null,null,null,null,null,null,null,null,null,null,null,null,null,null,null,null,null,null,null,null,null,null,null,null,null,null,null,null,null,null,77,{"$f":"VLOOKUP(AY43,市町村データ!A2:O106,MATCH(手順書_交通!$G$54, 市町村データ!A1:O1, 0),FALSE)","v":"栗原1"},null,null,78,{"$f":"VLOOKUP(BC43,市町村データ!A2:O106,MATCH(手順書_交通!$G$54, 市町村データ!A1:O1, 0),FALSE)","v":"栗原2"},null,null,79,{"$f":"VLOOKUP(BG43,市町村データ!A2:O106,MATCH(手順書_交通!$G$54, 市町村データ!A1:O1, 0),FALSE)","v":"栗原3"}]
[null,null,null,null,null,null,null,null,null,null,null,null,null,null,null,null,null,null,null,null,null,null,null,null,null,null,null,null,null,null,null,null,null,null,null,null,null,null,null,null,null,null,null,null,null,null,null,null,null,null,{"$f":"VLOOKUP(AY43,市町村データ!A2:O106,MATCH(手順書_交通!$F$55, 市町村データ!A1:O1, 0),FALSE)","v":"○火の見下"},null,null,null,{"$f":"VLOOKUP(BC43,市町村データ!A2:O106,MATCH(手順書_交通!$F$55, 市町村データ!A1:O1, 0),FALSE)","v":""},null,null,null,{"$f":"VLOOKUP(BG43,市町村データ!A2:O106,MATCH(手順書_交通!$F$55, 市町村データ!A1:O1, 0),FALSE)","v":"○別れ道"}]
[null,null,null,null,null,null,null,null,null,null,null,null,null,null,null,null,null,null,null,null,null,null,null,null,null,null,null,null,null,null,null,null,null,null,null,null,null,null,null,null,null,null,null,null,null,null,null,null,null,null,{"$f":"VLOOKUP(AY43,市町村データ!A2:O106,MATCH(手順書_交通!$F$56, 市町村データ!A1:O1, 0),FALSE)","v":"○栗原"},null,null,null,{"$f":"VLOOKUP(BC43,市町村データ!A2:O106,MATCH(手順書_交通!$F$56, 市町村データ!A1:O1, 0),FALSE)","v":""},null,null,null,{"$f":"VLOOKUP(BG43,市町村データ!A2:O106,MATCH(手順書_交通!$F$56, 市町村データ!A1:O1, 0),FALSE)","v":"○栗原公民館前"}]
[null,null,null,null,null,null,null,null,null,null,null,null,null,null,null,null,null,null,null,null,null,null,null,null,null,null,null,null,null,null,null,null,null,null,null,null,null,null,null,null,null,null,null,null,null,null,null,null,null,null,{"$f":"VLOOKUP(AY43,市町村データ!A2:O106,MATCH(手順書_交通!$F$57, 市町村データ!A1:O1, 0),FALSE)","v":""},null,null,null,{"$f":"VLOOKUP(BC43,市町村データ!A2:O106,MATCH(手順書_交通!$F$57, 市町村データ!A1:O1, 0),FALSE)","v":""},null,null,null,{"$f":"VLOOKUP(BG43,市町村データ!A2:O106,MATCH(手順書_交通!$F$57, 市町村データ!A1:O1, 0),FALSE)","v":"○栗原公民館前"}]
[null,null,"K",null,null,null,null,null,null,null,null,null,null,null,null,null,null,null,null,null,null,null,null,null,null,null,null,null,null,null,null,null,null,null,null,null,null,null,null,null,null,null,null,null,null,null,null,null,null,null,80,{"$f":"VLOOKUP(AY47,市町村データ!A2:O106,MATCH(手順書_交通!$G$54, 市町村データ!A1:O1, 0),FALSE)","v":"栗原6"},null,null,81,{"$f":"VLOOKUP(BC47,市町村データ!A2:O106,MATCH(手順書_交通!$G$54, 市町村データ!A1:O1, 0),FALSE)","v":"栗原5"},null,null,82,{"$f":"VLOOKUP(BG47,市町村データ!A2:O106,MATCH(手順書_交通!$G$54, 市町村データ!A1:O1, 0),FALSE)","v":"栗原4"}]
[null,null,null,null,null,null,null,null,null,null,null,null,null,null,null,null,null,null,null,null,null,null,null,null,null,null,null,null,null,null,null,null,null,null,null,null,null,null,null,null,null,null,null,null,null,null,null,null,null,null,{"$f":"VLOOKUP(AY47,市町村データ!A2:O106,MATCH(手順書_交通!$F$55, 市町村データ!A1:O1, 0),FALSE)","v":"○新座栗原郵便局"},null,null,null,{"$f":"VLOOKUP(BC47,市町村データ!A2:O106,MATCH(手順書_交通!$F$55, 市町村データ!A1:O1, 0),FALSE)","v":"◆ひばりヶ丘駅"},null,null,null,{"$f":"VLOOKUP(BG47,市町村データ!A2:O106,MATCH(手順書_交通!$F$55, 市町村データ!A1:O1, 0),FALSE)","v":""}]
[null,null,null,null,null,null,null,null,null,null,null,null,null,null,null,null,null,null,null,null,null,null,null,null,null,null,null,null,null,null,null,null,null,null,null,null,null,null,null,null,null,null,null,null,null,null,null,null,null,null,{"$f":"VLOOKUP(AY47,市町村データ!A2:O106,MATCH(手順書_交通!$F$56, 市町村データ!A1:O1, 0),FALSE)","v":""},null,null,null,{"$f":"VLOOKUP(BC47,市町村データ!A2:O106,MATCH(手順書_交通!$F$56, 市町村データ!A1:O1, 0),FALSE)","v":"○栗原五丁目"},null,null,null,{"$f":"VLOOKUP(BG47,市町村データ!A2:O106,MATCH(手順書_交通!$F$56, 市町村データ!A1:O1, 0),FALSE)","v":""}]
[null,null,null,null,null,null,null,null,null,null,null,null,null,null,null,null,null,null,null,null,null,null,null,null,null,null,null,null,null,null,null,null,null,null,null,null,null,null,null,null,null,null,null,null,null,null,null,null,null,null,{"$f":"VLOOKUP(AY47,市町村データ!A2:O106,MATCH(手順書_交通!$F$57, 市町村データ!A1:O1, 0),FALSE)","v":""},null,null,null,{"$f":"VLOOKUP(BC47,市町村データ!A2:O106,MATCH(手順書_交通!$F$57, 市町村データ!A1:O1, 0),FALSE)","v":""},null,null,null,{"$f":"VLOOKUP(BG47,市町村データ!A2:O106,MATCH(手順書_交通!$F$57, 市町村データ!A1:O1, 0),FALSE)","v":""}]
[null,"［国勢調査］＞［令和２年国勢調査（総務省統計局）　都道府県・市区町村別の主な結果］"]
[null,"https://www.e-stat.go.jp/stat-search/files?page=1&layout=datalist&toukei=00200521&tstat=000001049104&cycle=0&tclass1=000001049105&tclass2val=0"]

{"sheet":"手順書_人口密度","index":10,"n_rows":143,"n_cols":32,"rows_kept":143,"cut":false,"hidden":false,"merged":[[30,16,30,17],[56,5,56,8],[15,5,15,14],[30,5,30,14],[53,6,53,8],[54,5,54,8],[55,5,55,8],[15,16,15,19],[93,6,93,8],[93,9,93,10],[93,11,93,12],[94,6,94,8],[94,9,94,10],[94,11,94,12],[101,9,101,10],[98,11,98,12],[97,9,97,10],[95,6,95,8],[95,9,95,10],[95,11,95,12],[96,6,96,8],[96,9,96,10],[96,11,96,12],[100,11,100,12],[100,9,100,10],[99,9,99,10],[97,6,97,8],[98,9,98,10],[97,11,97,12],[98,6,98,8],[107,16,107,19],[50,16,50,17],[59,16,59,19],[110,5,110,8],[88,16,88,17],[103,6,103,8],[103,11,103,12],[101,6,101,8],[101,11,101,12],[102,6,102,8],[102,11,102,12],[102,9,102,10],[99,6,99,8],[103,9,103,10],[99,11,99,12],[100,6,100,8]]}
[null,null,null,null,null,"C1.0",null,null,null,null,null,null,null,null,null,null,"C2.0",null,null,null,null,null,null,null,null,null,null,null,null,null,null,"EOL"]
[null,"手順書　＞　人口"]
[]
[null,null,null,"手順１"]
[]
[]
[]
[]
[]
[]
[]
[null,null,null,null,null,null,"転写元になる［地図テンプレート］のワークシート名等を、"]
[null,null,null,null,null,"👇","以下に入力してください。"]
[]
[null,null,null,null,null,"ワークシート名",null,null,null,null,null,null,null,null,null,null,"範囲"]
["R1.1.0",null,null,null,null,"地図テンプレート_1",null,null,null,null,null,null,null,null,null,null,"A1:BT53"]
[]
[]
[null,null,null,"手順２"]
[]
[]
[]
[]
[]
[]
[null,null,null,null,null,null,null,"地図の転写先を、"]
[null,null,null,null,null,null,"👇","入力してください。"]
[]
[null,null,null,null,null,null,"ワークシート名を間違えて上書きすると、このワークブックの機能を破損させてしまいかねますので慎重に確認してください。"]
[null,null,null,null,null,"ワークシート名",null,null,null,null,null,null,null,null,null,null,"左上隅セル"]
["R2.1.0",null,null,null,null,"自動生成_人口密度",null,null,null,null,null,null,null,null,null,null,"A1"]
[]
[]
[null,null,null,"手順３"]
[]
[]
[]
[]
[]
[]
[]
[]
[]
[]
[]
[null,null,null,null,null,"👇","以下は市町村１つ分の凡例です。"]
[null,null,null,null,null,null,null,null,null,null,null,null,null,null,null,"［市町村データ］",null,null,null,"ワークシートの列名を、"]
[null,null,null,null,null,null,null,null,null,null,null,null,null,null,null,"👇","以下の凡例に入れてください。"]
[]
[null,null,null,null,null,null,null,null,null,null,null,null,null,null,null,null,"転写先セル"]
["R3.0.5.0",null,null,null,null,null,null,null,null,null,null,null,null,null,null,null,"C3"]
[null,null,null,null,"ここに入力できます。"]
[null,null,null,null,null,"A","B","C","D"]
["R3.1.0",null,null,null,null,null,"名前"]
[null,null,null,null,null,"人口密度（人/ha）"]
[null,null,null,null,null,"人口（人）"]
[null,null,null,null,null,"面積（ha）"]
[]
[null,null,null,null,null,null,null,null,null,null,null,null,null,null,null,null,"凡例の元データのテーブルの右下隅のセル"]
["R3.3.0",null,null,null,null,null,null,null,null,null,null,null,null,null,null,null,"D4"]
[null,null,null,null,null,null,null,null,null,null,null,null,null,null,null,null,"上の黄色い枠に書かれている番地を使ってください。"]
[]
[null,null,null,null,null,null,"ヒートマップにするデータを１つ選んで太字にスタイル設定してください。"]
[]
[]
[null,null,null,"手順４"]
[]
[]
[]
[]
[]
[]
[]
[]
[]
[]
[]
[]
[]
[]
[]
[]
[]
[]
[]
[null,null,null,null,null,null,null,"ヒートマップの色の凡例です。"]
[]
[null,null,null,null,null,null,null,null,null,null,null,null,null,null,null,null,"転写先の左上隅セル"]
["R4.0.9.0",null,null,null,null,null,null,null,null,null,null,null,null,null,null,null,"BK7"]
[]
[null,null,null,null,null,null,"👇","以下の黄色い枠内に、［以上］列の数値と、［背景色］を設定してください。"]
[]
[null,null,null,null,null,"A","B","C","D","E","F","G","H"]
["R4.1.0",null,null,null,1,"No","以上",null,null,"背景色",null,"前景色"]
[null,null,null,null,2,1,180]
[null,null,null,null,3,2,160]
[null,null,null,null,4,3,140]
[null,null,null,null,5,4,120]
[null,null,null,null,6,5,100]
[null,null,null,null,7,6,80]
[null,null,null,null,8,7,60]
[null,null,null,null,9,8,40]
[null,null,null,null,10,9,20]
[null,null,null,null,11,10,0]
[]
[]
[null,null,null,null,null,null,null,null,null,null,null,null,null,null,null,null,"凡例の元データのテーブルの右下隅のセル"]
["R4.3.5.0",null,null,null,null,null,null,null,null,null,null,null,null,null,null,null,"H11"]
[null,null,null,null,null,null,null,null,null,null,null,null,null,null,null,null,"上の黄色い枠に書かれている番地を使ってください。"]
[null,null,null,null,null,"転写元の範囲"]
["R4.4.0",null,null,null,null,"B1:F11"]
[null,null,null,null,null,"上の黄色い枠に書かれている番地を使ってください。"]
[]
[]
[null,null,null,"手順４"]
[]
[null,null,null,null,null,"👇","以下のボタンを押してください。"]
[]
[]
[]
[]
[]
[]
[]
[]
[]
[]
[]
[]
[]
[]
[]
[]
[]
[]
[]
[]
[]
[]
[null,null,null,null,null,null,null,"ワークシートが生成できたら完了です。"]
[]
[null,"以上"]
["EOF"]

{"sheet":"自動生成_人口密度","index":11,"n_rows":52,"n_cols":68,"rows_kept":52,"cut":false,"hidden":false,"merged":[[7,10,7,13],[7,14,7,17],[7,18,7,21],[7,22,7,25],[7,26,7,29],[7,30,7,33],[6,11,6,13],[6,15,6,17],[6,19,6,21],[6,23,6,25],[6,27,6,29],[6,31,6,33],[10,35,10,37],[10,39,10,41],[11,6,11,9],[11,10,11,13],[11,18,11,21],[11,22,11,25],[11,26,11,29],[11,30,11,33],[11,34,11,37],[11,38,11,41],[10,7,10,9],[10,11,10,13],[10,19,10,21],[10,23,10,25],[10,27,10,29],[10,31,10,33],[12,34,12,37],[12,38,12,41],[13,6,13,9],[13,10,13,13],[13,18,13,21],[13,22,13,25],[13,26,13,29],[13,30,13,33],[13,34,13,37],[13,38,13,41],[12,6,12,9],[12,10,12,13],[12,18,12,21],[12,22,12,25],[12,26,12,29],[12,30,12,33],[14,31,14,33],[14,35,14,37],[14,39,14,41],[15,6,15,9],[15,10,15,13],[15,14,15,17],[15,18,15,21],[15,22,15,25],[15,26,15,29],[15,30,15,33],[14,7,14,9],[14,11,14,13],[14,15,14,17],[14,19,14,21],[14,23,14,25],[14,27,14,29],[15,34,15,37],[15,38,15,41],[16,6,16,9],[16,10,16,13],[16,14,16,17],[16,18,16,21],[16,22,16,25],[16,26,16,29],[16,30,16,33],[16,34,16,37],[16,38,16,41],[17,6,17,9],[17,10,17,13],[17,14,17,17],[17,18,17,21],[17,22,17,25],[17,26,17,29],[17,30,17,33],[17,34,17,37],[17,38,17,41],[18,39,18,41],[18,43,18,45],[19,14,19,17],[19,18,19,21],[19,22,19,25],[19,26,19,29],[19,30,19,33],[19,34,19,37],[19,38,19,41],[19,42,19,45],[18,15,18,17],[18,19,18,21],[18,23,18,25],[18,27,18,29],[18,31,18,33],[18,35,18,37],[20,38,20,41],[20,42,20,45],[21,14,21,17],[21,18,21,21],[21,22,21,25],[21,26,21,29],[21,30,21,33],[21,34,21,37],[21,38,21,41],[21,42,21,45],[20,14,20,17],[20,18,20,21],[20,22,20,25],[20,26,20,29],[20,30,20,33],[20,34,20,37],[22,39,22,41],[22,43,22,45],[22,47,22,49],[22,51,22,53],[23,14,23,17],[23,18,23,21],[23,22,23,25],[23,26,23,29],[23,30,23,33],[23,34,23,37],[22,15,22,17],[22,19,22,21],[22,23,22,25],[22,27,22,29],[22,31,22,33],[22,35,22,37],[24,50,24,53],[25,14,25,17],[25,18,25,21],[25,22,25,25],[25,26,25,29],[25,30,25,33],[25,34,25,37],[23,38,23,41],[23,42,23,45],[23,46,23,49],[23,50,23,53],[24,14,24,17],[24,18,24,21],[24,22,24,25],[24,26,24,29],[24,30,24,33],[24,34,24,37],[26,19,26,21],[26,23,26,25],[26,27,26,29],[26,31,26,33],[26,35,26,37],[26,39,26,41],[24,38,24,41],[24,42,24,45],[24,46,24,49],[26,43,26,45],[26,47,26,49],[26,51,26,53],[26,55,26,57],[26,59,26,61],[26,63,26,65],[25,38,25,41],[25,42,25,45],[25,46,25,49],[25,50,25,53],[27,42,27,45],[27,46,27,49],[27,50,27,53],[27,54,27,57],[27,58,27,61],[27,62,27,65],[27,18,27,21],[27,22,27,25],[27,26,27,29],[27,30,27,33],[27,34,27,37],[27,38,27,41],[28,42,28,45],[28,46,28,49],[28,50,28,53],[28,54,28,57],[28,58,28,61],[28,62,28,65],[28,18,28,21],[28,22,28,25],[28,26,28,29],[28,30,28,33],[28,34,28,37],[28,38,28,41],[29,42,29,45],[29,46,29,49],[29,50,29,53],[29,54,29,57],[29,58,29,61],[29,62,29,65],[29,18,29,21],[29,22,29,25],[29,26,29,29],[29,30,29,33],[29,34,29,37],[29,38,29,41],[30,63,30,65],[31,6,31,9],[31,10,31,13],[31,14,31,17],[31,18,31,21],[31,26,31,29],[31,30,31,33],[31,34,31,37],[31,38,31,41],[31,46,31,49],[30,35,30,37],[30,39,30,41],[30,47,30,49],[30,51,30,53],[30,55,30,57],[30,59,30,61],[30,7,30,9],[30,11,30,13],[30,15,30,17],[30,19,30,21],[30,27,30,29],[30,31,30,33],[31,50,31,53],[31,54,31,57],[31,58,31,61],[31,62,31,65],[32,6,32,9],[32,10,32,13],[32,14,32,17],[32,18,32,21],[32,26,32,29],[32,30,32,33],[32,62,32,65],[32,34,32,37],[32,38,32,41],[32,46,32,49],[32,50,32,53],[32,54,32,57],[32,58,32,61],[33,6,33,9],[33,10,33,13],[33,14,33,17],[33,18,33,21],[33,26,33,29],[33,30,33,33],[33,34,33,37],[33,38,33,41],[33,46,33,49],[33,50,33,53],[33,54,33,57],[33,58,33,61],[33,62,33,65],[34,27,34,29],[34,31,34,33],[34,55,34,57],[34,59,34,61],[34,63,34,65],[35,26,35,29],[35,30,35,33],[35,54,35,57],[35,58,35,61],[35,62,35,65],[36,26,36,29],[36,30,36,33],[36,54,36,57],[36,58,36,61],[36,62,36,65],[38,67,38,69],[39,50,39,53],[39,54,39,57],[39,58,39,61],[39,62,39,65],[39,66,39,69],[37,26,37,29],[37,30,37,33],[37,54,37,57],[37,58,37,61],[37,62,37,65],[38,51,38,53],[38,55,38,57],[38,59,38,61],[38,63,38,65],[40,50,40,53],[40,54,40,57],[40,58,40,61],[40,62,40,65],[40,66,40,69],[41,50,41,53],[41,54,41,57],[41,58,41,61],[41,62,41,65],[41,66,41,69],[44,50,44,53],[44,54,44,57],[44,58,44,61],[45,50,45,53],[45,54,45,57],[45,58,45,61],[42,51,42,53],[42,55,42,57],[42,59,42,61],[43,50,43,53],[43,54,43,57],[43,58,43,61],[48,50,48,53],[48,54,48,57],[48,58,48,61],[49,50,49,53],[49,54,49,57],[49,58,49,61],[46,51,46,53],[46,55,46,57],[46,59,46,61],[47,50,47,53],[47,54,47,57],[47,58,47,61],[7,62,7,64],[7,65,7,66],[8,62,8,64],[8,65,8,66],[9,62,9,64],[9,65,9,66],[2,3,2,5],[3,2,3,5],[4,2,4,5],[5,2,5,5],[6,62,6,64],[6,65,6,66],[9,10,9,13],[9,14,9,17],[9,18,9,21],[9,22,9,25],[9,26,9,29],[9,30,9,33],[8,10,8,13],[8,14,8,17],[8,18,8,21],[8,22,8,25],[8,26,8,29],[8,30,8,33],[16,62,16,64],[16,65,16,66],[13,62,13,64],[13,65,13,66],[14,62,14,64],[14,65,14,66],[15,62,15,64],[15,65,15,66],[10,62,10,64],[10,65,10,66],[11,62,11,64],[11,65,11,66],[12,62,12,64],[12,65,12,66]]}
[]
[]
[null,null,null,"名前",null,null,"あ",null,null,null,"い",null,null,null,"う",null,null,null,"え",null,null,null,"お",null,null,null,"か",null,null,null,"き",null,null,null,"く",null,null,null,"け",null,null,null,"こ",null,null,null,"さ",null,null,null,"し",null,null,null,"す",null,null,null,"せ",null,null,null,"そ",null,null,null,"た"]
[null,null,"人口密度（人/ha）"]
[null,null,"人口（人）"]
[null,null,"面積（ha）"]
[null,null,"A",null,null,null,null,null,null,null,1,{"$f":"VLOOKUP(K7,市町村データ!A2:I106,MATCH(手順書_人口密度!$G$54, 市町村データ!A1:I1, 0),FALSE)","v":"新座3"},null,null,2,{"$f":"VLOOKUP(O7,市町村データ!A2:I106,MATCH(手順書_人口密度!$G$54, 市町村データ!A1:I1, 0),FALSE)","v":"新座2"},null,null,3,{"$f":"VLOOKUP(S7,市町村データ!A2:I106,MATCH(手順書_人口密度!$G$54, 市町村データ!A1:I1, 0),FALSE)","v":"新座1"},null,null,4,{"$f":"VLOOKUP(W7,市町村データ!A2:I106,MATCH(手順書_人口密度!$G$54, 市町村データ!A1:I1, 0),FALSE)","v":"北野3"},null,null,5,{"$f":"VLOOKUP(AA7,市町村データ!A2:I106,MATCH(手順書_人口密度!$G$54, 市町村データ!A1:I1, 0),FALSE)","v":"東北1"},null,null,6,{"$f":"VLOOKUP(AE7,市町村データ!A2:I106,MATCH(手順書_人口密度!$G$54, 市町村データ!A1:I1, 0),FALSE)","v":"東北2"},null,null,null,null,null,null,null,null,null,null,null,null,null,null,null,null,null,null,null,null,null,null,null,null,null,null,null,null,null,null,"以上",null,null,"背景色"]
[null,null,null,null,null,null,null,null,null,null,{"$f":"VLOOKUP(K7,市町村データ!A2:I106,MATCH(手順書_人口密度!$F$55, 市町村データ!A1:I1, 0),FALSE)","v":160.1},null,null,null,{"$f":"VLOOKUP(O7,市町村データ!A2:I106,MATCH(手順書_人口密度!$F$55, 市町村データ!A1:I1, 0),FALSE)","v":174.2},null,null,null,{"$f":"VLOOKUP(S7,市町村データ!A2:I106,MATCH(手順書_人口密度!$F$55, 市町村データ!A1:I1, 0),FALSE)","v":168.8},null,null,null,{"$f":"VLOOKUP(W7,市町村データ!A2:I106,MATCH(手順書_人口密度!$F$55, 市町村データ!A1:I1, 0),FALSE)","v":181.9},null,null,null,{"$f":"VLOOKUP(AA7,市町村データ!A2:I106,MATCH(手順書_人口密度!$F$55, 市町村データ!A1:I1, 0),FALSE)","v":177.5},null,null,null,{"$f":"VLOOKUP(AE7,市町村データ!A2:I106,MATCH(手順書_人口密度!$F$55, 市町村データ!A1:I1, 0),FALSE)","v":154.6},null,null,null,null,null,null,null,null,null,null,null,null,null,null,null,null,null,null,null,null,null,null,null,null,null,null,null,null,null,null,null,180]
[null,null,null,null,null,null,null,null,null,null,{"$f":"VLOOKUP(K7,市町村データ!A2:I106,MATCH(手順書_人口密度!$F$56, 市町村データ!A1:I1, 0),FALSE)","v":4002},null,null,null,{"$f":"VLOOKUP(O7,市町村データ!A2:I106,MATCH(手順書_人口密度!$F$56, 市町村データ!A1:I1, 0),FALSE)","v":2439},null,null,null,{"$f":"VLOOKUP(S7,市町村データ!A2:I106,MATCH(手順書_人口密度!$F$56, 市町村データ!A1:I1, 0),FALSE)","v":1350},null,null,null,{"$f":"VLOOKUP(W7,市町村データ!A2:I106,MATCH(手順書_人口密度!$F$56, 市町村データ!A1:I1, 0),FALSE)","v":3457},null,null,null,{"$f":"VLOOKUP(AA7,市町村データ!A2:I106,MATCH(手順書_人口密度!$F$56, 市町村データ!A1:I1, 0),FALSE)","v":1952},null,null,null,{"$f":"VLOOKUP(AE7,市町村データ!A2:I106,MATCH(手順書_人口密度!$F$56, 市町村データ!A1:I1, 0),FALSE)","v":6183},null,null,null,null,null,null,null,null,null,null,null,null,null,null,null,null,null,null,null,null,null,null,null,null,null,null,null,null,null,null,null,160]
[null,null,null,null,null,null,null,null,null,null,{"$f":"VLOOKUP(K7,市町村データ!A2:I106,MATCH(手順書_人口密度!$F$57, 市町村データ!A1:I1, 0),FALSE)","v":25},null,null,null,{"$f":"VLOOKUP(O7,市町村データ!A2:I106,MATCH(手順書_人口密度!$F$57, 市町村データ!A1:I1, 0),FALSE)","v":14},null,null,null,{"$f":"VLOOKUP(S7,市町村データ!A2:I106,MATCH(手順書_人口密度!$F$57, 市町村データ!A1:I1, 0),FALSE)","v":8},null,null,null,{"$f":"VLOOKUP(W7,市町村データ!A2:I106,MATCH(手順書_人口密度!$F$57, 市町村データ!A1:I1, 0),FALSE)","v":19},null,null,null,{"$f":"VLOOKUP(AA7,市町村データ!A2:I106,MATCH(手順書_人口密度!$F$57, 市町村データ!A1:I1, 0),FALSE)","v":11},null,null,null,{"$f":"VLOOKUP(AE7,市町村データ!A2:I106,MATCH(手順書_人口密度!$F$57, 市町村データ!A1:I1, 0),FALSE)","v":40},null,null,null,null,null,null,null,null,null,null,null,null,null,null,null,null,null,null,null,null,null,null,null,null,null,null,null,null,null,null,null,140]
[null,null,"B",null,null,null,7,{"$f":"VLOOKUP(G11,市町村データ!A2:I106,MATCH(手順書_人口密度!$G$54, 市町村データ!A1:I1, 0),FALSE)","v":"中野2"},null,null,8,{"$f":"VLOOKUP(K11,市町村データ!A2:I106,MATCH(手順書_人口密度!$G$54, 市町村データ!A1:I1, 0),FALSE)","v":"大和田4"},null,null,null,null,null,null,9,{"$f":"VLOOKUP(S11,市町村データ!A2:I106,MATCH(手順書_人口密度!$G$54, 市町村データ!A1:I1, 0),FALSE)","v":"大和田5"},null,null,10,{"$f":"VLOOKUP(W11,市町村データ!A2:I106,MATCH(手順書_人口密度!$G$54, 市町村データ!A1:I1, 0),FALSE)","v":"北野2"},null,null,11,{"$f":"VLOOKUP(AA11,市町村データ!A2:I106,MATCH(手順書_人口密度!$G$54, 市町村データ!A1:I1, 0),FALSE)","v":"北野1"},null,null,12,{"$f":"VLOOKUP(AE11,市町村データ!A2:I106,MATCH(手順書_人口密度!$G$54, 市町村データ!A1:I1, 0),FALSE)","v":"東3"},null,null,13,{"$f":"VLOOKUP(AI11,市町村データ!A2:I106,MATCH(手順書_人口密度!$G$54, 市町村データ!A1:I1, 0),FALSE)","v":"東2"},null,null,14,{"$f":"VLOOKUP(AM11,市町村データ!A2:I106,MATCH(手順書_人口密度!$G$54, 市町村データ!A1:I1, 0),FALSE)","v":"東1"},null,null,null,null,null,null,null,null,null,null,null,null,null,null,null,null,null,null,null,null,null,null,120]
[null,null,null,null,null,null,{"$f":"VLOOKUP(G11,市町村データ!A2:I106,MATCH(手順書_人口密度!$F$55, 市町村データ!A1:I1, 0),FALSE)","v":4.9000000000000004},null,null,null,{"$f":"VLOOKUP(K11,市町村データ!A2:I106,MATCH(手順書_人口密度!$F$55, 市町村データ!A1:I1, 0),FALSE)","v":36.700000000000003},null,null,null,null,null,null,null,{"$f":"VLOOKUP(S11,市町村データ!A2:I106,MATCH(手順書_人口密度!$F$55, 市町村データ!A1:I1, 0),FALSE)","v":144.69999999999999},null,null,null,{"$f":"VLOOKUP(W11,市町村データ!A2:I106,MATCH(手順書_人口密度!$F$55, 市町村データ!A1:I1, 0),FALSE)","v":132.9},null,null,null,{"$f":"VLOOKUP(AA11,市町村データ!A2:I106,MATCH(手順書_人口密度!$F$55, 市町村データ!A1:I1, 0),FALSE)","v":34},null,null,null,{"$f":"VLOOKUP(AE11,市町村データ!A2:I106,MATCH(手順書_人口密度!$F$55, 市町村データ!A1:I1, 0),FALSE)","v":164},null,null,null,{"$f":"VLOOKUP(AI11,市町村データ!A2:I106,MATCH(手順書_人口密度!$F$55, 市町村データ!A1:I1, 0),FALSE)","v":108.1},null,null,null,{"$f":"VLOOKUP(AM11,市町村データ!A2:I106,MATCH(手順書_人口密度!$F$55, 市町村データ!A1:I1, 0),FALSE)","v":169.1},null,null,null,null,null,null,null,null,null,null,null,null,null,null,null,null,null,null,null,null,null,null,null,100]
[null,null,null,null,null,null,{"$f":"VLOOKUP(G11,市町村データ!A2:I106,MATCH(手順書_人口密度!$F$56, 市町村データ!A1:I1, 0),FALSE)","v":195},null,null,null,{"$f":"VLOOKUP(K11,市町村データ!A2:I106,MATCH(手順書_人口密度!$F$56, 市町村データ!A1:I1, 0),FALSE)","v":1352},null,null,null,null,null,null,null,{"$f":"VLOOKUP(S11,市町村データ!A2:I106,MATCH(手順書_人口密度!$F$56, 市町村データ!A1:I1, 0),FALSE)","v":3908},null,null,null,{"$f":"VLOOKUP(W11,市町村データ!A2:I106,MATCH(手順書_人口密度!$F$56, 市町村データ!A1:I1, 0),FALSE)","v":2791},null,null,null,{"$f":"VLOOKUP(AA11,市町村データ!A2:I106,MATCH(手順書_人口密度!$F$56, 市町村データ!A1:I1, 0),FALSE)","v":816},null,null,null,{"$f":"VLOOKUP(AE11,市町村データ!A2:I106,MATCH(手順書_人口密度!$F$56, 市町村データ!A1:I1, 0),FALSE)","v":2460},null,null,null,{"$f":"VLOOKUP(AI11,市町村データ!A2:I106,MATCH(手順書_人口密度!$F$56, 市町村データ!A1:I1, 0),FALSE)","v":1405},null,null,null,{"$f":"VLOOKUP(AM11,市町村データ!A2:I106,MATCH(手順書_人口密度!$F$56, 市町村データ!A1:I1, 0),FALSE)","v":3213},null,null,null,null,null,null,null,null,null,null,null,null,null,null,null,null,null,null,null,null,null,null,null,80]
[null,null,null,null,null,null,{"$f":"VLOOKUP(G11,市町村データ!A2:I106,MATCH(手順書_人口密度!$F$57, 市町村データ!A1:I1, 0),FALSE)","v":40},null,null,null,{"$f":"VLOOKUP(K11,市町村データ!A2:I106,MATCH(手順書_人口密度!$F$57, 市町村データ!A1:I1, 0),FALSE)","v":36.799999999999997},null,null,null,null,null,null,null,{"$f":"VLOOKUP(S11,市町村データ!A2:I106,MATCH(手順書_人口密度!$F$57, 市町村データ!A1:I1, 0),FALSE)","v":27},null,null,null,{"$f":"VLOOKUP(W11,市町村データ!A2:I106,MATCH(手順書_人口密度!$F$57, 市町村データ!A1:I1, 0),FALSE)","v":21},null,null,null,{"$f":"VLOOKUP(AA11,市町村データ!A2:I106,MATCH(手順書_人口密度!$F$57, 市町村データ!A1:I1, 0),FALSE)","v":24},null,null,null,{"$f":"VLOOKUP(AE11,市町村データ!A2:I106,MATCH(手順書_人口密度!$F$57, 市町村データ!A1:I1, 0),FALSE)","v":15},null,null,null,{"$f":"VLOOKUP(AI11,市町村データ!A2:I106,MATCH(手順書_人口密度!$F$57, 市町村データ!A1:I1, 0),FALSE)","v":13},null,null,null,{"$f":"VLOOKUP(AM11,市町村データ!A2:I106,MATCH(手順書_人口密度!$F$57, 市町村データ!A1:I1, 0),FALSE)","v":19},null,null,null,null,null,null,null,null,null,null,null,null,null,null,null,null,null,null,null,null,null,null,null,60]
[null,null,"C",null,null,null,15,{"$f":"VLOOKUP(G15,市町村データ!A2:I106,MATCH(手順書_人口密度!$G$54, 市町村データ!A1:I1, 0),FALSE)","v":"中野1"},null,null,16,{"$f":"VLOOKUP(K15,市町村データ!A2:I106,MATCH(手順書_人口密度!$G$54, 市町村データ!A1:I1, 0),FALSE)","v":"大和田3"},null,null,17,{"$f":"VLOOKUP(O15,市町村データ!A2:I106,MATCH(手順書_人口密度!$G$54, 市町村データ!A1:I1, 0),FALSE)","v":"大和田2"},null,null,18,{"$f":"VLOOKUP(S15,市町村データ!A2:I106,MATCH(手順書_人口密度!$G$54, 市町村データ!A1:I1, 0),FALSE)","v":"大和田1"},null,null,19,{"$f":"VLOOKUP(W15,市町村データ!A2:I106,MATCH(手順書_人口密度!$G$54, 市町村データ!A1:I1, 0),FALSE)","v":"野火止5"},null,null,20,{"$f":"VLOOKUP(AA15,市町村データ!A2:I106,MATCH(手順書_人口密度!$G$54, 市町村データ!A1:I1, 0),FALSE)","v":"野火止6"},null,null,21,{"$f":"VLOOKUP(AE15,市町村データ!A2:I106,MATCH(手順書_人口密度!$G$54, 市町村データ!A1:I1, 0),FALSE)","v":"野火止7"},null,null,22,{"$f":"VLOOKUP(AI15,市町村データ!A2:I106,MATCH(手順書_人口密度!$G$54, 市町村データ!A1:I1, 0),FALSE)","v":"野火止8"},null,null,23,{"$f":"VLOOKUP(AM15,市町村データ!A2:I106,MATCH(手順書_人口密度!$G$54, 市町村データ!A1:I1, 0),FALSE)","v":"畑中3"},null,null,null,null,null,null,null,null,null,null,null,null,null,null,null,null,null,null,null,null,null,null,40]
[null,null,null,null,null,null,{"$f":"VLOOKUP(G15,市町村データ!A2:I106,MATCH(手順書_人口密度!$F$55, 市町村データ!A1:I1, 0),FALSE)","v":11.5},null,null,null,{"$f":"VLOOKUP(K15,市町村データ!A2:I106,MATCH(手順書_人口密度!$F$55, 市町村データ!A1:I1, 0),FALSE)","v":0.8},null,null,null,{"$f":"VLOOKUP(O15,市町村データ!A2:I106,MATCH(手順書_人口密度!$F$55, 市町村データ!A1:I1, 0),FALSE)","v":5.3},null,null,null,{"$f":"VLOOKUP(S15,市町村データ!A2:I106,MATCH(手順書_人口密度!$F$55, 市町村データ!A1:I1, 0),FALSE)","v":71},null,null,null,{"$f":"VLOOKUP(W15,市町村データ!A2:I106,MATCH(手順書_人口密度!$F$55, 市町村データ!A1:I1, 0),FALSE)","v":133.4},null,null,null,{"$f":"VLOOKUP(AA15,市町村データ!A2:I106,MATCH(手順書_人口密度!$F$55, 市町村データ!A1:I1, 0),FALSE)","v":105.2},null,null,null,{"$f":"VLOOKUP(AE15,市町村データ!A2:I106,MATCH(手順書_人口密度!$F$55, 市町村データ!A1:I1, 0),FALSE)","v":64.3},null,null,null,{"$f":"VLOOKUP(AI15,市町村データ!A2:I106,MATCH(手順書_人口密度!$F$55, 市町村データ!A1:I1, 0),FALSE)","v":81},null,null,null,{"$f":"VLOOKUP(AM15,市町村データ!A2:I106,MATCH(手順書_人口密度!$F$55, 市町村データ!A1:I1, 0),FALSE)","v":106.6},null,null,null,null,null,null,null,null,null,null,null,null,null,null,null,null,null,null,null,null,null,null,null,20]
[null,null,null,null,null,null,{"$f":"VLOOKUP(G15,市町村データ!A2:I106,MATCH(手順書_人口密度!$F$56, 市町村データ!A1:I1, 0),FALSE)","v":388},null,null,null,{"$f":"VLOOKUP(K15,市町村データ!A2:I106,MATCH(手順書_人口密度!$F$56, 市町村データ!A1:I1, 0),FALSE)","v":26},null,null,null,{"$f":"VLOOKUP(O15,市町村データ!A2:I106,MATCH(手順書_人口密度!$F$56, 市町村データ!A1:I1, 0),FALSE)","v":156},null,null,null,{"$f":"VLOOKUP(S15,市町村データ!A2:I106,MATCH(手順書_人口密度!$F$56, 市町村データ!A1:I1, 0),FALSE)","v":3836},null,null,null,{"$f":"VLOOKUP(W15,市町村データ!A2:I106,MATCH(手順書_人口密度!$F$56, 市町村データ!A1:I1, 0),FALSE)","v":8004},null,null,null,{"$f":"VLOOKUP(AA15,市町村データ!A2:I106,MATCH(手順書_人口密度!$F$56, 市町村データ!A1:I1, 0),FALSE)","v":4944},null,null,null,{"$f":"VLOOKUP(AE15,市町村データ!A2:I106,MATCH(手順書_人口密度!$F$56, 市町村データ!A1:I1, 0),FALSE)","v":3539},null,null,null,{"$f":"VLOOKUP(AI15,市町村データ!A2:I106,MATCH(手順書_人口密度!$F$56, 市町村データ!A1:I1, 0),FALSE)","v":4857},null,null,null,{"$f":"VLOOKUP(AM15,市町村データ!A2:I106,MATCH(手順書_人口密度!$F$56, 市町村データ!A1:I1, 0),FALSE)","v":1599},null,null,null,null,null,null,null,null,null,null,null,null,null,null,null,null,null,null,null,null,null,null,null,0]
[null,null,null,null,null,null,{"$f":"VLOOKUP(G15,市町村データ!A2:I106,MATCH(手順書_人口密度!$F$57, 市町村データ!A1:I1, 0),FALSE)","v":33.700000000000003},null,null,null,{"$f":"VLOOKUP(K15,市町村データ!A2:I106,MATCH(手順書_人口密度!$F$57, 市町村データ!A1:I1, 0),FALSE)","v":30.7},null,null,null,{"$f":"VLOOKUP(O15,市町村データ!A2:I106,MATCH(手順書_人口密度!$F$57, 市町村データ!A1:I1, 0),FALSE)","v":29.7},null,null,null,{"$f":"VLOOKUP(S15,市町村データ!A2:I106,MATCH(手順書_人口密度!$F$57, 市町村データ!A1:I1, 0),FALSE)","v":54},null,null,null,{"$f":"VLOOKUP(W15,市町村データ!A2:I106,MATCH(手順書_人口密度!$F$57, 市町村データ!A1:I1, 0),FALSE)","v":60},null,null,null,{"$f":"VLOOKUP(AA15,市町村データ!A2:I106,MATCH(手順書_人口密度!$F$57, 市町村データ!A1:I1, 0),FALSE)","v":47},null,null,null,{"$f":"VLOOKUP(AE15,市町村データ!A2:I106,MATCH(手順書_人口密度!$F$57, 市町村データ!A1:I1, 0),FALSE)","v":55},null,null,null,{"$f":"VLOOKUP(AI15,市町村データ!A2:I106,MATCH(手順書_人口密度!$F$57, 市町村データ!A1:I1, 0),FALSE)","v":60},null,null,null,{"$f":"VLOOKUP(AM15,市町村データ!A2:I106,MATCH(手順書_人口密度!$F$57, 市町村データ!A1:I1, 0),FALSE)","v":15}]
[null,null,"D",null,null,null,null,null,null,null,null,null,null,null,24,{"$f":"VLOOKUP(O19,市町村データ!A2:I106,MATCH(手順書_人口密度!$G$54, 市町村データ!A1:I1, 0),FALSE)","v":"菅沢2"},null,null,25,{"$f":"VLOOKUP(S19,市町村データ!A2:I106,MATCH(手順書_人口密度!$G$54, 市町村データ!A1:I1, 0),FALSE)","v":"菅沢1"},null,null,26,{"$f":"VLOOKUP(W19,市町村データ!A2:I106,MATCH(手順書_人口密度!$G$54, 市町村データ!A1:I1, 0),FALSE)","v":"野火止4"},null,null,27,{"$f":"VLOOKUP(AA19,市町村データ!A2:I106,MATCH(手順書_人口密度!$G$54, 市町村データ!A1:I1, 0),FALSE)","v":"野火止3"},null,null,28,{"$f":"VLOOKUP(AE19,市町村データ!A2:I106,MATCH(手順書_人口密度!$G$54, 市町村データ!A1:I1, 0),FALSE)","v":"野火止2"},null,null,29,{"$f":"VLOOKUP(AI19,市町村データ!A2:I106,MATCH(手順書_人口密度!$G$54, 市町村データ!A1:I1, 0),FALSE)","v":"野火止1"},null,null,30,{"$f":"VLOOKUP(AM19,市町村データ!A2:I106,MATCH(手順書_人口密度!$G$54, 市町村データ!A1:I1, 0),FALSE)","v":"畑中1"},null,null,31,{"$f":"VLOOKUP(AQ19,市町村データ!A2:I106,MATCH(手順書_人口密度!$G$54, 市町村データ!A1:I1, 0),FALSE)","v":"畑中2"}]
[null,null,null,null,null,null,null,null,null,null,null,null,null,null,{"$f":"VLOOKUP(O19,市町村データ!A2:I106,MATCH(手順書_人口密度!$F$55, 市町村データ!A1:I1, 0),FALSE)","v":23.4},null,null,null,{"$f":"VLOOKUP(S19,市町村データ!A2:I106,MATCH(手順書_人口密度!$F$55, 市町村データ!A1:I1, 0),FALSE)","v":11.6},null,null,null,{"$f":"VLOOKUP(W19,市町村データ!A2:I106,MATCH(手順書_人口密度!$F$55, 市町村データ!A1:I1, 0),FALSE)","v":79.8},null,null,null,{"$f":"VLOOKUP(AA19,市町村データ!A2:I106,MATCH(手順書_人口密度!$F$55, 市町村データ!A1:I1, 0),FALSE)","v":22.9},null,null,null,{"$f":"VLOOKUP(AE19,市町村データ!A2:I106,MATCH(手順書_人口密度!$F$55, 市町村データ!A1:I1, 0),FALSE)","v":9.9},null,null,null,{"$f":"VLOOKUP(AI19,市町村データ!A2:I106,MATCH(手順書_人口密度!$F$55, 市町村データ!A1:I1, 0),FALSE)","v":59.6},null,null,null,{"$f":"VLOOKUP(AM19,市町村データ!A2:I106,MATCH(手順書_人口密度!$F$55, 市町村データ!A1:I1, 0),FALSE)","v":87.3},null,null,null,{"$f":"VLOOKUP(AQ19,市町村データ!A2:I106,MATCH(手順書_人口密度!$F$55, 市町村データ!A1:I1, 0),FALSE)","v":72.3}]
[null,null,null,null,null,null,null,null,null,null,null,null,null,null,{"$f":"VLOOKUP(O19,市町村データ!A2:I106,MATCH(手順書_人口密度!$F$56, 市町村データ!A1:I1, 0),FALSE)","v":993},null,null,null,{"$f":"VLOOKUP(S19,市町村データ!A2:I106,MATCH(手順書_人口密度!$F$56, 市町村データ!A1:I1, 0),FALSE)","v":460},null,null,null,{"$f":"VLOOKUP(W19,市町村データ!A2:I106,MATCH(手順書_人口密度!$F$56, 市町村データ!A1:I1, 0),FALSE)","v":5240},null,null,null,{"$f":"VLOOKUP(AA19,市町村データ!A2:I106,MATCH(手順書_人口密度!$F$56, 市町村データ!A1:I1, 0),FALSE)","v":2316},null,null,null,{"$f":"VLOOKUP(AE19,市町村データ!A2:I106,MATCH(手順書_人口密度!$F$56, 市町村データ!A1:I1, 0),FALSE)","v":450},null,null,null,{"$f":"VLOOKUP(AI19,市町村データ!A2:I106,MATCH(手順書_人口密度!$F$56, 市町村データ!A1:I1, 0),FALSE)","v":3149},null,null,null,{"$f":"VLOOKUP(AM19,市町村データ!A2:I106,MATCH(手順書_人口密度!$F$56, 市町村データ!A1:I1, 0),FALSE)","v":5131},null,null,null,{"$f":"VLOOKUP(AQ19,市町村データ!A2:I106,MATCH(手順書_人口密度!$F$56, 市町村データ!A1:I1, 0),FALSE)","v":3037}]
[null,null,null,null,null,null,null,null,null,null,null,null,null,null,{"$f":"VLOOKUP(O19,市町村データ!A2:I106,MATCH(手順書_人口密度!$F$57, 市町村データ!A1:I1, 0),FALSE)","v":42.5},null,null,null,{"$f":"VLOOKUP(S19,市町村データ!A2:I106,MATCH(手順書_人口密度!$F$57, 市町村データ!A1:I1, 0),FALSE)","v":39.6},null,null,null,{"$f":"VLOOKUP(W19,市町村データ!A2:I106,MATCH(手順書_人口密度!$F$57, 市町村データ!A1:I1, 0),FALSE)","v":65.7},null,null,null,{"$f":"VLOOKUP(AA19,市町村データ!A2:I106,MATCH(手順書_人口密度!$F$57, 市町村データ!A1:I1, 0),FALSE)","v":101.1},null,null,null,{"$f":"VLOOKUP(AE19,市町村データ!A2:I106,MATCH(手順書_人口密度!$F$57, 市町村データ!A1:I1, 0),FALSE)","v":45.6},null,null,null,{"$f":"VLOOKUP(AI19,市町村データ!A2:I106,MATCH(手順書_人口密度!$F$57, 市町村データ!A1:I1, 0),FALSE)","v":52.8},null,null,null,{"$f":"VLOOKUP(AM19,市町村データ!A2:I106,MATCH(手順書_人口密度!$F$57, 市町村データ!A1:I1, 0),FALSE)","v":58.8},null,null,null,{"$f":"VLOOKUP(AQ19,市町村データ!A2:I106,MATCH(手順書_人口密度!$F$57, 市町村データ!A1:I1, 0),FALSE)","v":42}]
[null,null,"E",null,null,null,null,null,null,null,null,null,null,null,32,{"$f":"VLOOKUP(O23,市町村データ!A2:I106,MATCH(手順書_人口密度!$G$54, 市町村データ!A1:I1, 0),FALSE)","v":"あたご3"},null,null,33,{"$f":"VLOOKUP(S23,市町村データ!A2:I106,MATCH(手順書_人口密度!$G$54, 市町村データ!A1:I1, 0),FALSE)","v":"あたご2"},null,null,34,{"$f":"VLOOKUP(W23,市町村データ!A2:I106,MATCH(手順書_人口密度!$G$54, 市町村データ!A1:I1, 0),FALSE)","v":"あたご1"},null,null,35,{"$f":"VLOOKUP(AA23,市町村データ!A2:I106,MATCH(手順書_人口密度!$G$54, 市町村データ!A1:I1, 0),FALSE)","v":"本多2"},null,null,36,{"$f":"VLOOKUP(AE23,市町村データ!A2:I106,MATCH(手順書_人口密度!$G$54, 市町村データ!A1:I1, 0),FALSE)","v":"本多1"},null,null,37,{"$f":"VLOOKUP(AI23,市町村データ!A2:I106,MATCH(手順書_人口密度!$G$54, 市町村データ!A1:I1, 0),FALSE)","v":"堀ノ内1"},null,null,38,{"$f":"VLOOKUP(AM23,市町村データ!A2:I106,MATCH(手順書_人口密度!$G$54, 市町村データ!A1:I1, 0),FALSE)","v":"馬場1"},null,null,39,{"$f":"VLOOKUP(AQ23,市町村データ!A2:I106,MATCH(手順書_人口密度!$G$54, 市町村データ!A1:I1, 0),FALSE)","v":"馬場2"},null,null,40,{"$f":"VLOOKUP(AU23,市町村データ!A2:I106,MATCH(手順書_人口密度!$G$54, 市町村データ!A1:I1, 0),FALSE)","v":"新塚1"},null,null,41,{"$f":"VLOOKUP(AY23,市町村データ!A2:I106,MATCH(手順書_人口密度!$G$54, 市町村データ!A1:I1, 0),FALSE)","v":"新塚他の地域"}]
[null,null,null,null,null,null,null,null,null,null,null,null,null,null,{"$f":"VLOOKUP(O23,市町村データ!A2:I106,MATCH(手順書_人口密度!$F$55, 市町村データ!A1:I1, 0),FALSE)","v":51},null,null,null,{"$f":"VLOOKUP(S23,市町村データ!A2:I106,MATCH(手順書_人口密度!$F$55, 市町村データ!A1:I1, 0),FALSE)","v":8.6},null,null,null,{"$f":"VLOOKUP(W23,市町村データ!A2:I106,MATCH(手順書_人口密度!$F$55, 市町村データ!A1:I1, 0),FALSE)","v":7.9},null,null,null,{"$f":"VLOOKUP(AA23,市町村データ!A2:I106,MATCH(手順書_人口密度!$F$55, 市町村データ!A1:I1, 0),FALSE)","v":1.4},null,null,null,{"$f":"VLOOKUP(AE23,市町村データ!A2:I106,MATCH(手順書_人口密度!$F$55, 市町村データ!A1:I1, 0),FALSE)","v":22.8},null,null,null,{"$f":"VLOOKUP(AI23,市町村データ!A2:I106,MATCH(手順書_人口密度!$F$55, 市町村データ!A1:I1, 0),FALSE)","v":17.3},null,null,null,{"$f":"VLOOKUP(AM23,市町村データ!A2:I106,MATCH(手順書_人口密度!$F$55, 市町村データ!A1:I1, 0),FALSE)","v":33.799999999999997},null,null,null,{"$f":"VLOOKUP(AQ23,市町村データ!A2:I106,MATCH(手順書_人口密度!$F$55, 市町村データ!A1:I1, 0),FALSE)","v":84.4},null,null,null,{"$f":"VLOOKUP(AU23,市町村データ!A2:I106,MATCH(手順書_人口密度!$F$55, 市町村データ!A1:I1, 0),FALSE)","v":68.8},null,null,null,{"$f":"VLOOKUP(AY23,市町村データ!A2:I106,MATCH(手順書_人口密度!$F$55, 市町村データ!A1:I1, 0),FALSE)","v":0}]
[null,null,null,null,null,null,null,null,null,null,null,null,null,null,{"$f":"VLOOKUP(O23,市町村データ!A2:I106,MATCH(手順書_人口密度!$F$56, 市町村データ!A1:I1, 0),FALSE)","v":1214},null,null,null,{"$f":"VLOOKUP(S23,市町村データ!A2:I106,MATCH(手順書_人口密度!$F$56, 市町村データ!A1:I1, 0),FALSE)","v":137},null,null,null,{"$f":"VLOOKUP(W23,市町村データ!A2:I106,MATCH(手順書_人口密度!$F$56, 市町村データ!A1:I1, 0),FALSE)","v":125},null,null,null,{"$f":"VLOOKUP(AA23,市町村データ!A2:I106,MATCH(手順書_人口密度!$F$56, 市町村データ!A1:I1, 0),FALSE)","v":58},null,null,null,{"$f":"VLOOKUP(AE23,市町村データ!A2:I106,MATCH(手順書_人口密度!$F$56, 市町村データ!A1:I1, 0),FALSE)","v":1175},null,null,null,{"$f":"VLOOKUP(AI23,市町村データ!A2:I106,MATCH(手順書_人口密度!$F$56, 市町村データ!A1:I1, 0),FALSE)","v":480},null,null,null,{"$f":"VLOOKUP(AM23,市町村データ!A2:I106,MATCH(手順書_人口密度!$F$56, 市町村データ!A1:I1, 0),FALSE)","v":1342},null,null,null,{"$f":"VLOOKUP(AQ23,市町村データ!A2:I106,MATCH(手順書_人口密度!$F$56, 市町村データ!A1:I1, 0),FALSE)","v":1603},null,null,null,{"$f":"VLOOKUP(AU23,市町村データ!A2:I106,MATCH(手順書_人口密度!$F$56, 市町村データ!A1:I1, 0),FALSE)","v":1451},null,null,null,{"$f":"VLOOKUP(AY23,市町村データ!A2:I106,MATCH(手順書_人口密度!$F$56, 市町村データ!A1:I1, 0),FALSE)","v":0}]
[null,null,null,null,null,null,null,null,null,null,null,null,null,null,{"$f":"VLOOKUP(O23,市町村データ!A2:I106,MATCH(手順書_人口密度!$F$57, 市町村データ!A1:I1, 0),FALSE)","v":23.8},null,null,null,{"$f":"VLOOKUP(S23,市町村データ!A2:I106,MATCH(手順書_人口密度!$F$57, 市町村データ!A1:I1, 0),FALSE)","v":15.9},null,null,null,{"$f":"VLOOKUP(W23,市町村データ!A2:I106,MATCH(手順書_人口密度!$F$57, 市町村データ!A1:I1, 0),FALSE)","v":15.9},null,null,null,{"$f":"VLOOKUP(AA23,市町村データ!A2:I106,MATCH(手順書_人口密度!$F$57, 市町村データ!A1:I1, 0),FALSE)","v":41.6},null,null,null,{"$f":"VLOOKUP(AE23,市町村データ!A2:I106,MATCH(手順書_人口密度!$F$57, 市町村データ!A1:I1, 0),FALSE)","v":51.5},null,null,null,{"$f":"VLOOKUP(AI23,市町村データ!A2:I106,MATCH(手順書_人口密度!$F$57, 市町村データ!A1:I1, 0),FALSE)","v":27.7},null,null,null,{"$f":"VLOOKUP(AM23,市町村データ!A2:I106,MATCH(手順書_人口密度!$F$57, 市町村データ!A1:I1, 0),FALSE)","v":39.700000000000003},null,null,null,{"$f":"VLOOKUP(AQ23,市町村データ!A2:I106,MATCH(手順書_人口密度!$F$57, 市町村データ!A1:I1, 0),FALSE)","v":19},null,null,null,{"$f":"VLOOKUP(AU23,市町村データ!A2:I106,MATCH(手順書_人口密度!$F$57, 市町村データ!A1:I1, 0),FALSE)","v":21.1},null,null,null,{"$f":"VLOOKUP(AY23,市町村データ!A2:I106,MATCH(手順書_人口密度!$F$57, 市町村データ!A1:I1, 0),FALSE)","v":41.8}]
[null,null,"F",null,null,null,null,null,null,null,null,null,null,null,null,null,null,null,42,{"$f":"VLOOKUP(S27,市町村データ!A2:I106,MATCH(手順書_人口密度!$G$54, 市町村データ!A1:I1, 0),FALSE)","v":"西堀2"},null,null,43,{"$f":"VLOOKUP(W27,市町村データ!A2:I106,MATCH(手順書_人口密度!$G$54, 市町村データ!A1:I1, 0),FALSE)","v":"西堀1"},null,null,44,{"$f":"VLOOKUP(AA27,市町村データ!A2:I106,MATCH(手順書_人口密度!$G$54, 市町村データ!A1:I1, 0),FALSE)","v":"石神5"},null,null,45,{"$f":"VLOOKUP(AE27,市町村データ!A2:I106,MATCH(手順書_人口密度!$G$54, 市町村データ!A1:I1, 0),FALSE)","v":"堀ノ内3"},null,null,46,{"$f":"VLOOKUP(AI27,市町村データ!A2:I106,MATCH(手順書_人口密度!$G$54, 市町村データ!A1:I1, 0),FALSE)","v":"堀ノ内2"},null,null,47,{"$f":"VLOOKUP(AM27,市町村データ!A2:I106,MATCH(手順書_人口密度!$G$54, 市町村データ!A1:I1, 0),FALSE)","v":"馬場4"},null,null,48,{"$f":"VLOOKUP(AQ27,市町村データ!A2:I106,MATCH(手順書_人口密度!$G$54, 市町村データ!A1:I1, 0),FALSE)","v":"馬場3"},null,null,49,{"$f":"VLOOKUP(AU27,市町村データ!A2:I106,MATCH(手順書_人口密度!$G$54, 市町村データ!A1:I1, 0),FALSE)","v":"栄1"},null,null,50,{"$f":"VLOOKUP(AY27,市町村データ!A2:I106,MATCH(手順書_人口密度!$G$54, 市町村データ!A1:I1, 0),FALSE)","v":"栄2"},null,null,51,{"$f":"VLOOKUP(BC27,市町村データ!A2:I106,MATCH(手順書_人口密度!$G$54, 市町村データ!A1:I1, 0),FALSE)","v":"栄3"},null,null,52,{"$f":"VLOOKUP(BG27,市町村データ!A2:I106,MATCH(手順書_人口密度!$G$54, 市町村データ!A1:I1, 0),FALSE)","v":"栄4"},null,null,53,{"$f":"VLOOKUP(BK27,市町村データ!A2:I106,MATCH(手順書_人口密度!$G$54, 市町村データ!A1:I1, 0),FALSE)","v":"栄5"}]
[null,null,null,null,null,null,null,null,null,null,null,null,null,null,null,null,null,null,{"$f":"VLOOKUP(S27,市町村データ!A2:I106,MATCH(手順書_人口密度!$F$55, 市町村データ!A1:I1, 0),FALSE)","v":109.8},null,null,null,{"$f":"VLOOKUP(W27,市町村データ!A2:I106,MATCH(手順書_人口密度!$F$55, 市町村データ!A1:I1, 0),FALSE)","v":88.8},null,null,null,{"$f":"VLOOKUP(AA27,市町村データ!A2:I106,MATCH(手順書_人口密度!$F$55, 市町村データ!A1:I1, 0),FALSE)","v":169.4},null,null,null,{"$f":"VLOOKUP(AE27,市町村データ!A2:I106,MATCH(手順書_人口密度!$F$55, 市町村データ!A1:I1, 0),FALSE)","v":9.1999999999999993},null,null,null,{"$f":"VLOOKUP(AI27,市町村データ!A2:I106,MATCH(手順書_人口密度!$F$55, 市町村データ!A1:I1, 0),FALSE)","v":40.9},null,null,null,{"$f":"VLOOKUP(AM27,市町村データ!A2:I106,MATCH(手順書_人口密度!$F$55, 市町村データ!A1:I1, 0),FALSE)","v":35.200000000000003},null,null,null,{"$f":"VLOOKUP(AQ27,市町村データ!A2:I106,MATCH(手順書_人口密度!$F$55, 市町村データ!A1:I1, 0),FALSE)","v":53.3},null,null,null,{"$f":"VLOOKUP(AU27,市町村データ!A2:I106,MATCH(手順書_人口密度!$F$55, 市町村データ!A1:I1, 0),FALSE)","v":84.9},null,null,null,{"$f":"VLOOKUP(AY27,市町村データ!A2:I106,MATCH(手順書_人口密度!$F$55, 市町村データ!A1:I1, 0),FALSE)","v":148.6},null,null,null,{"$f":"VLOOKUP(BC27,市町村データ!A2:I106,MATCH(手順書_人口密度!$F$55, 市町村データ!A1:I1, 0),FALSE)","v":141.5},null,null,null,{"$f":"VLOOKUP(BG27,市町村データ!A2:I106,MATCH(手順書_人口密度!$F$55, 市町村データ!A1:I1, 0),FALSE)","v":135.9},null,null,null,{"$f":"VLOOKUP(BK27,市町村データ!A2:I106,MATCH(手順書_人口密度!$F$55, 市町村データ!A1:I1, 0),FALSE)","v":160.69999999999999}]
[null,null,null,null,null,null,null,null,null,null,null,null,null,null,null,null,null,null,{"$f":"VLOOKUP(S27,市町村データ!A2:I106,MATCH(手順書_人口密度!$F$56, 市町村データ!A1:I1, 0),FALSE)","v":4393},null,null,null,{"$f":"VLOOKUP(W27,市町村データ!A2:I106,MATCH(手順書_人口密度!$F$56, 市町村データ!A1:I1, 0),FALSE)","v":1864},null,null,null,{"$f":"VLOOKUP(AA27,市町村データ!A2:I106,MATCH(手順書_人口密度!$F$56, 市町村データ!A1:I1, 0),FALSE)","v":2033},null,null,null,{"$f":"VLOOKUP(AE27,市町村データ!A2:I106,MATCH(手順書_人口密度!$F$56, 市町村データ!A1:I1, 0),FALSE)","v":291},null,null,null,{"$f":"VLOOKUP(AI27,市町村データ!A2:I106,MATCH(手順書_人口密度!$F$56, 市町村データ!A1:I1, 0),FALSE)","v":768},null,null,null,{"$f":"VLOOKUP(AM27,市町村データ!A2:I106,MATCH(手順書_人口密度!$F$56, 市町村データ!A1:I1, 0),FALSE)","v":1446},null,null,null,{"$f":"VLOOKUP(AQ27,市町村データ!A2:I106,MATCH(手順書_人口密度!$F$56, 市町村データ!A1:I1, 0),FALSE)","v":1390},null,null,null,{"$f":"VLOOKUP(AU27,市町村データ!A2:I106,MATCH(手順書_人口密度!$F$56, 市町村データ!A1:I1, 0),FALSE)","v":849},null,null,null,{"$f":"VLOOKUP(AY27,市町村データ!A2:I106,MATCH(手順書_人口密度!$F$56, 市町村データ!A1:I1, 0),FALSE)","v":2229},null,null,null,{"$f":"VLOOKUP(BC27,市町村データ!A2:I106,MATCH(手順書_人口密度!$F$56, 市町村データ!A1:I1, 0),FALSE)","v":1839},null,null,null,{"$f":"VLOOKUP(BG27,市町村データ!A2:I106,MATCH(手順書_人口密度!$F$56, 市町村データ!A1:I1, 0),FALSE)","v":1835},null,null,null,{"$f":"VLOOKUP(BK27,市町村データ!A2:I106,MATCH(手順書_人口密度!$F$56, 市町村データ!A1:I1, 0),FALSE)","v":2651}]
[null,null,null,null,null,null,null,null,null,null,null,null,null,null,null,null,null,null,{"$f":"VLOOKUP(S27,市町村データ!A2:I106,MATCH(手順書_人口密度!$F$57, 市町村データ!A1:I1, 0),FALSE)","v":40},null,null,null,{"$f":"VLOOKUP(W27,市町村データ!A2:I106,MATCH(手順書_人口密度!$F$57, 市町村データ!A1:I1, 0),FALSE)","v":21},null,null,null,{"$f":"VLOOKUP(AA27,市町村データ!A2:I106,MATCH(手順書_人口密度!$F$57, 市町村データ!A1:I1, 0),FALSE)","v":12},null,null,null,{"$f":"VLOOKUP(AE27,市町村データ!A2:I106,MATCH(手順書_人口密度!$F$57, 市町村データ!A1:I1, 0),FALSE)","v":31.7},null,null,null,{"$f":"VLOOKUP(AI27,市町村データ!A2:I106,MATCH(手順書_人口密度!$F$57, 市町村データ!A1:I1, 0),FALSE)","v":18.8},null,null,null,{"$f":"VLOOKUP(AM27,市町村データ!A2:I106,MATCH(手順書_人口密度!$F$57, 市町村データ!A1:I1, 0),FALSE)","v":41.1},null,null,null,{"$f":"VLOOKUP(AQ27,市町村データ!A2:I106,MATCH(手順書_人口密度!$F$57, 市町村データ!A1:I1, 0),FALSE)","v":26.1},null,null,null,{"$f":"VLOOKUP(AU27,市町村データ!A2:I106,MATCH(手順書_人口密度!$F$57, 市町村データ!A1:I1, 0),FALSE)","v":10},null,null,null,{"$f":"VLOOKUP(AY27,市町村データ!A2:I106,MATCH(手順書_人口密度!$F$57, 市町村データ!A1:I1, 0),FALSE)","v":15},null,null,null,{"$f":"VLOOKUP(BC27,市町村データ!A2:I106,MATCH(手順書_人口密度!$F$57, 市町村データ!A1:I1, 0),FALSE)","v":13},null,null,null,{"$f":"VLOOKUP(BG27,市町村データ!A2:I106,MATCH(手順書_人口密度!$F$57, 市町村データ!A1:I1, 0),FALSE)","v":13.5},null,null,null,{"$f":"VLOOKUP(BK27,市町村データ!A2:I106,MATCH(手順書_人口密度!$F$57, 市町村データ!A1:I1, 0),FALSE)","v":16.5}]
[null,null,"G",null,null,null,54,{"$f":"VLOOKUP(G31,市町村データ!A2:I106,MATCH(手順書_人口密度!$G$54, 市町村データ!A1:I1, 0),FALSE)","v":"新堀3"},null,null,55,{"$f":"VLOOKUP(K31,市町村データ!A2:I106,MATCH(手順書_人口密度!$G$54, 市町村データ!A1:I1, 0),FALSE)","v":"新堀2"},null,null,56,{"$f":"VLOOKUP(O31,市町村データ!A2:I106,MATCH(手順書_人口密度!$G$54, 市町村データ!A1:I1, 0),FALSE)","v":"新堀1"},null,null,57,{"$f":"VLOOKUP(S31,市町村データ!A2:I106,MATCH(手順書_人口密度!$G$54, 市町村データ!A1:I1, 0),FALSE)","v":"西堀3"},null,null,null,null,null,null,58,{"$f":"VLOOKUP(AA31,市町村データ!A2:I106,MATCH(手順書_人口密度!$G$54, 市町村データ!A1:I1, 0),FALSE)","v":"石神4"},null,null,59,{"$f":"VLOOKUP(AE31,市町村データ!A2:I106,MATCH(手順書_人口密度!$G$54, 市町村データ!A1:I1, 0),FALSE)","v":"石神1"},null,null,60,{"$f":"VLOOKUP(AI31,市町村データ!A2:I106,MATCH(手順書_人口密度!$G$54, 市町村データ!A1:I1, 0),FALSE)","v":"道場2"},null,null,61,{"$f":"VLOOKUP(AM31,市町村データ!A2:I106,MATCH(手順書_人口密度!$G$54, 市町村データ!A1:I1, 0),FALSE)","v":"道場1"},null,null,null,null,null,null,62,{"$f":"VLOOKUP(AU31,市町村データ!A2:I106,MATCH(手順書_人口密度!$G$54, 市町村データ!A1:I1, 0),FALSE)","v":"池田1"},null,null,63,{"$f":"VLOOKUP(AY31,市町村データ!A2:I106,MATCH(手順書_人口密度!$G$54, 市町村データ!A1:I1, 0),FALSE)","v":"池田2"},null,null,64,{"$f":"VLOOKUP(BC31,市町村データ!A2:I106,MATCH(手順書_人口密度!$G$54, 市町村データ!A1:I1, 0),FALSE)","v":"池田3"},null,null,65,{"$f":"VLOOKUP(BG31,市町村データ!A2:I106,MATCH(手順書_人口密度!$G$54, 市町村データ!A1:I1, 0),FALSE)","v":"池田4"},null,null,66,{"$f":"VLOOKUP(BK31,市町村データ!A2:I106,MATCH(手順書_人口密度!$G$54, 市町村データ!A1:I1, 0),FALSE)","v":"池田5"}]
[null,null,null,null,null,null,{"$f":"VLOOKUP(G31,市町村データ!A2:I106,MATCH(手順書_人口密度!$F$55, 市町村データ!A1:I1, 0),FALSE)","v":158.69999999999999},null,null,null,{"$f":"VLOOKUP(K31,市町村データ!A2:I106,MATCH(手順書_人口密度!$F$55, 市町村データ!A1:I1, 0),FALSE)","v":133},null,null,null,{"$f":"VLOOKUP(O31,市町村データ!A2:I106,MATCH(手順書_人口密度!$F$55, 市町村データ!A1:I1, 0),FALSE)","v":118.2},null,null,null,{"$f":"VLOOKUP(S31,市町村データ!A2:I106,MATCH(手順書_人口密度!$F$55, 市町村データ!A1:I1, 0),FALSE)","v":2.7},null,null,null,null,null,null,null,{"$f":"VLOOKUP(AA31,市町村データ!A2:I106,MATCH(手順書_人口密度!$F$55, 市町村データ!A1:I1, 0),FALSE)","v":93.7},null,null,null,{"$f":"VLOOKUP(AE31,市町村データ!A2:I106,MATCH(手順書_人口密度!$F$55, 市町村データ!A1:I1, 0),FALSE)","v":81.8},null,null,null,{"$f":"VLOOKUP(AI31,市町村データ!A2:I106,MATCH(手順書_人口密度!$F$55, 市町村データ!A1:I1, 0),FALSE)","v":22.9},null,null,null,{"$f":"VLOOKUP(AM31,市町村データ!A2:I106,MATCH(手順書_人口密度!$F$55, 市町村データ!A1:I1, 0),FALSE)","v":61},null,null,null,null,null,null,null,{"$f":"VLOOKUP(AU31,市町村データ!A2:I106,MATCH(手順書_人口密度!$F$55, 市町村データ!A1:I1, 0),FALSE)","v":1.2},null,null,null,{"$f":"VLOOKUP(AY31,市町村データ!A2:I106,MATCH(手順書_人口密度!$F$55, 市町村データ!A1:I1, 0),FALSE)","v":19},null,null,null,{"$f":"VLOOKUP(BC31,市町村データ!A2:I106,MATCH(手順書_人口密度!$F$55, 市町村データ!A1:I1, 0),FALSE)","v":49.9},null,null,null,{"$f":"VLOOKUP(BG31,市町村データ!A2:I106,MATCH(手順書_人口密度!$F$55, 市町村データ!A1:I1, 0),FALSE)","v":83.2},null,null,null,{"$f":"VLOOKUP(BK31,市町村データ!A2:I106,MATCH(手順書_人口密度!$F$55, 市町村データ!A1:I1, 0),FALSE)","v":147.30000000000001}]
[null,null,null,null,null,null,{"$f":"VLOOKUP(G31,市町村データ!A2:I106,MATCH(手順書_人口密度!$F$56, 市町村データ!A1:I1, 0),FALSE)","v":3173},null,null,null,{"$f":"VLOOKUP(K31,市町村データ!A2:I106,MATCH(手順書_人口密度!$F$56, 市町村データ!A1:I1, 0),FALSE)","v":3856},null,null,null,{"$f":"VLOOKUP(O31,市町村データ!A2:I106,MATCH(手順書_人口密度!$F$56, 市町村データ!A1:I1, 0),FALSE)","v":3429},null,null,null,{"$f":"VLOOKUP(S31,市町村データ!A2:I106,MATCH(手順書_人口密度!$F$56, 市町村データ!A1:I1, 0),FALSE)","v":119},null,null,null,null,null,null,null,{"$f":"VLOOKUP(AA31,市町村データ!A2:I106,MATCH(手順書_人口密度!$F$56, 市町村データ!A1:I1, 0),FALSE)","v":1686},null,null,null,{"$f":"VLOOKUP(AE31,市町村データ!A2:I106,MATCH(手順書_人口密度!$F$56, 市町村データ!A1:I1, 0),FALSE)","v":1529},null,null,null,{"$f":"VLOOKUP(AI31,市町村データ!A2:I106,MATCH(手順書_人口密度!$F$56, 市町村データ!A1:I1, 0),FALSE)","v":591},null,null,null,{"$f":"VLOOKUP(AM31,市町村データ!A2:I106,MATCH(手順書_人口密度!$F$56, 市町村データ!A1:I1, 0),FALSE)","v":1024},null,null,null,null,null,null,null,{"$f":"VLOOKUP(AU31,市町村データ!A2:I106,MATCH(手順書_人口密度!$F$56, 市町村データ!A1:I1, 0),FALSE)","v":12},null,null,null,{"$f":"VLOOKUP(AY31,市町村データ!A2:I106,MATCH(手順書_人口密度!$F$56, 市町村データ!A1:I1, 0),FALSE)","v":226},null,null,null,{"$f":"VLOOKUP(BC31,市町村データ!A2:I106,MATCH(手順書_人口密度!$F$56, 市町村データ!A1:I1, 0),FALSE)","v":599},null,null,null,{"$f":"VLOOKUP(BG31,市町村データ!A2:I106,MATCH(手順書_人口密度!$F$56, 市町村データ!A1:I1, 0),FALSE)","v":1123},null,null,null,{"$f":"VLOOKUP(BK31,市町村データ!A2:I106,MATCH(手順書_人口密度!$F$56, 市町村データ!A1:I1, 0),FALSE)","v":1178}]
[null,null,null,null,null,null,{"$f":"VLOOKUP(G31,市町村データ!A2:I106,MATCH(手順書_人口密度!$F$57, 市町村データ!A1:I1, 0),FALSE)","v":20},null,null,null,{"$f":"VLOOKUP(K31,市町村データ!A2:I106,MATCH(手順書_人口密度!$F$57, 市町村データ!A1:I1, 0),FALSE)","v":29},null,null,null,{"$f":"VLOOKUP(O31,市町村データ!A2:I106,MATCH(手順書_人口密度!$F$57, 市町村データ!A1:I1, 0),FALSE)","v":29},null,null,null,{"$f":"VLOOKUP(S31,市町村データ!A2:I106,MATCH(手順書_人口密度!$F$57, 市町村データ!A1:I1, 0),FALSE)","v":43.6},null,null,null,null,null,null,null,{"$f":"VLOOKUP(AA31,市町村データ!A2:I106,MATCH(手順書_人口密度!$F$57, 市町村データ!A1:I1, 0),FALSE)","v":18},null,null,null,{"$f":"VLOOKUP(AE31,市町村データ!A2:I106,MATCH(手順書_人口密度!$F$57, 市町村データ!A1:I1, 0),FALSE)","v":18.7},null,null,null,{"$f":"VLOOKUP(AI31,市町村データ!A2:I106,MATCH(手順書_人口密度!$F$57, 市町村データ!A1:I1, 0),FALSE)","v":25.8},null,null,null,{"$f":"VLOOKUP(AM31,市町村データ!A2:I106,MATCH(手順書_人口密度!$F$57, 市町村データ!A1:I1, 0),FALSE)","v":16.8},null,null,null,null,null,null,null,{"$f":"VLOOKUP(AU31,市町村データ!A2:I106,MATCH(手順書_人口密度!$F$57, 市町村データ!A1:I1, 0),FALSE)","v":9.9},null,null,null,{"$f":"VLOOKUP(AY31,市町村データ!A2:I106,MATCH(手順書_人口密度!$F$57, 市町村データ!A1:I1, 0),FALSE)","v":11.9},null,null,null,{"$f":"VLOOKUP(BC31,市町村データ!A2:I106,MATCH(手順書_人口密度!$F$57, 市町村データ!A1:I1, 0),FALSE)","v":12},null,null,null,{"$f":"VLOOKUP(BG31,市町村データ!A2:I106,MATCH(手順書_人口密度!$F$57, 市町村データ!A1:I1, 0),FALSE)","v":13.5},null,null,null,{"$f":"VLOOKUP(BK31,市町村データ!A2:I106,MATCH(手順書_人口密度!$F$57, 市町村データ!A1:I1, 0),FALSE)","v":8}]
[null,null,"H",null,null,null,null,null,null,null,null,null,null,null,null,null,null,null,null,null,null,null,null,null,null,null,67,{"$f":"VLOOKUP(AA35,市町村データ!A2:I106,MATCH(手順書_人口密度!$G$54, 市町村データ!A1:I1, 0),FALSE)","v":"石神3"},null,null,68,{"$f":"VLOOKUP(AE35,市町村データ!A2:I106,MATCH(手順書_人口密度!$G$54, 市町村データ!A1:I1, 0),FALSE)","v":"石神2"},null,null,null,null,null,null,null,null,null,null,null,null,null,null,null,null,null,null,null,null,null,null,69,{"$f":"VLOOKUP(BC35,市町村データ!A2:I106,MATCH(手順書_人口密度!$G$54, 市町村データ!A1:I1, 0),FALSE)","v":"片山1"},null,null,70,{"$f":"VLOOKUP(BG35,市町村データ!A2:I106,MATCH(手順書_人口密度!$G$54, 市町村データ!A1:I1, 0),FALSE)","v":"片山2"},null,null,71,{"$f":"VLOOKUP(BK35,市町村データ!A2:I106,MATCH(手順書_人口密度!$G$54, 市町村データ!A1:I1, 0),FALSE)","v":"片山3"}]
[null,null,null,null,null,null,null,null,null,null,null,null,null,null,null,null,null,null,null,null,null,null,null,null,null,null,{"$f":"VLOOKUP(AA35,市町村データ!A2:I106,MATCH(手順書_人口密度!$F$55, 市町村データ!A1:I1, 0),FALSE)","v":158.30000000000001},null,null,null,{"$f":"VLOOKUP(AE35,市町村データ!A2:I106,MATCH(手順書_人口密度!$F$55, 市町村データ!A1:I1, 0),FALSE)","v":122.2},null,null,null,null,null,null,null,null,null,null,null,null,null,null,null,null,null,null,null,null,null,null,null,{"$f":"VLOOKUP(BC35,市町村データ!A2:I106,MATCH(手順書_人口密度!$F$55, 市町村データ!A1:I1, 0),FALSE)","v":102.8},null,null,null,{"$f":"VLOOKUP(BG35,市町村データ!A2:I106,MATCH(手順書_人口密度!$F$55, 市町村データ!A1:I1, 0),FALSE)","v":73.7},null,null,null,{"$f":"VLOOKUP(BK35,市町村データ!A2:I106,MATCH(手順書_人口密度!$F$55, 市町村データ!A1:I1, 0),FALSE)","v":119.3}]
[null,null,null,null,null,null,null,null,null,null,null,null,null,null,null,null,null,null,null,null,null,null,null,null,null,null,{"$f":"VLOOKUP(AA35,市町村データ!A2:I106,MATCH(手順書_人口密度!$F$56, 市町村データ!A1:I1, 0),FALSE)","v":2169},null,null,null,{"$f":"VLOOKUP(AE35,市町村データ!A2:I106,MATCH(手順書_人口密度!$F$56, 市町村データ!A1:I1, 0),FALSE)","v":1894},null,null,null,null,null,null,null,null,null,null,null,null,null,null,null,null,null,null,null,null,null,null,null,{"$f":"VLOOKUP(BC35,市町村データ!A2:I106,MATCH(手順書_人口密度!$F$56, 市町村データ!A1:I1, 0),FALSE)","v":2365},null,null,null,{"$f":"VLOOKUP(BG35,市町村データ!A2:I106,MATCH(手順書_人口密度!$F$56, 市町村データ!A1:I1, 0),FALSE)","v":1327},null,null,null,{"$f":"VLOOKUP(BK35,市町村データ!A2:I106,MATCH(手順書_人口密度!$F$56, 市町村データ!A1:I1, 0),FALSE)","v":3818}]
[null,null,null,null,null,null,null,null,null,null,null,null,null,null,null,null,null,null,null,null,null,null,null,null,null,null,{"$f":"VLOOKUP(AA35,市町村データ!A2:I106,MATCH(手順書_人口密度!$F$57, 市町村データ!A1:I1, 0),FALSE)","v":13.7},null,null,null,{"$f":"VLOOKUP(AE35,市町村データ!A2:I106,MATCH(手順書_人口密度!$F$57, 市町村データ!A1:I1, 0),FALSE)","v":15.5},null,null,null,null,null,null,null,null,null,null,null,null,null,null,null,null,null,null,null,null,null,null,null,{"$f":"VLOOKUP(BC35,市町村データ!A2:I106,MATCH(手順書_人口密度!$F$57, 市町村データ!A1:I1, 0),FALSE)","v":23},null,null,null,{"$f":"VLOOKUP(BG35,市町村データ!A2:I106,MATCH(手順書_人口密度!$F$57, 市町村データ!A1:I1, 0),FALSE)","v":18},null,null,null,{"$f":"VLOOKUP(BK35,市町村データ!A2:I106,MATCH(手順書_人口密度!$F$57, 市町村データ!A1:I1, 0),FALSE)","v":32}]
[null,null,"I",null,null,null,null,null,null,null,null,null,null,null,null,null,null,null,null,null,null,null,null,null,null,null,null,null,null,null,null,null,null,null,null,null,null,null,null,null,null,null,null,null,null,null,null,null,null,null,72,{"$f":"VLOOKUP(AY39,市町村データ!A2:I106,MATCH(手順書_人口密度!$G$54, 市町村データ!A1:I1, 0),FALSE)","v":"野寺1"},null,null,73,{"$f":"VLOOKUP(BC39,市町村データ!A2:I106,MATCH(手順書_人口密度!$G$54, 市町村データ!A1:I1, 0),FALSE)","v":"野寺2"},null,null,74,{"$f":"VLOOKUP(BG39,市町村データ!A2:I106,MATCH(手順書_人口密度!$G$54, 市町村データ!A1:I1, 0),FALSE)","v":"野寺3"},null,null,75,{"$f":"VLOOKUP(BK39,市町村データ!A2:I106,MATCH(手順書_人口密度!$G$54, 市町村データ!A1:I1, 0),FALSE)","v":"野寺4"},null,null,76,{"$f":"VLOOKUP(BO39,市町村データ!A2:I106,MATCH(手順書_人口密度!$G$54, 市町村データ!A1:I1, 0),FALSE)","v":"野寺5"}]
[null,null,null,null,null,null,null,null,null,null,null,null,null,null,null,null,null,null,null,null,null,null,null,null,null,null,null,null,null,null,null,null,null,null,null,null,null,null,null,null,null,null,null,null,null,null,null,null,null,null,{"$f":"VLOOKUP(AY39,市町村データ!A2:I106,MATCH(手順書_人口密度!$F$55, 市町村データ!A1:I1, 0),FALSE)","v":120.2},null,null,null,{"$f":"VLOOKUP(BC39,市町村データ!A2:I106,MATCH(手順書_人口密度!$F$55, 市町村データ!A1:I1, 0),FALSE)","v":91},null,null,null,{"$f":"VLOOKUP(BG39,市町村データ!A2:I106,MATCH(手順書_人口密度!$F$55, 市町村データ!A1:I1, 0),FALSE)","v":105.9},null,null,null,{"$f":"VLOOKUP(BK39,市町村データ!A2:I106,MATCH(手順書_人口密度!$F$55, 市町村データ!A1:I1, 0),FALSE)","v":128.5},null,null,null,{"$f":"VLOOKUP(BO39,市町村データ!A2:I106,MATCH(手順書_人口密度!$F$55, 市町村データ!A1:I1, 0),FALSE)","v":124.1}]
[null,null,null,null,null,null,null,null,null,null,null,null,null,null,null,null,null,null,null,null,null,null,null,null,null,null,null,null,null,null,null,null,null,null,null,null,null,null,null,null,null,null,null,null,null,null,null,null,null,null,{"$f":"VLOOKUP(AY39,市町村データ!A2:I106,MATCH(手順書_人口密度!$F$56, 市町村データ!A1:I1, 0),FALSE)","v":1322},null,null,null,{"$f":"VLOOKUP(BC39,市町村データ!A2:I106,MATCH(手順書_人口密度!$F$56, 市町村データ!A1:I1, 0),FALSE)","v":2411},null,null,null,{"$f":"VLOOKUP(BG39,市町村データ!A2:I106,MATCH(手順書_人口密度!$F$56, 市町村データ!A1:I1, 0),FALSE)","v":2246},null,null,null,{"$f":"VLOOKUP(BK39,市町村データ!A2:I106,MATCH(手順書_人口密度!$F$56, 市町村データ!A1:I1, 0),FALSE)","v":2570},null,null,null,{"$f":"VLOOKUP(BO39,市町村データ!A2:I106,MATCH(手順書_人口密度!$F$56, 市町村データ!A1:I1, 0),FALSE)","v":1303}]
[null,null,null,null,null,null,null,null,null,null,null,null,null,null,null,null,null,null,null,null,null,null,null,null,null,null,null,null,null,null,null,null,null,null,null,null,null,null,null,null,null,null,null,null,null,null,null,null,null,null,{"$f":"VLOOKUP(AY39,市町村データ!A2:I106,MATCH(手順書_人口密度!$F$57, 市町村データ!A1:I1, 0),FALSE)","v":11},null,null,null,{"$f":"VLOOKUP(BC39,市町村データ!A2:I106,MATCH(手順書_人口密度!$F$57, 市町村データ!A1:I1, 0),FALSE)","v":26.5},null,null,null,{"$f":"VLOOKUP(BG39,市町村データ!A2:I106,MATCH(手順書_人口密度!$F$57, 市町村データ!A1:I1, 0),FALSE)","v":21.2},null,null,null,{"$f":"VLOOKUP(BK39,市町村データ!A2:I106,MATCH(手順書_人口密度!$F$57, 市町村データ!A1:I1, 0),FALSE)","v":20},null,null,null,{"$f":"VLOOKUP(BO39,市町村データ!A2:I106,MATCH(手順書_人口密度!$F$57, 市町村データ!A1:I1, 0),FALSE)","v":10.5}]
[null,null,"J",null,null,null,null,null,null,null,null,null,null,null,null,null,null,null,null,null,null,null,null,null,null,null,null,null,null,null,null,null,null,null,null,null,null,null,null,null,null,null,null,null,null,null,null,null,null,null,77,{"$f":"VLOOKUP(AY43,市町村データ!A2:I106,MATCH(手順書_人口密度!$G$54, 市町村データ!A1:I1, 0),FALSE)","v":"栗原1"},null,null,78,{"$f":"VLOOKUP(BC43,市町村データ!A2:I106,MATCH(手順書_人口密度!$G$54, 市町村データ!A1:I1, 0),FALSE)","v":"栗原2"},null,null,79,{"$f":"VLOOKUP(BG43,市町村データ!A2:I106,MATCH(手順書_人口密度!$G$54, 市町村データ!A1:I1, 0),FALSE)","v":"栗原3"}]
[null,null,null,null,null,null,null,null,null,null,null,null,null,null,null,null,null,null,null,null,null,null,null,null,null,null,null,null,null,null,null,null,null,null,null,null,null,null,null,null,null,null,null,null,null,null,null,null,null,null,{"$f":"VLOOKUP(AY43,市町村データ!A2:I106,MATCH(手順書_人口密度!$F$55, 市町村データ!A1:I1, 0),FALSE)","v":153},null,null,null,{"$f":"VLOOKUP(BC43,市町村データ!A2:I106,MATCH(手順書_人口密度!$F$55, 市町村データ!A1:I1, 0),FALSE)","v":92},null,null,null,{"$f":"VLOOKUP(BG43,市町村データ!A2:I106,MATCH(手順書_人口密度!$F$55, 市町村データ!A1:I1, 0),FALSE)","v":137.4}]
[null,null,null,null,null,null,null,null,null,null,null,null,null,null,null,null,null,null,null,null,null,null,null,null,null,null,null,null,null,null,null,null,null,null,null,null,null,null,null,null,null,null,null,null,null,null,null,null,null,null,{"$f":"VLOOKUP(AY43,市町村データ!A2:I106,MATCH(手順書_人口密度!$F$56, 市町村データ!A1:I1, 0),FALSE)","v":3350},null,null,null,{"$f":"VLOOKUP(BC43,市町村データ!A2:I106,MATCH(手順書_人口密度!$F$56, 市町村データ!A1:I1, 0),FALSE)","v":920},null,null,null,{"$f":"VLOOKUP(BG43,市町村データ!A2:I106,MATCH(手順書_人口密度!$F$56, 市町村データ!A1:I1, 0),FALSE)","v":2061}]
[null,null,null,null,null,null,null,null,null,null,null,null,null,null,null,null,null,null,null,null,null,null,null,null,null,null,null,null,null,null,null,null,null,null,null,null,null,null,null,null,null,null,null,null,null,null,null,null,null,null,{"$f":"VLOOKUP(AY43,市町村データ!A2:I106,MATCH(手順書_人口密度!$F$57, 市町村データ!A1:I1, 0),FALSE)","v":21.9},null,null,null,{"$f":"VLOOKUP(BC43,市町村データ!A2:I106,MATCH(手順書_人口密度!$F$57, 市町村データ!A1:I1, 0),FALSE)","v":10},null,null,null,{"$f":"VLOOKUP(BG43,市町村データ!A2:I106,MATCH(手順書_人口密度!$F$57, 市町村データ!A1:I1, 0),FALSE)","v":15}]
[null,null,"K",null,null,null,null,null,null,null,null,null,null,null,null,null,null,null,null,null,null,null,null,null,null,null,null,null,null,null,null,null,null,null,null,null,null,null,null,null,null,null,null,null,null,null,null,null,null,null,80,{"$f":"VLOOKUP(AY47,市町村データ!A2:I106,MATCH(手順書_人口密度!$G$54, 市町村データ!A1:I1, 0),FALSE)","v":"栗原6"},null,null,81,{"$f":"VLOOKUP(BC47,市町村データ!A2:I106,MATCH(手順書_人口密度!$G$54, 市町村データ!A1:I1, 0),FALSE)","v":"栗原5"},null,null,82,{"$f":"VLOOKUP(BG47,市町村データ!A2:I106,MATCH(手順書_人口密度!$G$54, 市町村データ!A1:I1, 0),FALSE)","v":"栗原4"}]
[null,null,null,null,null,null,null,null,null,null,null,null,null,null,null,null,null,null,null,null,null,null,null,null,null,null,null,null,null,null,null,null,null,null,null,null,null,null,null,null,null,null,null,null,null,null,null,null,null,null,{"$f":"VLOOKUP(AY47,市町村データ!A2:I106,MATCH(手順書_人口密度!$F$55, 市町村データ!A1:I1, 0),FALSE)","v":185.2},null,null,null,{"$f":"VLOOKUP(BC47,市町村データ!A2:I106,MATCH(手順書_人口密度!$F$55, 市町村データ!A1:I1, 0),FALSE)","v":183.5},null,null,null,{"$f":"VLOOKUP(BG47,市町村データ!A2:I106,MATCH(手順書_人口密度!$F$55, 市町村データ!A1:I1, 0),FALSE)","v":156.6}]
[null,null,null,null,null,null,null,null,null,null,null,null,null,null,null,null,null,null,null,null,null,null,null,null,null,null,null,null,null,null,null,null,null,null,null,null,null,null,null,null,null,null,null,null,null,null,null,null,null,null,{"$f":"VLOOKUP(AY47,市町村データ!A2:I106,MATCH(手順書_人口密度!$F$56, 市町村データ!A1:I1, 0),FALSE)","v":2593},null,null,null,{"$f":"VLOOKUP(BC47,市町村データ!A2:I106,MATCH(手順書_人口密度!$F$56, 市町村データ!A1:I1, 0),FALSE)","v":2661},null,null,null,{"$f":"VLOOKUP(BG47,市町村データ!A2:I106,MATCH(手順書_人口密度!$F$56, 市町村データ!A1:I1, 0),FALSE)","v":2036}]
[null,null,null,null,null,null,null,null,null,null,null,null,null,null,null,null,null,null,null,null,null,null,null,null,null,null,null,null,null,null,null,null,null,null,null,null,null,null,null,null,null,null,null,null,null,null,null,null,null,null,{"$f":"VLOOKUP(AY47,市町村データ!A2:I106,MATCH(手順書_人口密度!$F$57, 市町村データ!A1:I1, 0),FALSE)","v":14},null,null,null,{"$f":"VLOOKUP(BC47,市町村データ!A2:I106,MATCH(手順書_人口密度!$F$57, 市町村データ!A1:I1, 0),FALSE)","v":14.5},null,null,null,{"$f":"VLOOKUP(BG47,市町村データ!A2:I106,MATCH(手順書_人口密度!$F$57, 市町村データ!A1:I1, 0),FALSE)","v":13}]
[null,"［国勢調査］＞［令和２年国勢調査（総務省統計局）　都道府県・市区町村別の主な結果］"]
[null,"https://www.e-stat.go.jp/stat-search/files?page=1&layout=datalist&toukei=00200521&tstat=000001049104&cycle=0&tclass1=000001049105&tclass2val=0"]

{"sheet":"手順書_人口","index":12,"n_rows":144,"n_cols":32,"rows_kept":144,"cut":false,"hidden":false,"merged":[[30,16,30,17],[94,6,94,8],[15,5,15,14],[53,6,53,8],[54,5,54,8],[55,5,55,8],[56,5,56,8],[30,5,30,14],[94,11,94,12],[93,11,93,12],[93,9,93,10],[94,9,94,10],[15,16,15,19],[88,16,88,17],[93,6,93,8],[111,5,111,8],[97,11,97,12],[98,11,98,12],[102,9,102,10],[101,9,101,10],[104,9,104,10],[99,11,99,12],[102,11,102,12],[103,11,103,12],[104,11,104,12],[100,6,100,8],[101,6,101,8],[102,6,102,8],[103,6,103,8],[104,6,104,8],[95,9,95,10],[96,9,96,10],[97,9,97,10],[100,9,100,10],[103,9,103,10],[99,9,99,10],[98,9,98,10],[96,11,96,12],[95,11,95,12],[108,16,108,19],[50,16,50,17],[59,16,59,19],[100,11,100,12],[101,11,101,12],[95,6,95,8],[96,6,96,8],[97,6,97,8],[98,6,98,8],[99,6,99,8]]}
[null,null,null,null,null,"C1.0",null,null,null,null,null,null,null,null,null,null,"C2.0",null,null,null,null,null,null,null,null,null,null,null,null,null,null,"EOL"]
[null,"手順書　＞　人口"]
[]
[null,null,null,"手順１"]
[]
[]
[]
[]
[]
[]
[]
[null,null,null,null,null,null,"転写元になる［地図テンプレート］のワークシート名等を、"]
[null,null,null,null,null,"👇","以下に入力してください。"]
[]
[null,null,null,null,null,"ワークシート名",null,null,null,null,null,null,null,null,null,null,"範囲"]
["R1.1.0",null,null,null,null,"地図テンプレート_1",null,null,null,null,null,null,null,null,null,null,"A1:BT53"]
[]
[]
[null,null,null,"手順２"]
[]
[]
[]
[]
[]
[]
[null,null,null,null,null,null,null,"地図の転写先を、"]
[null,null,null,null,null,null,"👇","入力してください。"]
[]
[null,null,null,null,null,null,"ワークシート名を間違えて上書きすると、このワークブックの機能を破損させてしまいかねますので慎重に確認してください。"]
[null,null,null,null,null,"ワークシート名",null,null,null,null,null,null,null,null,null,null,"左上隅セル"]
["R2.1.0",null,null,null,null,"自動生成_人口",null,null,null,null,null,null,null,null,null,null,"A1"]
[]
[]
[null,null,null,"手順３"]
[]
[]
[]
[]
[]
[]
[]
[]
[]
[]
[]
[null,null,null,null,null,"👇","以下は市町村１つ分の凡例です。"]
[null,null,null,null,null,null,null,null,null,null,null,null,null,null,null,"［市町村データ］",null,null,null,"ワークシートの列名を、"]
[null,null,null,null,null,null,null,null,null,null,null,null,null,null,null,"👇","以下の凡例に入れてください。"]
[]
[null,null,null,null,null,null,null,null,null,null,null,null,null,null,null,null,"転写先セル"]
["R3.0.5.0",null,null,null,null,null,null,null,null,null,null,null,null,null,null,null,"C3"]
[null,null,null,null,"ここに入力できます。"]
[null,null,null,null,null,"A","B","C","D"]
["R3.1.0",null,null,null,1,null,"名前"]
[null,null,null,null,2,"人口密度（人/ha）"]
[null,null,null,null,3,"人口（人）"]
[null,null,null,null,4,"面積（ha）"]
[]
[null,null,null,null,null,null,null,null,null,null,null,null,null,null,null,null,"凡例の元データのテーブルの右下隅のセル"]
["R3.3.0",null,null,null,null,null,null,null,null,null,null,null,null,null,null,null,"D4"]
[null,null,null,null,null,null,null,null,null,null,null,null,null,null,null,null,"上の黄色い枠に書かれている番地を使ってください。"]
[]
[null,null,null,null,null,null,"ヒートマップにするデータを１つ選んで太字にスタイル設定してください。"]
[]
[]
[null,null,null,"手順４"]
[]
[]
[]
[]
[]
[]
[]
[]
[]
[]
[]
[]
[]
[]
[]
[]
[]
[]
[]
[null,null,null,null,null,null,null,"ヒートマップの色の凡例です。"]
[]
[null,null,null,null,null,null,null,null,null,null,null,null,null,null,null,null,"転写先の左上隅セル"]
["R4.0.9.0",null,null,null,null,null,null,null,null,null,null,null,null,null,null,null,"BK7"]
[]
[null,null,null,null,null,null,"👇","以下の黄色い枠内に、［以上］列の数値と、［背景色］を設定してください。"]
[]
[null,null,null,null,null,"A","B","C","D","E","F","G","H"]
["R4.1.0",null,null,null,1,"No","以上",null,null,"背景色",null,"前景色"]
[null,null,null,null,2,1,7500]
[null,null,null,null,3,2,5000]
[null,null,null,null,4,3,2500]
[null,null,null,null,5,4,1250]
[null,null,null,null,6,5,1000]
[null,null,null,null,7,6,750]
[null,null,null,null,8,7,500]
[null,null,null,null,9,8,250]
[null,null,null,null,10,9,125]
[null,null,null,null,11,10,100]
[null,null,null,null,12,11,0]
[]
[]
[null,null,null,null,null,null,null,null,null,null,null,null,null,null,null,null,"凡例の元データのテーブルの右下隅のセル"]
["R4.3.5.0",null,null,null,null,null,null,null,null,null,null,null,null,null,null,null,"H12"]
[null,null,null,null,null,null,null,null,null,null,null,null,null,null,null,null,"上の黄色い枠に書かれている番地を使ってください。"]
[null,null,null,null,null,"転写元の範囲"]
["R4.4.0",null,null,null,null,"B1:F12"]
[null,null,null,null,null,"上の黄色い枠に書かれている番地を使ってください。"]
[]
[]
[null,null,null,"手順４"]
[]
[null,null,null,null,null,"👇","以下のボタンを押してください。"]
[]
[]
[]
[]
[]
[]
[]
[]
[]
[]
[]
[]
[]
[]
[]
[]
[]
[]
[]
[]
[]
[]
[null,null,null,null,null,null,null,"ワークシートが生成できたら完了です。"]
[]
[null,"以上"]
["EOF"]

{"sheet":"自動生成_人口","index":13,"n_rows":52,"n_cols":68,"rows_kept":52,"cut":false,"hidden":false,"merged":[[7,10,7,13],[7,14,7,17],[7,18,7,21],[7,22,7,25],[7,26,7,29],[7,30,7,33],[6,11,6,13],[6,15,6,17],[6,19,6,21],[6,23,6,25],[6,27,6,29],[6,31,6,33],[9,10,9,13],[9,14,9,17],[9,18,9,21],[9,22,9,25],[9,26,9,29],[9,30,9,33],[8,10,8,13],[8,14,8,17],[8,18,8,21],[8,22,8,25],[8,26,8,29],[8,30,8,33],[10,35,10,37],[10,39,10,41],[11,6,11,9],[11,10,11,13],[11,18,11,21],[11,22,11,25],[11,26,11,29],[11,30,11,33],[11,34,11,37],[11,38,11,41],[10,7,10,9],[10,11,10,13],[10,19,10,21],[10,23,10,25],[10,27,10,29],[10,31,10,33],[12,34,12,37],[12,38,12,41],[13,6,13,9],[13,10,13,13],[13,18,13,21],[13,22,13,25],[13,26,13,29],[13,30,13,33],[13,34,13,37],[13,38,13,41],[12,6,12,9],[12,10,12,13],[12,18,12,21],[12,22,12,25],[12,26,12,29],[12,30,12,33],[14,31,14,33],[14,35,14,37],[14,39,14,41],[15,6,15,9],[15,10,15,13],[15,14,15,17],[15,18,15,21],[15,22,15,25],[15,26,15,29],[15,30,15,33],[14,7,14,9],[14,11,14,13],[14,15,14,17],[14,19,14,21],[14,23,14,25],[14,27,14,29],[15,34,15,37],[15,38,15,41],[16,6,16,9],[16,10,16,13],[16,14,16,17],[16,18,16,21],[16,22,16,25],[16,26,16,29],[16,30,16,33],[16,34,16,37],[16,38,16,41],[17,6,17,9],[17,10,17,13],[17,14,17,17],[17,18,17,21],[17,22,17,25],[17,26,17,29],[17,30,17,33],[17,34,17,37],[17,38,17,41],[18,39,18,41],[18,43,18,45],[19,14,19,17],[19,18,19,21],[19,22,19,25],[19,26,19,29],[19,30,19,33],[19,34,19,37],[19,38,19,41],[19,42,19,45],[18,15,18,17],[18,19,18,21],[18,23,18,25],[18,27,18,29],[18,31,18,33],[18,35,18,37],[20,38,20,41],[20,42,20,45],[21,14,21,17],[21,18,21,21],[21,22,21,25],[21,26,21,29],[21,30,21,33],[21,34,21,37],[21,38,21,41],[21,42,21,45],[20,14,20,17],[20,18,20,21],[20,22,20,25],[20,26,20,29],[20,30,20,33],[20,34,20,37],[22,39,22,41],[22,43,22,45],[22,47,22,49],[22,51,22,53],[23,14,23,17],[23,18,23,21],[23,22,23,25],[23,26,23,29],[23,30,23,33],[23,34,23,37],[22,15,22,17],[22,19,22,21],[22,23,22,25],[22,27,22,29],[22,31,22,33],[22,35,22,37],[24,50,24,53],[25,14,25,17],[25,18,25,21],[25,22,25,25],[25,26,25,29],[25,30,25,33],[25,34,25,37],[23,38,23,41],[23,42,23,45],[23,46,23,49],[23,50,23,53],[24,14,24,17],[24,18,24,21],[24,22,24,25],[24,26,24,29],[24,30,24,33],[24,34,24,37],[26,19,26,21],[26,23,26,25],[26,27,26,29],[26,31,26,33],[26,35,26,37],[26,39,26,41],[24,38,24,41],[24,42,24,45],[24,46,24,49],[26,43,26,45],[26,47,26,49],[26,51,26,53],[26,55,26,57],[26,59,26,61],[26,63,26,65],[25,38,25,41],[25,42,25,45],[25,46,25,49],[25,50,25,53],[27,42,27,45],[27,46,27,49],[27,50,27,53],[27,54,27,57],[27,58,27,61],[27,62,27,65],[27,18,27,21],[27,22,27,25],[27,26,27,29],[27,30,27,33],[27,34,27,37],[27,38,27,41],[28,42,28,45],[28,46,28,49],[28,50,28,53],[28,54,28,57],[28,58,28,61],[28,62,28,65],[28,18,28,21],[28,22,28,25],[28,26,28,29],[28,30,28,33],[28,34,28,37],[28,38,28,41],[29,42,29,45],[29,46,29,49],[29,50,29,53],[29,54,29,57],[29,58,29,61],[29,62,29,65],[29,18,29,21],[29,22,29,25],[29,26,29,29],[29,30,29,33],[29,34,29,37],[29,38,29,41],[30,63,30,65],[31,6,31,9],[31,10,31,13],[31,14,31,17],[31,18,31,21],[31,26,31,29],[31,30,31,33],[31,34,31,37],[31,38,31,41],[31,46,31,49],[30,35,30,37],[30,39,30,41],[30,47,30,49],[30,51,30,53],[30,55,30,57],[30,59,30,61],[30,7,30,9],[30,11,30,13],[30,15,30,17],[30,19,30,21],[30,27,30,29],[30,31,30,33],[31,50,31,53],[31,54,31,57],[31,58,31,61],[31,62,31,65],[32,6,32,9],[32,10,32,13],[32,14,32,17],[32,18,32,21],[32,26,32,29],[32,30,32,33],[32,62,32,65],[32,34,32,37],[32,38,32,41],[32,46,32,49],[32,50,32,53],[32,54,32,57],[32,58,32,61],[33,6,33,9],[33,10,33,13],[33,14,33,17],[33,18,33,21],[33,26,33,29],[33,30,33,33],[33,34,33,37],[33,38,33,41],[33,46,33,49],[33,50,33,53],[33,54,33,57],[33,58,33,61],[33,62,33,65],[34,27,34,29],[34,31,34,33],[34,55,34,57],[34,59,34,61],[34,63,34,65],[35,26,35,29],[35,30,35,33],[35,54,35,57],[35,58,35,61],[35,62,35,65],[36,26,36,29],[36,30,36,33],[36,54,36,57],[36,58,36,61],[36,62,36,65],[37,26,37,29],[37,30,37,33],[37,54,37,57],[37,58,37,61],[37,62,37,65],[38,51,38,53],[38,55,38,57],[38,59,38,61],[38,63,38,65],[40,62,40,65],[40,66,40,69],[41,50,41,53],[41,54,41,57],[41,58,41,61],[41,62,41,65],[41,66,41,69],[38,67,38,69],[39,50,39,53],[39,54,39,57],[39,58,39,61],[39,62,39,65],[39,66,39,69],[49,50,49,53],[49,54,49,57],[49,58,49,61],[46,51,46,53],[46,55,46,57],[46,59,46,61],[47,50,47,53],[47,54,47,57],[47,58,47,61],[2,3,2,5],[3,2,3,5],[4,2,4,5],[5,2,5,5],[6,62,6,64],[6,65,6,66],[48,50,48,53],[48,54,48,57],[48,58,48,61],[44,50,44,53],[44,54,44,57],[44,58,44,61],[45,50,45,53],[45,54,45,57],[45,58,45,61],[42,51,42,53],[42,55,42,57],[42,59,42,61],[43,50,43,53],[43,54,43,57],[43,58,43,61],[40,50,40,53],[40,54,40,57],[40,58,40,61],[10,62,10,64],[10,65,10,66],[11,62,11,64],[11,65,11,66],[12,62,12,64],[12,65,12,66],[7,62,7,64],[7,65,7,66],[8,62,8,64],[8,65,8,66],[9,62,9,64],[9,65,9,66],[16,62,16,64],[16,65,16,66],[17,62,17,64],[17,65,17,66],[13,62,13,64],[13,65,13,66],[14,62,14,64],[14,65,14,66],[15,62,15,64],[15,65,15,66]]}
[]
[]
[null,null,null,"名前",null,null,"あ",null,null,null,"い",null,null,null,"う",null,null,null,"え",null,null,null,"お",null,null,null,"か",null,null,null,"き",null,null,null,"く",null,null,null,"け",null,null,null,"こ",null,null,null,"さ",null,null,null,"し",null,null,null,"す",null,null,null,"せ",null,null,null,"そ",null,null,null,"た"]
[null,null,"人口密度（人/ha）"]
[null,null,"人口（人）"]
[null,null,"面積（ha）"]
[null,null,"A",null,null,null,null,null,null,null,1,{"$f":"VLOOKUP(K7,市町村データ!A2:I106,MATCH(手順書_人口!$G$54, 市町村データ!A1:I1, 0),FALSE)","v":"新座3"},null,null,2,{"$f":"VLOOKUP(O7,市町村データ!A2:I106,MATCH(手順書_人口!$G$54, 市町村データ!A1:I1, 0),FALSE)","v":"新座2"},null,null,3,{"$f":"VLOOKUP(S7,市町村データ!A2:I106,MATCH(手順書_人口!$G$54, 市町村データ!A1:I1, 0),FALSE)","v":"新座1"},null,null,4,{"$f":"VLOOKUP(W7,市町村データ!A2:I106,MATCH(手順書_人口!$G$54, 市町村データ!A1:I1, 0),FALSE)","v":"北野3"},null,null,5,{"$f":"VLOOKUP(AA7,市町村データ!A2:I106,MATCH(手順書_人口!$G$54, 市町村データ!A1:I1, 0),FALSE)","v":"東北1"},null,null,6,{"$f":"VLOOKUP(AE7,市町村データ!A2:I106,MATCH(手順書_人口!$G$54, 市町村データ!A1:I1, 0),FALSE)","v":"東北2"},null,null,null,null,null,null,null,null,null,null,null,null,null,null,null,null,null,null,null,null,null,null,null,null,null,null,null,null,null,null,"以上",null,null,"背景色"]
[null,null,null,null,null,null,null,null,null,null,{"$f":"VLOOKUP(K7,市町村データ!A2:I106,MATCH(手順書_人口!$F$55, 市町村データ!A1:I1, 0),FALSE)","v":160.1},null,null,null,{"$f":"VLOOKUP(O7,市町村データ!A2:I106,MATCH(手順書_人口!$F$55, 市町村データ!A1:I1, 0),FALSE)","v":174.2},null,null,null,{"$f":"VLOOKUP(S7,市町村データ!A2:I106,MATCH(手順書_人口!$F$55, 市町村データ!A1:I1, 0),FALSE)","v":168.8},null,null,null,{"$f":"VLOOKUP(W7,市町村データ!A2:I106,MATCH(手順書_人口!$F$55, 市町村データ!A1:I1, 0),FALSE)","v":181.9},null,null,null,{"$f":"VLOOKUP(AA7,市町村データ!A2:I106,MATCH(手順書_人口!$F$55, 市町村データ!A1:I1, 0),FALSE)","v":177.5},null,null,null,{"$f":"VLOOKUP(AE7,市町村データ!A2:I106,MATCH(手順書_人口!$F$55, 市町村データ!A1:I1, 0),FALSE)","v":154.6},null,null,null,null,null,null,null,null,null,null,null,null,null,null,null,null,null,null,null,null,null,null,null,null,null,null,null,null,null,null,null,7500]
[null,null,null,null,null,null,null,null,null,null,{"$f":"VLOOKUP(K7,市町村データ!A2:I106,MATCH(手順書_人口!$F$56, 市町村データ!A1:I1, 0),FALSE)","v":4002},null,null,null,{"$f":"VLOOKUP(O7,市町村データ!A2:I106,MATCH(手順書_人口!$F$56, 市町村データ!A1:I1, 0),FALSE)","v":2439},null,null,null,{"$f":"VLOOKUP(S7,市町村データ!A2:I106,MATCH(手順書_人口!$F$56, 市町村データ!A1:I1, 0),FALSE)","v":1350},null,null,null,{"$f":"VLOOKUP(W7,市町村データ!A2:I106,MATCH(手順書_人口!$F$56, 市町村データ!A1:I1, 0),FALSE)","v":3457},null,null,null,{"$f":"VLOOKUP(AA7,市町村データ!A2:I106,MATCH(手順書_人口!$F$56, 市町村データ!A1:I1, 0),FALSE)","v":1952},null,null,null,{"$f":"VLOOKUP(AE7,市町村データ!A2:I106,MATCH(手順書_人口!$F$56, 市町村データ!A1:I1, 0),FALSE)","v":6183},null,null,null,null,null,null,null,null,null,null,null,null,null,null,null,null,null,null,null,null,null,null,null,null,null,null,null,null,null,null,null,5000]
[null,null,null,null,null,null,null,null,null,null,{"$f":"VLOOKUP(K7,市町村データ!A2:I106,MATCH(手順書_人口!$F$57, 市町村データ!A1:I1, 0),FALSE)","v":25},null,null,null,{"$f":"VLOOKUP(O7,市町村データ!A2:I106,MATCH(手順書_人口!$F$57, 市町村データ!A1:I1, 0),FALSE)","v":14},null,null,null,{"$f":"VLOOKUP(S7,市町村データ!A2:I106,MATCH(手順書_人口!$F$57, 市町村データ!A1:I1, 0),FALSE)","v":8},null,null,null,{"$f":"VLOOKUP(W7,市町村データ!A2:I106,MATCH(手順書_人口!$F$57, 市町村データ!A1:I1, 0),FALSE)","v":19},null,null,null,{"$f":"VLOOKUP(AA7,市町村データ!A2:I106,MATCH(手順書_人口!$F$57, 市町村データ!A1:I1, 0),FALSE)","v":11},null,null,null,{"$f":"VLOOKUP(AE7,市町村データ!A2:I106,MATCH(手順書_人口!$F$57, 市町村データ!A1:I1, 0),FALSE)","v":40},null,null,null,null,null,null,null,null,null,null,null,null,null,null,null,null,null,null,null,null,null,null,null,null,null,null,null,null,null,null,null,2500]
[null,null,"B",null,null,null,7,{"$f":"VLOOKUP(G11,市町村データ!A2:I106,MATCH(手順書_人口!$G$54, 市町村データ!A1:I1, 0),FALSE)","v":"中野2"},null,null,8,{"$f":"VLOOKUP(K11,市町村データ!A2:I106,MATCH(手順書_人口!$G$54, 市町村データ!A1:I1, 0),FALSE)","v":"大和田4"},null,null,null,null,null,null,9,{"$f":"VLOOKUP(S11,市町村データ!A2:I106,MATCH(手順書_人口!$G$54, 市町村データ!A1:I1, 0),FALSE)","v":"大和田5"},null,null,10,{"$f":"VLOOKUP(W11,市町村データ!A2:I106,MATCH(手順書_人口!$G$54, 市町村データ!A1:I1, 0),FALSE)","v":"北野2"},null,null,11,{"$f":"VLOOKUP(AA11,市町村データ!A2:I106,MATCH(手順書_人口!$G$54, 市町村データ!A1:I1, 0),FALSE)","v":"北野1"},null,null,12,{"$f":"VLOOKUP(AE11,市町村データ!A2:I106,MATCH(手順書_人口!$G$54, 市町村データ!A1:I1, 0),FALSE)","v":"東3"},null,null,13,{"$f":"VLOOKUP(AI11,市町村データ!A2:I106,MATCH(手順書_人口!$G$54, 市町村データ!A1:I1, 0),FALSE)","v":"東2"},null,null,14,{"$f":"VLOOKUP(AM11,市町村データ!A2:I106,MATCH(手順書_人口!$G$54, 市町村データ!A1:I1, 0),FALSE)","v":"東1"},null,null,null,null,null,null,null,null,null,null,null,null,null,null,null,null,null,null,null,null,null,null,1250]
[null,null,null,null,null,null,{"$f":"VLOOKUP(G11,市町村データ!A2:I106,MATCH(手順書_人口!$F$55, 市町村データ!A1:I1, 0),FALSE)","v":4.9000000000000004},null,null,null,{"$f":"VLOOKUP(K11,市町村データ!A2:I106,MATCH(手順書_人口!$F$55, 市町村データ!A1:I1, 0),FALSE)","v":36.700000000000003},null,null,null,null,null,null,null,{"$f":"VLOOKUP(S11,市町村データ!A2:I106,MATCH(手順書_人口!$F$55, 市町村データ!A1:I1, 0),FALSE)","v":144.69999999999999},null,null,null,{"$f":"VLOOKUP(W11,市町村データ!A2:I106,MATCH(手順書_人口!$F$55, 市町村データ!A1:I1, 0),FALSE)","v":132.9},null,null,null,{"$f":"VLOOKUP(AA11,市町村データ!A2:I106,MATCH(手順書_人口!$F$55, 市町村データ!A1:I1, 0),FALSE)","v":34},null,null,null,{"$f":"VLOOKUP(AE11,市町村データ!A2:I106,MATCH(手順書_人口!$F$55, 市町村データ!A1:I1, 0),FALSE)","v":164},null,null,null,{"$f":"VLOOKUP(AI11,市町村データ!A2:I106,MATCH(手順書_人口!$F$55, 市町村データ!A1:I1, 0),FALSE)","v":108.1},null,null,null,{"$f":"VLOOKUP(AM11,市町村データ!A2:I106,MATCH(手順書_人口!$F$55, 市町村データ!A1:I1, 0),FALSE)","v":169.1},null,null,null,null,null,null,null,null,null,null,null,null,null,null,null,null,null,null,null,null,null,null,null,1000]
[null,null,null,null,null,null,{"$f":"VLOOKUP(G11,市町村データ!A2:I106,MATCH(手順書_人口!$F$56, 市町村データ!A1:I1, 0),FALSE)","v":195},null,null,null,{"$f":"VLOOKUP(K11,市町村データ!A2:I106,MATCH(手順書_人口!$F$56, 市町村データ!A1:I1, 0),FALSE)","v":1352},null,null,null,null,null,null,null,{"$f":"VLOOKUP(S11,市町村データ!A2:I106,MATCH(手順書_人口!$F$56, 市町村データ!A1:I1, 0),FALSE)","v":3908},null,null,null,{"$f":"VLOOKUP(W11,市町村データ!A2:I106,MATCH(手順書_人口!$F$56, 市町村データ!A1:I1, 0),FALSE)","v":2791},null,null,null,{"$f":"VLOOKUP(AA11,市町村データ!A2:I106,MATCH(手順書_人口!$F$56, 市町村データ!A1:I1, 0),FALSE)","v":816},null,null,null,{"$f":"VLOOKUP(AE11,市町村データ!A2:I106,MATCH(手順書_人口!$F$56, 市町村データ!A1:I1, 0),FALSE)","v":2460},null,null,null,{"$f":"VLOOKUP(AI11,市町村データ!A2:I106,MATCH(手順書_人口!$F$56, 市町村データ!A1:I1, 0),FALSE)","v":1405},null,null,null,{"$f":"VLOOKUP(AM11,市町村データ!A2:I106,MATCH(手順書_人口!$F$56, 市町村データ!A1:I1, 0),FALSE)","v":3213},null,null,null,null,null,null,null,null,null,null,null,null,null,null,null,null,null,null,null,null,null,null,null,750]
[null,null,null,null,null,null,{"$f":"VLOOKUP(G11,市町村データ!A2:I106,MATCH(手順書_人口!$F$57, 市町村データ!A1:I1, 0),FALSE)","v":40},null,null,null,{"$f":"VLOOKUP(K11,市町村データ!A2:I106,MATCH(手順書_人口!$F$57, 市町村データ!A1:I1, 0),FALSE)","v":36.799999999999997},null,null,null,null,null,null,null,{"$f":"VLOOKUP(S11,市町村データ!A2:I106,MATCH(手順書_人口!$F$57, 市町村データ!A1:I1, 0),FALSE)","v":27},null,null,null,{"$f":"VLOOKUP(W11,市町村データ!A2:I106,MATCH(手順書_人口!$F$57, 市町村データ!A1:I1, 0),FALSE)","v":21},null,null,null,{"$f":"VLOOKUP(AA11,市町村データ!A2:I106,MATCH(手順書_人口!$F$57, 市町村データ!A1:I1, 0),FALSE)","v":24},null,null,null,{"$f":"VLOOKUP(AE11,市町村データ!A2:I106,MATCH(手順書_人口!$F$57, 市町村データ!A1:I1, 0),FALSE)","v":15},null,null,null,{"$f":"VLOOKUP(AI11,市町村データ!A2:I106,MATCH(手順書_人口!$F$57, 市町村データ!A1:I1, 0),FALSE)","v":13},null,null,null,{"$f":"VLOOKUP(AM11,市町村データ!A2:I106,MATCH(手順書_人口!$F$57, 市町村データ!A1:I1, 0),FALSE)","v":19},null,null,null,null,null,null,null,null,null,null,null,null,null,null,null,null,null,null,null,null,null,null,null,500]
[null,null,"C",null,null,null,15,{"$f":"VLOOKUP(G15,市町村データ!A2:I106,MATCH(手順書_人口!$G$54, 市町村データ!A1:I1, 0),FALSE)","v":"中野1"},null,null,16,{"$f":"VLOOKUP(K15,市町村データ!A2:I106,MATCH(手順書_人口!$G$54, 市町村データ!A1:I1, 0),FALSE)","v":"大和田3"},null,null,17,{"$f":"VLOOKUP(O15,市町村データ!A2:I106,MATCH(手順書_人口!$G$54, 市町村データ!A1:I1, 0),FALSE)","v":"大和田2"},null,null,18,{"$f":"VLOOKUP(S15,市町村データ!A2:I106,MATCH(手順書_人口!$G$54, 市町村データ!A1:I1, 0),FALSE)","v":"大和田1"},null,null,19,{"$f":"VLOOKUP(W15,市町村データ!A2:I106,MATCH(手順書_人口!$G$54, 市町村データ!A1:I1, 0),FALSE)","v":"野火止5"},null,null,20,{"$f":"VLOOKUP(AA15,市町村データ!A2:I106,MATCH(手順書_人口!$G$54, 市町村データ!A1:I1, 0),FALSE)","v":"野火止6"},null,null,21,{"$f":"VLOOKUP(AE15,市町村データ!A2:I106,MATCH(手順書_人口!$G$54, 市町村データ!A1:I1, 0),FALSE)","v":"野火止7"},null,null,22,{"$f":"VLOOKUP(AI15,市町村データ!A2:I106,MATCH(手順書_人口!$G$54, 市町村データ!A1:I1, 0),FALSE)","v":"野火止8"},null,null,23,{"$f":"VLOOKUP(AM15,市町村データ!A2:I106,MATCH(手順書_人口!$G$54, 市町村データ!A1:I1, 0),FALSE)","v":"畑中3"},null,null,null,null,null,null,null,null,null,null,null,null,null,null,null,null,null,null,null,null,null,null,250]
[null,null,null,null,null,null,{"$f":"VLOOKUP(G15,市町村データ!A2:I106,MATCH(手順書_人口!$F$55, 市町村データ!A1:I1, 0),FALSE)","v":11.5},null,null,null,{"$f":"VLOOKUP(K15,市町村データ!A2:I106,MATCH(手順書_人口!$F$55, 市町村データ!A1:I1, 0),FALSE)","v":0.8},null,null,null,{"$f":"VLOOKUP(O15,市町村データ!A2:I106,MATCH(手順書_人口!$F$55, 市町村データ!A1:I1, 0),FALSE)","v":5.3},null,null,null,{"$f":"VLOOKUP(S15,市町村データ!A2:I106,MATCH(手順書_人口!$F$55, 市町村データ!A1:I1, 0),FALSE)","v":71},null,null,null,{"$f":"VLOOKUP(W15,市町村データ!A2:I106,MATCH(手順書_人口!$F$55, 市町村データ!A1:I1, 0),FALSE)","v":133.4},null,null,null,{"$f":"VLOOKUP(AA15,市町村データ!A2:I106,MATCH(手順書_人口!$F$55, 市町村データ!A1:I1, 0),FALSE)","v":105.2},null,null,null,{"$f":"VLOOKUP(AE15,市町村データ!A2:I106,MATCH(手順書_人口!$F$55, 市町村データ!A1:I1, 0),FALSE)","v":64.3},null,null,null,{"$f":"VLOOKUP(AI15,市町村データ!A2:I106,MATCH(手順書_人口!$F$55, 市町村データ!A1:I1, 0),FALSE)","v":81},null,null,null,{"$f":"VLOOKUP(AM15,市町村データ!A2:I106,MATCH(手順書_人口!$F$55, 市町村データ!A1:I1, 0),FALSE)","v":106.6},null,null,null,null,null,null,null,null,null,null,null,null,null,null,null,null,null,null,null,null,null,null,null,125]
[null,null,null,null,null,null,{"$f":"VLOOKUP(G15,市町村データ!A2:I106,MATCH(手順書_人口!$F$56, 市町村データ!A1:I1, 0),FALSE)","v":388},null,null,null,{"$f":"VLOOKUP(K15,市町村データ!A2:I106,MATCH(手順書_人口!$F$56, 市町村データ!A1:I1, 0),FALSE)","v":26},null,null,null,{"$f":"VLOOKUP(O15,市町村データ!A2:I106,MATCH(手順書_人口!$F$56, 市町村データ!A1:I1, 0),FALSE)","v":156},null,null,null,{"$f":"VLOOKUP(S15,市町村データ!A2:I106,MATCH(手順書_人口!$F$56, 市町村データ!A1:I1, 0),FALSE)","v":3836},null,null,null,{"$f":"VLOOKUP(W15,市町村データ!A2:I106,MATCH(手順書_人口!$F$56, 市町村データ!A1:I1, 0),FALSE)","v":8004},null,null,null,{"$f":"VLOOKUP(AA15,市町村データ!A2:I106,MATCH(手順書_人口!$F$56, 市町村データ!A1:I1, 0),FALSE)","v":4944},null,null,null,{"$f":"VLOOKUP(AE15,市町村データ!A2:I106,MATCH(手順書_人口!$F$56, 市町村データ!A1:I1, 0),FALSE)","v":3539},null,null,null,{"$f":"VLOOKUP(AI15,市町村データ!A2:I106,MATCH(手順書_人口!$F$56, 市町村データ!A1:I1, 0),FALSE)","v":4857},null,null,null,{"$f":"VLOOKUP(AM15,市町村データ!A2:I106,MATCH(手順書_人口!$F$56, 市町村データ!A1:I1, 0),FALSE)","v":1599},null,null,null,null,null,null,null,null,null,null,null,null,null,null,null,null,null,null,null,null,null,null,null,100]
[null,null,null,null,null,null,{"$f":"VLOOKUP(G15,市町村データ!A2:I106,MATCH(手順書_人口!$F$57, 市町村データ!A1:I1, 0),FALSE)","v":33.700000000000003},null,null,null,{"$f":"VLOOKUP(K15,市町村データ!A2:I106,MATCH(手順書_人口!$F$57, 市町村データ!A1:I1, 0),FALSE)","v":30.7},null,null,null,{"$f":"VLOOKUP(O15,市町村データ!A2:I106,MATCH(手順書_人口!$F$57, 市町村データ!A1:I1, 0),FALSE)","v":29.7},null,null,null,{"$f":"VLOOKUP(S15,市町村データ!A2:I106,MATCH(手順書_人口!$F$57, 市町村データ!A1:I1, 0),FALSE)","v":54},null,null,null,{"$f":"VLOOKUP(W15,市町村データ!A2:I106,MATCH(手順書_人口!$F$57, 市町村データ!A1:I1, 0),FALSE)","v":60},null,null,null,{"$f":"VLOOKUP(AA15,市町村データ!A2:I106,MATCH(手順書_人口!$F$57, 市町村データ!A1:I1, 0),FALSE)","v":47},null,null,null,{"$f":"VLOOKUP(AE15,市町村データ!A2:I106,MATCH(手順書_人口!$F$57, 市町村データ!A1:I1, 0),FALSE)","v":55},null,null,null,{"$f":"VLOOKUP(AI15,市町村データ!A2:I106,MATCH(手順書_人口!$F$57, 市町村データ!A1:I1, 0),FALSE)","v":60},null,null,null,{"$f":"VLOOKUP(AM15,市町村データ!A2:I106,MATCH(手順書_人口!$F$57, 市町村データ!A1:I1, 0),FALSE)","v":15},null,null,null,null,null,null,null,null,null,null,null,null,null,null,null,null,null,null,null,null,null,null,null,0]
[null,null,"D",null,null,null,null,null,null,null,null,null,null,null,24,{"$f":"VLOOKUP(O19,市町村データ!A2:I106,MATCH(手順書_人口!$G$54, 市町村データ!A1:I1, 0),FALSE)","v":"菅沢2"},null,null,25,{"$f":"VLOOKUP(S19,市町村データ!A2:I106,MATCH(手順書_人口!$G$54, 市町村データ!A1:I1, 0),FALSE)","v":"菅沢1"},null,null,26,{"$f":"VLOOKUP(W19,市町村データ!A2:I106,MATCH(手順書_人口!$G$54, 市町村データ!A1:I1, 0),FALSE)","v":"野火止4"},null,null,27,{"$f":"VLOOKUP(AA19,市町村データ!A2:I106,MATCH(手順書_人口!$G$54, 市町村データ!A1:I1, 0),FALSE)","v":"野火止3"},null,null,28,{"$f":"VLOOKUP(AE19,市町村データ!A2:I106,MATCH(手順書_人口!$G$54, 市町村データ!A1:I1, 0),FALSE)","v":"野火止2"},null,null,29,{"$f":"VLOOKUP(AI19,市町村データ!A2:I106,MATCH(手順書_人口!$G$54, 市町村データ!A1:I1, 0),FALSE)","v":"野火止1"},null,null,30,{"$f":"VLOOKUP(AM19,市町村データ!A2:I106,MATCH(手順書_人口!$G$54, 市町村データ!A1:I1, 0),FALSE)","v":"畑中1"},null,null,31,{"$f":"VLOOKUP(AQ19,市町村データ!A2:I106,MATCH(手順書_人口!$G$54, 市町村データ!A1:I1, 0),FALSE)","v":"畑中2"}]
[null,null,null,null,null,null,null,null,null,null,null,null,null,null,{"$f":"VLOOKUP(O19,市町村データ!A2:I106,MATCH(手順書_人口!$F$55, 市町村データ!A1:I1, 0),FALSE)","v":23.4},null,null,null,{"$f":"VLOOKUP(S19,市町村データ!A2:I106,MATCH(手順書_人口!$F$55, 市町村データ!A1:I1, 0),FALSE)","v":11.6},null,null,null,{"$f":"VLOOKUP(W19,市町村データ!A2:I106,MATCH(手順書_人口!$F$55, 市町村データ!A1:I1, 0),FALSE)","v":79.8},null,null,null,{"$f":"VLOOKUP(AA19,市町村データ!A2:I106,MATCH(手順書_人口!$F$55, 市町村データ!A1:I1, 0),FALSE)","v":22.9},null,null,null,{"$f":"VLOOKUP(AE19,市町村データ!A2:I106,MATCH(手順書_人口!$F$55, 市町村データ!A1:I1, 0),FALSE)","v":9.9},null,null,null,{"$f":"VLOOKUP(AI19,市町村データ!A2:I106,MATCH(手順書_人口!$F$55, 市町村データ!A1:I1, 0),FALSE)","v":59.6},null,null,null,{"$f":"VLOOKUP(AM19,市町村データ!A2:I106,MATCH(手順書_人口!$F$55, 市町村データ!A1:I1, 0),FALSE)","v":87.3},null,null,null,{"$f":"VLOOKUP(AQ19,市町村データ!A2:I106,MATCH(手順書_人口!$F$55, 市町村データ!A1:I1, 0),FALSE)","v":72.3}]
[null,null,null,null,null,null,null,null,null,null,null,null,null,null,{"$f":"VLOOKUP(O19,市町村データ!A2:I106,MATCH(手順書_人口!$F$56, 市町村データ!A1:I1, 0),FALSE)","v":993},null,null,null,{"$f":"VLOOKUP(S19,市町村データ!A2:I106,MATCH(手順書_人口!$F$56, 市町村データ!A1:I1, 0),FALSE)","v":460},null,null,null,{"$f":"VLOOKUP(W19,市町村データ!A2:I106,MATCH(手順書_人口!$F$56, 市町村データ!A1:I1, 0),FALSE)","v":5240},null,null,null,{"$f":"VLOOKUP(AA19,市町村データ!A2:I106,MATCH(手順書_人口!$F$56, 市町村データ!A1:I1, 0),FALSE)","v":2316},null,null,null,{"$f":"VLOOKUP(AE19,市町村データ!A2:I106,MATCH(手順書_人口!$F$56, 市町村データ!A1:I1, 0),FALSE)","v":450},null,null,null,{"$f":"VLOOKUP(AI19,市町村データ!A2:I106,MATCH(手順書_人口!$F$56, 市町村データ!A1:I1, 0),FALSE)","v":3149},null,null,null,{"$f":"VLOOKUP(AM19,市町村データ!A2:I106,MATCH(手順書_人口!$F$56, 市町村データ!A1:I1, 0),FALSE)","v":5131},null,null,null,{"$f":"VLOOKUP(AQ19,市町村データ!A2:I106,MATCH(手順書_人口!$F$56, 市町村データ!A1:I1, 0),FALSE)","v":3037}]
[null,null,null,null,null,null,null,null,null,null,null,null,null,null,{"$f":"VLOOKUP(O19,市町村データ!A2:I106,MATCH(手順書_人口!$F$57, 市町村データ!A1:I1, 0),FALSE)","v":42.5},null,null,null,{"$f":"VLOOKUP(S19,市町村データ!A2:I106,MATCH(手順書_人口!$F$57, 市町村データ!A1:I1, 0),FALSE)","v":39.6},null,null,null,{"$f":"VLOOKUP(W19,市町村データ!A2:I106,MATCH(手順書_人口!$F$57, 市町村データ!A1:I1, 0),FALSE)","v":65.7},null,null,null,{"$f":"VLOOKUP(AA19,市町村データ!A2:I106,MATCH(手順書_人口!$F$57, 市町村データ!A1:I1, 0),FALSE)","v":101.1},null,null,null,{"$f":"VLOOKUP(AE19,市町村データ!A2:I106,MATCH(手順書_人口!$F$57, 市町村データ!A1:I1, 0),FALSE)","v":45.6},null,null,null,{"$f":"VLOOKUP(AI19,市町村データ!A2:I106,MATCH(手順書_人口!$F$57, 市町村データ!A1:I1, 0),FALSE)","v":52.8},null,null,null,{"$f":"VLOOKUP(AM19,市町村データ!A2:I106,MATCH(手順書_人口!$F$57, 市町村データ!A1:I1, 0),FALSE)","v":58.8},null,null,null,{"$f":"VLOOKUP(AQ19,市町村データ!A2:I106,MATCH(手順書_人口!$F$57, 市町村データ!A1:I1, 0),FALSE)","v":42}]
[null,null,"E",null,null,null,null,null,null,null,null,null,null,null,32,{"$f":"VLOOKUP(O23,市町村データ!A2:I106,MATCH(手順書_人口!$G$54, 市町村データ!A1:I1, 0),FALSE)","v":"あたご3"},null,null,33,{"$f":"VLOOKUP(S23,市町村データ!A2:I106,MATCH(手順書_人口!$G$54, 市町村データ!A1:I1, 0),FALSE)","v":"あたご2"},null,null,34,{"$f":"VLOOKUP(W23,市町村データ!A2:I106,MATCH(手順書_人口!$G$54, 市町村データ!A1:I1, 0),FALSE)","v":"あたご1"},null,null,35,{"$f":"VLOOKUP(AA23,市町村データ!A2:I106,MATCH(手順書_人口!$G$54, 市町村データ!A1:I1, 0),FALSE)","v":"本多2"},null,null,36,{"$f":"VLOOKUP(AE23,市町村データ!A2:I106,MATCH(手順書_人口!$G$54, 市町村データ!A1:I1, 0),FALSE)","v":"本多1"},null,null,37,{"$f":"VLOOKUP(AI23,市町村データ!A2:I106,MATCH(手順書_人口!$G$54, 市町村データ!A1:I1, 0),FALSE)","v":"堀ノ内1"},null,null,38,{"$f":"VLOOKUP(AM23,市町村データ!A2:I106,MATCH(手順書_人口!$G$54, 市町村データ!A1:I1, 0),FALSE)","v":"馬場1"},null,null,39,{"$f":"VLOOKUP(AQ23,市町村データ!A2:I106,MATCH(手順書_人口!$G$54, 市町村データ!A1:I1, 0),FALSE)","v":"馬場2"},null,null,40,{"$f":"VLOOKUP(AU23,市町村データ!A2:I106,MATCH(手順書_人口!$G$54, 市町村データ!A1:I1, 0),FALSE)","v":"新塚1"},null,null,41,{"$f":"VLOOKUP(AY23,市町村データ!A2:I106,MATCH(手順書_人口!$G$54, 市町村データ!A1:I1, 0),FALSE)","v":"新塚他の地域"}]
[null,null,null,null,null,null,null,null,null,null,null,null,null,null,{"$f":"VLOOKUP(O23,市町村データ!A2:I106,MATCH(手順書_人口!$F$55, 市町村データ!A1:I1, 0),FALSE)","v":51},null,null,null,{"$f":"VLOOKUP(S23,市町村データ!A2:I106,MATCH(手順書_人口!$F$55, 市町村データ!A1:I1, 0),FALSE)","v":8.6},null,null,null,{"$f":"VLOOKUP(W23,市町村データ!A2:I106,MATCH(手順書_人口!$F$55, 市町村データ!A1:I1, 0),FALSE)","v":7.9},null,null,null,{"$f":"VLOOKUP(AA23,市町村データ!A2:I106,MATCH(手順書_人口!$F$55, 市町村データ!A1:I1, 0),FALSE)","v":1.4},null,null,null,{"$f":"VLOOKUP(AE23,市町村データ!A2:I106,MATCH(手順書_人口!$F$55, 市町村データ!A1:I1, 0),FALSE)","v":22.8},null,null,null,{"$f":"VLOOKUP(AI23,市町村データ!A2:I106,MATCH(手順書_人口!$F$55, 市町村データ!A1:I1, 0),FALSE)","v":17.3},null,null,null,{"$f":"VLOOKUP(AM23,市町村データ!A2:I106,MATCH(手順書_人口!$F$55, 市町村データ!A1:I1, 0),FALSE)","v":33.799999999999997},null,null,null,{"$f":"VLOOKUP(AQ23,市町村データ!A2:I106,MATCH(手順書_人口!$F$55, 市町村データ!A1:I1, 0),FALSE)","v":84.4},null,null,null,{"$f":"VLOOKUP(AU23,市町村データ!A2:I106,MATCH(手順書_人口!$F$55, 市町村データ!A1:I1, 0),FALSE)","v":68.8},null,null,null,{"$f":"VLOOKUP(AY23,市町村データ!A2:I106,MATCH(手順書_人口!$F$55, 市町村データ!A1:I1, 0),FALSE)","v":0}]
[null,null,null,null,null,null,null,null,null,null,null,null,null,null,{"$f":"VLOOKUP(O23,市町村データ!A2:I106,MATCH(手順書_人口!$F$56, 市町村データ!A1:I1, 0),FALSE)","v":1214},null,null,null,{"$f":"VLOOKUP(S23,市町村データ!A2:I106,MATCH(手順書_人口!$F$56, 市町村データ!A1:I1, 0),FALSE)","v":137},null,null,null,{"$f":"VLOOKUP(W23,市町村データ!A2:I106,MATCH(手順書_人口!$F$56, 市町村データ!A1:I1, 0),FALSE)","v":125},null,null,null,{"$f":"VLOOKUP(AA23,市町村データ!A2:I106,MATCH(手順書_人口!$F$56, 市町村データ!A1:I1, 0),FALSE)","v":58},null,null,null,{"$f":"VLOOKUP(AE23,市町村データ!A2:I106,MATCH(手順書_人口!$F$56, 市町村データ!A1:I1, 0),FALSE)","v":1175},null,null,null,{"$f":"VLOOKUP(AI23,市町村データ!A2:I106,MATCH(手順書_人口!$F$56, 市町村データ!A1:I1, 0),FALSE)","v":480},null,null,null,{"$f":"VLOOKUP(AM23,市町村データ!A2:I106,MATCH(手順書_人口!$F$56, 市町村データ!A1:I1, 0),FALSE)","v":1342},null,null,null,{"$f":"VLOOKUP(AQ23,市町村データ!A2:I106,MATCH(手順書_人口!$F$56, 市町村データ!A1:I1, 0),FALSE)","v":1603},null,null,null,{"$f":"VLOOKUP(AU23,市町村データ!A2:I106,MATCH(手順書_人口!$F$56, 市町村データ!A1:I1, 0),FALSE)","v":1451},null,null,null,{"$f":"VLOOKUP(AY23,市町村データ!A2:I106,MATCH(手順書_人口!$F$56, 市町村データ!A1:I1, 0),FALSE)","v":0}]
[null,null,null,null,null,null,null,null,null,null,null,null,null,null,{"$f":"VLOOKUP(O23,市町村データ!A2:I106,MATCH(手順書_人口!$F$57, 市町村データ!A1:I1, 0),FALSE)","v":23.8},null,null,null,{"$f":"VLOOKUP(S23,市町村データ!A2:I106,MATCH(手順書_人口!$F$57, 市町村データ!A1:I1, 0),FALSE)","v":15.9},null,null,null,{"$f":"VLOOKUP(W23,市町村データ!A2:I106,MATCH(手順書_人口!$F$57, 市町村データ!A1:I1, 0),FALSE)","v":15.9},null,null,null,{"$f":"VLOOKUP(AA23,市町村データ!A2:I106,MATCH(手順書_人口!$F$57, 市町村データ!A1:I1, 0),FALSE)","v":41.6},null,null,null,{"$f":"VLOOKUP(AE23,市町村データ!A2:I106,MATCH(手順書_人口!$F$57, 市町村データ!A1:I1, 0),FALSE)","v":51.5},null,null,null,{"$f":"VLOOKUP(AI23,市町村データ!A2:I106,MATCH(手順書_人口!$F$57, 市町村データ!A1:I1, 0),FALSE)","v":27.7},null,null,null,{"$f":"VLOOKUP(AM23,市町村データ!A2:I106,MATCH(手順書_人口!$F$57, 市町村データ!A1:I1, 0),FALSE)","v":39.700000000000003},null,null,null,{"$f":"VLOOKUP(AQ23,市町村データ!A2:I106,MATCH(手順書_人口!$F$57, 市町村データ!A1:I1, 0),FALSE)","v":19},null,null,null,{"$f":"VLOOKUP(AU23,市町村データ!A2:I106,MATCH(手順書_人口!$F$57, 市町村データ!A1:I1, 0),FALSE)","v":21.1},null,null,null,{"$f":"VLOOKUP(AY23,市町村データ!A2:I106,MATCH(手順書_人口!$F$57, 市町村データ!A1:I1, 0),FALSE)","v":41.8}]
[null,null,"F",null,null,null,null,null,null,null,null,null,null,null,null,null,null,null,42,{"$f":"VLOOKUP(S27,市町村データ!A2:I106,MATCH(手順書_人口!$G$54, 市町村データ!A1:I1, 0),FALSE)","v":"西堀2"},null,null,43,{"$f":"VLOOKUP(W27,市町村データ!A2:I106,MATCH(手順書_人口!$G$54, 市町村データ!A1:I1, 0),FALSE)","v":"西堀1"},null,null,44,{"$f":"VLOOKUP(AA27,市町村データ!A2:I106,MATCH(手順書_人口!$G$54, 市町村データ!A1:I1, 0),FALSE)","v":"石神5"},null,null,45,{"$f":"VLOOKUP(AE27,市町村データ!A2:I106,MATCH(手順書_人口!$G$54, 市町村データ!A1:I1, 0),FALSE)","v":"堀ノ内3"},null,null,46,{"$f":"VLOOKUP(AI27,市町村データ!A2:I106,MATCH(手順書_人口!$G$54, 市町村データ!A1:I1, 0),FALSE)","v":"堀ノ内2"},null,null,47,{"$f":"VLOOKUP(AM27,市町村データ!A2:I106,MATCH(手順書_人口!$G$54, 市町村データ!A1:I1, 0),FALSE)","v":"馬場4"},null,null,48,{"$f":"VLOOKUP(AQ27,市町村データ!A2:I106,MATCH(手順書_人口!$G$54, 市町村データ!A1:I1, 0),FALSE)","v":"馬場3"},null,null,49,{"$f":"VLOOKUP(AU27,市町村データ!A2:I106,MATCH(手順書_人口!$G$54, 市町村データ!A1:I1, 0),FALSE)","v":"栄1"},null,null,50,{"$f":"VLOOKUP(AY27,市町村データ!A2:I106,MATCH(手順書_人口!$G$54, 市町村データ!A1:I1, 0),FALSE)","v":"栄2"},null,null,51,{"$f":"VLOOKUP(BC27,市町村データ!A2:I106,MATCH(手順書_人口!$G$54, 市町村データ!A1:I1, 0),FALSE)","v":"栄3"},null,null,52,{"$f":"VLOOKUP(BG27,市町村データ!A2:I106,MATCH(手順書_人口!$G$54, 市町村データ!A1:I1, 0),FALSE)","v":"栄4"},null,null,53,{"$f":"VLOOKUP(BK27,市町村データ!A2:I106,MATCH(手順書_人口!$G$54, 市町村データ!A1:I1, 0),FALSE)","v":"栄5"}]
[null,null,null,null,null,null,null,null,null,null,null,null,null,null,null,null,null,null,{"$f":"VLOOKUP(S27,市町村データ!A2:I106,MATCH(手順書_人口!$F$55, 市町村データ!A1:I1, 0),FALSE)","v":109.8},null,null,null,{"$f":"VLOOKUP(W27,市町村データ!A2:I106,MATCH(手順書_人口!$F$55, 市町村データ!A1:I1, 0),FALSE)","v":88.8},null,null,null,{"$f":"VLOOKUP(AA27,市町村データ!A2:I106,MATCH(手順書_人口!$F$55, 市町村データ!A1:I1, 0),FALSE)","v":169.4},null,null,null,{"$f":"VLOOKUP(AE27,市町村データ!A2:I106,MATCH(手順書_人口!$F$55, 市町村データ!A1:I1, 0),FALSE)","v":9.1999999999999993},null,null,null,{"$f":"VLOOKUP(AI27,市町村データ!A2:I106,MATCH(手順書_人口!$F$55, 市町村データ!A1:I1, 0),FALSE)","v":40.9},null,null,null,{"$f":"VLOOKUP(AM27,市町村データ!A2:I106,MATCH(手順書_人口!$F$55, 市町村データ!A1:I1, 0),FALSE)","v":35.200000000000003},null,null,null,{"$f":"VLOOKUP(AQ27,市町村データ!A2:I106,MATCH(手順書_人口!$F$55, 市町村データ!A1:I1, 0),FALSE)","v":53.3},null,null,null,{"$f":"VLOOKUP(AU27,市町村データ!A2:I106,MATCH(手順書_人口!$F$55, 市町村データ!A1:I1, 0),FALSE)","v":84.9},null,null,null,{"$f":"VLOOKUP(AY27,市町村データ!A2:I106,MATCH(手順書_人口!$F$55, 市町村データ!A1:I1, 0),FALSE)","v":148.6},null,null,null,{"$f":"VLOOKUP(BC27,市町村データ!A2:I106,MATCH(手順書_人口!$F$55, 市町村データ!A1:I1, 0),FALSE)","v":141.5},null,null,null,{"$f":"VLOOKUP(BG27,市町村データ!A2:I106,MATCH(手順書_人口!$F$55, 市町村データ!A1:I1, 0),FALSE)","v":135.9},null,null,null,{"$f":"VLOOKUP(BK27,市町村データ!A2:I106,MATCH(手順書_人口!$F$55, 市町村データ!A1:I1, 0),FALSE)","v":160.69999999999999}]
[null,null,null,null,null,null,null,null,null,null,null,null,null,null,null,null,null,null,{"$f":"VLOOKUP(S27,市町村データ!A2:I106,MATCH(手順書_人口!$F$56, 市町村データ!A1:I1, 0),FALSE)","v":4393},null,null,null,{"$f":"VLOOKUP(W27,市町村データ!A2:I106,MATCH(手順書_人口!$F$56, 市町村データ!A1:I1, 0),FALSE)","v":1864},null,null,null,{"$f":"VLOOKUP(AA27,市町村データ!A2:I106,MATCH(手順書_人口!$F$56, 市町村データ!A1:I1, 0),FALSE)","v":2033},null,null,null,{"$f":"VLOOKUP(AE27,市町村データ!A2:I106,MATCH(手順書_人口!$F$56, 市町村データ!A1:I1, 0),FALSE)","v":291},null,null,null,{"$f":"VLOOKUP(AI27,市町村データ!A2:I106,MATCH(手順書_人口!$F$56, 市町村データ!A1:I1, 0),FALSE)","v":768},null,null,null,{"$f":"VLOOKUP(AM27,市町村データ!A2:I106,MATCH(手順書_人口!$F$56, 市町村データ!A1:I1, 0),FALSE)","v":1446},null,null,null,{"$f":"VLOOKUP(AQ27,市町村データ!A2:I106,MATCH(手順書_人口!$F$56, 市町村データ!A1:I1, 0),FALSE)","v":1390},null,null,null,{"$f":"VLOOKUP(AU27,市町村データ!A2:I106,MATCH(手順書_人口!$F$56, 市町村データ!A1:I1, 0),FALSE)","v":849},null,null,null,{"$f":"VLOOKUP(AY27,市町村データ!A2:I106,MATCH(手順書_人口!$F$56, 市町村データ!A1:I1, 0),FALSE)","v":2229},null,null,null,{"$f":"VLOOKUP(BC27,市町村データ!A2:I106,MATCH(手順書_人口!$F$56, 市町村データ!A1:I1, 0),FALSE)","v":1839},null,null,null,{"$f":"VLOOKUP(BG27,市町村データ!A2:I106,MATCH(手順書_人口!$F$56, 市町村データ!A1:I1, 0),FALSE)","v":1835},null,null,null,{"$f":"VLOOKUP(BK27,市町村データ!A2:I106,MATCH(手順書_人口!$F$56, 市町村データ!A1:I1, 0),FALSE)","v":2651}]
[null,null,null,null,null,null,null,null,null,null,null,null,null,null,null,null,null,null,{"$f":"VLOOKUP(S27,市町村データ!A2:I106,MATCH(手順書_人口!$F$57, 市町村データ!A1:I1, 0),FALSE)","v":40},null,null,null,{"$f":"VLOOKUP(W27,市町村データ!A2:I106,MATCH(手順書_人口!$F$57, 市町村データ!A1:I1, 0),FALSE)","v":21},null,null,null,{"$f":"VLOOKUP(AA27,市町村データ!A2:I106,MATCH(手順書_人口!$F$57, 市町村データ!A1:I1, 0),FALSE)","v":12},null,null,null,{"$f":"VLOOKUP(AE27,市町村データ!A2:I106,MATCH(手順書_人口!$F$57, 市町村データ!A1:I1, 0),FALSE)","v":31.7},null,null,null,{"$f":"VLOOKUP(AI27,市町村データ!A2:I106,MATCH(手順書_人口!$F$57, 市町村データ!A1:I1, 0),FALSE)","v":18.8},null,null,null,{"$f":"VLOOKUP(AM27,市町村データ!A2:I106,MATCH(手順書_人口!$F$57, 市町村データ!A1:I1, 0),FALSE)","v":41.1},null,null,null,{"$f":"VLOOKUP(AQ27,市町村データ!A2:I106,MATCH(手順書_人口!$F$57, 市町村データ!A1:I1, 0),FALSE)","v":26.1},null,null,null,{"$f":"VLOOKUP(AU27,市町村データ!A2:I106,MATCH(手順書_人口!$F$57, 市町村データ!A1:I1, 0),FALSE)","v":10},null,null,null,{"$f":"VLOOKUP(AY27,市町村データ!A2:I106,MATCH(手順書_人口!$F$57, 市町村データ!A1:I1, 0),FALSE)","v":15},null,null,null,{"$f":"VLOOKUP(BC27,市町村データ!A2:I106,MATCH(手順書_人口!$F$57, 市町村データ!A1:I1, 0),FALSE)","v":13},null,null,null,{"$f":"VLOOKUP(BG27,市町村データ!A2:I106,MATCH(手順書_人口!$F$57, 市町村データ!A1:I1, 0),FALSE)","v":13.5},null,null,null,{"$f":"VLOOKUP(BK27,市町村データ!A2:I106,MATCH(手順書_人口!$F$57, 市町村データ!A1:I1, 0),FALSE)","v":16.5}]
[null,null,"G",null,null,null,54,{"$f":"VLOOKUP(G31,市町村データ!A2:I106,MATCH(手順書_人口!$G$54, 市町村データ!A1:I1, 0),FALSE)","v":"新堀3"},null,null,55,{"$f":"VLOOKUP(K31,市町村データ!A2:I106,MATCH(手順書_人口!$G$54, 市町村データ!A1:I1, 0),FALSE)","v":"新堀2"},null,null,56,{"$f":"VLOOKUP(O31,市町村データ!A2:I106,MATCH(手順書_人口!$G$54, 市町村データ!A1:I1, 0),FALSE)","v":"新堀1"},null,null,57,{"$f":"VLOOKUP(S31,市町村データ!A2:I106,MATCH(手順書_人口!$G$54, 市町村データ!A1:I1, 0),FALSE)","v":"西堀3"},null,null,null,null,null,null,58,{"$f":"VLOOKUP(AA31,市町村データ!A2:I106,MATCH(手順書_人口!$G$54, 市町村データ!A1:I1, 0),FALSE)","v":"石神4"},null,null,59,{"$f":"VLOOKUP(AE31,市町村データ!A2:I106,MATCH(手順書_人口!$G$54, 市町村データ!A1:I1, 0),FALSE)","v":"石神1"},null,null,60,{"$f":"VLOOKUP(AI31,市町村データ!A2:I106,MATCH(手順書_人口!$G$54, 市町村データ!A1:I1, 0),FALSE)","v":"道場2"},null,null,61,{"$f":"VLOOKUP(AM31,市町村データ!A2:I106,MATCH(手順書_人口!$G$54, 市町村データ!A1:I1, 0),FALSE)","v":"道場1"},null,null,null,null,null,null,62,{"$f":"VLOOKUP(AU31,市町村データ!A2:I106,MATCH(手順書_人口!$G$54, 市町村データ!A1:I1, 0),FALSE)","v":"池田1"},null,null,63,{"$f":"VLOOKUP(AY31,市町村データ!A2:I106,MATCH(手順書_人口!$G$54, 市町村データ!A1:I1, 0),FALSE)","v":"池田2"},null,null,64,{"$f":"VLOOKUP(BC31,市町村データ!A2:I106,MATCH(手順書_人口!$G$54, 市町村データ!A1:I1, 0),FALSE)","v":"池田3"},null,null,65,{"$f":"VLOOKUP(BG31,市町村データ!A2:I106,MATCH(手順書_人口!$G$54, 市町村データ!A1:I1, 0),FALSE)","v":"池田4"},null,null,66,{"$f":"VLOOKUP(BK31,市町村データ!A2:I106,MATCH(手順書_人口!$G$54, 市町村データ!A1:I1, 0),FALSE)","v":"池田5"}]
[null,null,null,null,null,null,{"$f":"VLOOKUP(G31,市町村データ!A2:I106,MATCH(手順書_人口!$F$55, 市町村データ!A1:I1, 0),FALSE)","v":158.69999999999999},null,null,null,{"$f":"VLOOKUP(K31,市町村データ!A2:I106,MATCH(手順書_人口!$F$55, 市町村データ!A1:I1, 0),FALSE)","v":133},null,null,null,{"$f":"VLOOKUP(O31,市町村データ!A2:I106,MATCH(手順書_人口!$F$55, 市町村データ!A1:I1, 0),FALSE)","v":118.2},null,null,null,{"$f":"VLOOKUP(S31,市町村データ!A2:I106,MATCH(手順書_人口!$F$55, 市町村データ!A1:I1, 0),FALSE)","v":2.7},null,null,null,null,null,null,null,{"$f":"VLOOKUP(AA31,市町村データ!A2:I106,MATCH(手順書_人口!$F$55, 市町村データ!A1:I1, 0),FALSE)","v":93.7},null,null,null,{"$f":"VLOOKUP(AE31,市町村データ!A2:I106,MATCH(手順書_人口!$F$55, 市町村データ!A1:I1, 0),FALSE)","v":81.8},null,null,null,{"$f":"VLOOKUP(AI31,市町村データ!A2:I106,MATCH(手順書_人口!$F$55, 市町村データ!A1:I1, 0),FALSE)","v":22.9},null,null,null,{"$f":"VLOOKUP(AM31,市町村データ!A2:I106,MATCH(手順書_人口!$F$55, 市町村データ!A1:I1, 0),FALSE)","v":61},null,null,null,null,null,null,null,{"$f":"VLOOKUP(AU31,市町村データ!A2:I106,MATCH(手順書_人口!$F$55, 市町村データ!A1:I1, 0),FALSE)","v":1.2},null,null,null,{"$f":"VLOOKUP(AY31,市町村データ!A2:I106,MATCH(手順書_人口!$F$55, 市町村データ!A1:I1, 0),FALSE)","v":19},null,null,null,{"$f":"VLOOKUP(BC31,市町村データ!A2:I106,MATCH(手順書_人口!$F$55, 市町村データ!A1:I1, 0),FALSE)","v":49.9},null,null,null,{"$f":"VLOOKUP(BG31,市町村データ!A2:I106,MATCH(手順書_人口!$F$55, 市町村データ!A1:I1, 0),FALSE)","v":83.2},null,null,null,{"$f":"VLOOKUP(BK31,市町村データ!A2:I106,MATCH(手順書_人口!$F$55, 市町村データ!A1:I1, 0),FALSE)","v":147.30000000000001}]
[null,null,null,null,null,null,{"$f":"VLOOKUP(G31,市町村データ!A2:I106,MATCH(手順書_人口!$F$56, 市町村データ!A1:I1, 0),FALSE)","v":3173},null,null,null,{"$f":"VLOOKUP(K31,市町村データ!A2:I106,MATCH(手順書_人口!$F$56, 市町村データ!A1:I1, 0),FALSE)","v":3856},null,null,null,{"$f":"VLOOKUP(O31,市町村データ!A2:I106,MATCH(手順書_人口!$F$56, 市町村データ!A1:I1, 0),FALSE)","v":3429},null,null,null,{"$f":"VLOOKUP(S31,市町村データ!A2:I106,MATCH(手順書_人口!$F$56, 市町村データ!A1:I1, 0),FALSE)","v":119},null,null,null,null,null,null,null,{"$f":"VLOOKUP(AA31,市町村データ!A2:I106,MATCH(手順書_人口!$F$56, 市町村データ!A1:I1, 0),FALSE)","v":1686},null,null,null,{"$f":"VLOOKUP(AE31,市町村データ!A2:I106,MATCH(手順書_人口!$F$56, 市町村データ!A1:I1, 0),FALSE)","v":1529},null,null,null,{"$f":"VLOOKUP(AI31,市町村データ!A2:I106,MATCH(手順書_人口!$F$56, 市町村データ!A1:I1, 0),FALSE)","v":591},null,null,null,{"$f":"VLOOKUP(AM31,市町村データ!A2:I106,MATCH(手順書_人口!$F$56, 市町村データ!A1:I1, 0),FALSE)","v":1024},null,null,null,null,null,null,null,{"$f":"VLOOKUP(AU31,市町村データ!A2:I106,MATCH(手順書_人口!$F$56, 市町村データ!A1:I1, 0),FALSE)","v":12},null,null,null,{"$f":"VLOOKUP(AY31,市町村データ!A2:I106,MATCH(手順書_人口!$F$56, 市町村データ!A1:I1, 0),FALSE)","v":226},null,null,null,{"$f":"VLOOKUP(BC31,市町村データ!A2:I106,MATCH(手順書_人口!$F$56, 市町村データ!A1:I1, 0),FALSE)","v":599},null,null,null,{"$f":"VLOOKUP(BG31,市町村データ!A2:I106,MATCH(手順書_人口!$F$56, 市町村データ!A1:I1, 0),FALSE)","v":1123},null,null,null,{"$f":"VLOOKUP(BK31,市町村データ!A2:I106,MATCH(手順書_人口!$F$56, 市町村データ!A1:I1, 0),FALSE)","v":1178}]
[null,null,null,null,null,null,{"$f":"VLOOKUP(G31,市町村データ!A2:I106,MATCH(手順書_人口!$F$57, 市町村データ!A1:I1, 0),FALSE)","v":20},null,null,null,{"$f":"VLOOKUP(K31,市町村データ!A2:I106,MATCH(手順書_人口!$F$57, 市町村データ!A1:I1, 0),FALSE)","v":29},null,null,null,{"$f":"VLOOKUP(O31,市町村データ!A2:I106,MATCH(手順書_人口!$F$57, 市町村データ!A1:I1, 0),FALSE)","v":29},null,null,null,{"$f":"VLOOKUP(S31,市町村データ!A2:I106,MATCH(手順書_人口!$F$57, 市町村データ!A1:I1, 0),FALSE)","v":43.6},null,null,null,null,null,null,null,{"$f":"VLOOKUP(AA31,市町村データ!A2:I106,MATCH(手順書_人口!$F$57, 市町村データ!A1:I1, 0),FALSE)","v":18},null,null,null,{"$f":"VLOOKUP(AE31,市町村データ!A2:I106,MATCH(手順書_人口!$F$57, 市町村データ!A1:I1, 0),FALSE)","v":18.7},null,null,null,{"$f":"VLOOKUP(AI31,市町村データ!A2:I106,MATCH(手順書_人口!$F$57, 市町村データ!A1:I1, 0),FALSE)","v":25.8},null,null,null,{"$f":"VLOOKUP(AM31,市町村データ!A2:I106,MATCH(手順書_人口!$F$57, 市町村データ!A1:I1, 0),FALSE)","v":16.8},null,null,null,null,null,null,null,{"$f":"VLOOKUP(AU31,市町村データ!A2:I106,MATCH(手順書_人口!$F$57, 市町村データ!A1:I1, 0),FALSE)","v":9.9},null,null,null,{"$f":"VLOOKUP(AY31,市町村データ!A2:I106,MATCH(手順書_人口!$F$57, 市町村データ!A1:I1, 0),FALSE)","v":11.9},null,null,null,{"$f":"VLOOKUP(BC31,市町村データ!A2:I106,MATCH(手順書_人口!$F$57, 市町村データ!A1:I1, 0),FALSE)","v":12},null,null,null,{"$f":"VLOOKUP(BG31,市町村データ!A2:I106,MATCH(手順書_人口!$F$57, 市町村データ!A1:I1, 0),FALSE)","v":13.5},null,null,null,{"$f":"VLOOKUP(BK31,市町村データ!A2:I106,MATCH(手順書_人口!$F$57, 市町村データ!A1:I1, 0),FALSE)","v":8}]
[null,null,"H",null,null,null,null,null,null,null,null,null,null,null,null,null,null,null,null,null,null,null,null,null,null,null,67,{"$f":"VLOOKUP(AA35,市町村データ!A2:I106,MATCH(手順書_人口!$G$54, 市町村データ!A1:I1, 0),FALSE)","v":"石神3"},null,null,68,{"$f":"VLOOKUP(AE35,市町村データ!A2:I106,MATCH(手順書_人口!$G$54, 市町村データ!A1:I1, 0),FALSE)","v":"石神2"},null,null,null,null,null,null,null,null,null,null,null,null,null,null,null,null,null,null,null,null,null,null,69,{"$f":"VLOOKUP(BC35,市町村データ!A2:I106,MATCH(手順書_人口!$G$54, 市町村データ!A1:I1, 0),FALSE)","v":"片山1"},null,null,70,{"$f":"VLOOKUP(BG35,市町村データ!A2:I106,MATCH(手順書_人口!$G$54, 市町村データ!A1:I1, 0),FALSE)","v":"片山2"},null,null,71,{"$f":"VLOOKUP(BK35,市町村データ!A2:I106,MATCH(手順書_人口!$G$54, 市町村データ!A1:I1, 0),FALSE)","v":"片山3"}]
[null,null,null,null,null,null,null,null,null,null,null,null,null,null,null,null,null,null,null,null,null,null,null,null,null,null,{"$f":"VLOOKUP(AA35,市町村データ!A2:I106,MATCH(手順書_人口!$F$55, 市町村データ!A1:I1, 0),FALSE)","v":158.30000000000001},null,null,null,{"$f":"VLOOKUP(AE35,市町村データ!A2:I106,MATCH(手順書_人口!$F$55, 市町村データ!A1:I1, 0),FALSE)","v":122.2},null,null,null,null,null,null,null,null,null,null,null,null,null,null,null,null,null,null,null,null,null,null,null,{"$f":"VLOOKUP(BC35,市町村データ!A2:I106,MATCH(手順書_人口!$F$55, 市町村データ!A1:I1, 0),FALSE)","v":102.8},null,null,null,{"$f":"VLOOKUP(BG35,市町村データ!A2:I106,MATCH(手順書_人口!$F$55, 市町村データ!A1:I1, 0),FALSE)","v":73.7},null,null,null,{"$f":"VLOOKUP(BK35,市町村データ!A2:I106,MATCH(手順書_人口!$F$55, 市町村データ!A1:I1, 0),FALSE)","v":119.3}]
[null,null,null,null,null,null,null,null,null,null,null,null,null,null,null,null,null,null,null,null,null,null,null,null,null,null,{"$f":"VLOOKUP(AA35,市町村データ!A2:I106,MATCH(手順書_人口!$F$56, 市町村データ!A1:I1, 0),FALSE)","v":2169},null,null,null,{"$f":"VLOOKUP(AE35,市町村データ!A2:I106,MATCH(手順書_人口!$F$56, 市町村データ!A1:I1, 0),FALSE)","v":1894},null,null,null,null,null,null,null,null,null,null,null,null,null,null,null,null,null,null,null,null,null,null,null,{"$f":"VLOOKUP(BC35,市町村データ!A2:I106,MATCH(手順書_人口!$F$56, 市町村データ!A1:I1, 0),FALSE)","v":2365},null,null,null,{"$f":"VLOOKUP(BG35,市町村データ!A2:I106,MATCH(手順書_人口!$F$56, 市町村データ!A1:I1, 0),FALSE)","v":1327},null,null,null,{"$f":"VLOOKUP(BK35,市町村データ!A2:I106,MATCH(手順書_人口!$F$56, 市町村データ!A1:I1, 0),FALSE)","v":3818}]
[null,null,null,null,null,null,null,null,null,null,null,null,null,null,null,null,null,null,null,null,null,null,null,null,null,null,{"$f":"VLOOKUP(AA35,市町村データ!A2:I106,MATCH(手順書_人口!$F$57, 市町村データ!A1:I1, 0),FALSE)","v":13.7},null,null,null,{"$f":"VLOOKUP(AE35,市町村データ!A2:I106,MATCH(手順書_人口!$F$57, 市町村データ!A1:I1, 0),FALSE)","v":15.5},null,null,null,null,null,null,null,null,null,null,null,null,null,null,null,null,null,null,null,null,null,null,null,{"$f":"VLOOKUP(BC35,市町村データ!A2:I106,MATCH(手順書_人口!$F$57, 市町村データ!A1:I1, 0),FALSE)","v":23},null,null,null,{"$f":"VLOOKUP(BG35,市町村データ!A2:I106,MATCH(手順書_人口!$F$57, 市町村データ!A1:I1, 0),FALSE)","v":18},null,null,null,{"$f":"VLOOKUP(BK35,市町村データ!A2:I106,MATCH(手順書_人口!$F$57, 市町村データ!A1:I1, 0),FALSE)","v":32}]
[null,null,"I",null,null,null,null,null,null,null,null,null,null,null,null,null,null,null,null,null,null,null,null,null,null,null,null,null,null,null,null,null,null,null,null,null,null,null,null,null,null,null,null,null,null,null,null,null,null,null,72,{"$f":"VLOOKUP(AY39,市町村データ!A2:I106,MATCH(手順書_人口!$G$54, 市町村データ!A1:I1, 0),FALSE)","v":"野寺1"},null,null,73,{"$f":"VLOOKUP(BC39,市町村データ!A2:I106,MATCH(手順書_人口!$G$54, 市町村データ!A1:I1, 0),FALSE)","v":"野寺2"},null,null,74,{"$f":"VLOOKUP(BG39,市町村データ!A2:I106,MATCH(手順書_人口!$G$54, 市町村データ!A1:I1, 0),FALSE)","v":"野寺3"},null,null,75,{"$f":"VLOOKUP(BK39,市町村データ!A2:I106,MATCH(手順書_人口!$G$54, 市町村データ!A1:I1, 0),FALSE)","v":"野寺4"},null,null,76,{"$f":"VLOOKUP(BO39,市町村データ!A2:I106,MATCH(手順書_人口!$G$54, 市町村データ!A1:I1, 0),FALSE)","v":"野寺5"}]
[null,null,null,null,null,null,null,null,null,null,null,null,null,null,null,null,null,null,null,null,null,null,null,null,null,null,null,null,null,null,null,null,null,null,null,null,null,null,null,null,null,null,null,null,null,null,null,null,null,null,{"$f":"VLOOKUP(AY39,市町村データ!A2:I106,MATCH(手順書_人口!$F$55, 市町村データ!A1:I1, 0),FALSE)","v":120.2},null,null,null,{"$f":"VLOOKUP(BC39,市町村データ!A2:I106,MATCH(手順書_人口!$F$55, 市町村データ!A1:I1, 0),FALSE)","v":91},null,null,null,{"$f":"VLOOKUP(BG39,市町村データ!A2:I106,MATCH(手順書_人口!$F$55, 市町村データ!A1:I1, 0),FALSE)","v":105.9},null,null,null,{"$f":"VLOOKUP(BK39,市町村データ!A2:I106,MATCH(手順書_人口!$F$55, 市町村データ!A1:I1, 0),FALSE)","v":128.5},null,null,null,{"$f":"VLOOKUP(BO39,市町村データ!A2:I106,MATCH(手順書_人口!$F$55, 市町村データ!A1:I1, 0),FALSE)","v":124.1}]
[null,null,null,null,null,null,null,null,null,null,null,null,null,null,null,null,null,null,null,null,null,null,null,null,null,null,null,null,null,null,null,null,null,null,null,null,null,null,null,null,null,null,null,null,null,null,null,null,null,null,{"$f":"VLOOKUP(AY39,市町村データ!A2:I106,MATCH(手順書_人口!$F$56, 市町村データ!A1:I1, 0),FALSE)","v":1322},null,null,null,{"$f":"VLOOKUP(BC39,市町村データ!A2:I106,MATCH(手順書_人口!$F$56, 市町村データ!A1:I1, 0),FALSE)","v":2411},null,null,null,{"$f":"VLOOKUP(BG39,市町村データ!A2:I106,MATCH(手順書_人口!$F$56, 市町村データ!A1:I1, 0),FALSE)","v":2246},null,null,null,{"$f":"VLOOKUP(BK39,市町村データ!A2:I106,MATCH(手順書_人口!$F$56, 市町村データ!A1:I1, 0),FALSE)","v":2570},null,null,null,{"$f":"VLOOKUP(BO39,市町村データ!A2:I106,MATCH(手順書_人口!$F$56, 市町村データ!A1:I1, 0),FALSE)","v":1303}]
[null,null,null,null,null,null,null,null,null,null,null,null,null,null,null,null,null,null,null,null,null,null,null,null,null,null,null,null,null,null,null,null,null,null,null,null,null,null,null,null,null,null,null,null,null,null,null,null,null,null,{"$f":"VLOOKUP(AY39,市町村データ!A2:I106,MATCH(手順書_人口!$F$57, 市町村データ!A1:I1, 0),FALSE)","v":11},null,null,null,{"$f":"VLOOKUP(BC39,市町村データ!A2:I106,MATCH(手順書_人口!$F$57, 市町村データ!A1:I1, 0),FALSE)","v":26.5},null,null,null,{"$f":"VLOOKUP(BG39,市町村データ!A2:I106,MATCH(手順書_人口!$F$57, 市町村データ!A1:I1, 0),FALSE)","v":21.2},null,null,null,{"$f":"VLOOKUP(BK39,市町村データ!A2:I106,MATCH(手順書_人口!$F$57, 市町村データ!A1:I1, 0),FALSE)","v":20},null,null,null,{"$f":"VLOOKUP(BO39,市町村データ!A2:I106,MATCH(手順書_人口!$F$57, 市町村データ!A1:I1, 0),FALSE)","v":10.5}]
[null,null,"J",null,null,null,null,null,null,null,null,null,null,null,null,null,null,null,null,null,null,null,null,null,null,null,null,null,null,null,null,null,null,null,null,null,null,null,null,null,null,null,null,null,null,null,null,null,null,null,77,{"$f":"VLOOKUP(AY43,市町村データ!A2:I106,MATCH(手順書_人口!$G$54, 市町村データ!A1:I1, 0),FALSE)","v":"栗原1"},null,null,78,{"$f":"VLOOKUP(BC43,市町村データ!A2:I106,MATCH(手順書_人口!$G$54, 市町村データ!A1:I1, 0),FALSE)","v":"栗原2"},null,null,79,{"$f":"VLOOKUP(BG43,市町村データ!A2:I106,MATCH(手順書_人口!$G$54, 市町村データ!A1:I1, 0),FALSE)","v":"栗原3"}]
[null,null,null,null,null,null,null,null,null,null,null,null,null,null,null,null,null,null,null,null,null,null,null,null,null,null,null,null,null,null,null,null,null,null,null,null,null,null,null,null,null,null,null,null,null,null,null,null,null,null,{"$f":"VLOOKUP(AY43,市町村データ!A2:I106,MATCH(手順書_人口!$F$55, 市町村データ!A1:I1, 0),FALSE)","v":153},null,null,null,{"$f":"VLOOKUP(BC43,市町村データ!A2:I106,MATCH(手順書_人口!$F$55, 市町村データ!A1:I1, 0),FALSE)","v":92},null,null,null,{"$f":"VLOOKUP(BG43,市町村データ!A2:I106,MATCH(手順書_人口!$F$55, 市町村データ!A1:I1, 0),FALSE)","v":137.4}]
[null,null,null,null,null,null,null,null,null,null,null,null,null,null,null,null,null,null,null,null,null,null,null,null,null,null,null,null,null,null,null,null,null,null,null,null,null,null,null,null,null,null,null,null,null,null,null,null,null,null,{"$f":"VLOOKUP(AY43,市町村データ!A2:I106,MATCH(手順書_人口!$F$56, 市町村データ!A1:I1, 0),FALSE)","v":3350},null,null,null,{"$f":"VLOOKUP(BC43,市町村データ!A2:I106,MATCH(手順書_人口!$F$56, 市町村データ!A1:I1, 0),FALSE)","v":920},null,null,null,{"$f":"VLOOKUP(BG43,市町村データ!A2:I106,MATCH(手順書_人口!$F$56, 市町村データ!A1:I1, 0),FALSE)","v":2061}]
[null,null,null,null,null,null,null,null,null,null,null,null,null,null,null,null,null,null,null,null,null,null,null,null,null,null,null,null,null,null,null,null,null,null,null,null,null,null,null,null,null,null,null,null,null,null,null,null,null,null,{"$f":"VLOOKUP(AY43,市町村データ!A2:I106,MATCH(手順書_人口!$F$57, 市町村データ!A1:I1, 0),FALSE)","v":21.9},null,null,null,{"$f":"VLOOKUP(BC43,市町村データ!A2:I106,MATCH(手順書_人口!$F$57, 市町村データ!A1:I1, 0),FALSE)","v":10},null,null,null,{"$f":"VLOOKUP(BG43,市町村データ!A2:I106,MATCH(手順書_人口!$F$57, 市町村データ!A1:I1, 0),FALSE)","v":15}]
[null,null,"K",null,null,null,null,null,null,null,null,null,null,null,null,null,null,null,null,null,null,null,null,null,null,null,null,null,null,null,null,null,null,null,null,null,null,null,null,null,null,null,null,null,null,null,null,null,null,null,80,{"$f":"VLOOKUP(AY47,市町村データ!A2:I106,MATCH(手順書_人口!$G$54, 市町村データ!A1:I1, 0),FALSE)","v":"栗原6"},null,null,81,{"$f":"VLOOKUP(BC47,市町村データ!A2:I106,MATCH(手順書_人口!$G$54, 市町村データ!A1:I1, 0),FALSE)","v":"栗原5"},null,null,82,{"$f":"VLOOKUP(BG47,市町村データ!A2:I106,MATCH(手順書_人口!$G$54, 市町村データ!A1:I1, 0),FALSE)","v":"栗原4"}]
[null,null,null,null,null,null,null,null,null,null,null,null,null,null,null,null,null,null,null,null,null,null,null,null,null,null,null,null,null,null,null,null,null,null,null,null,null,null,null,null,null,null,null,null,null,null,null,null,null,null,{"$f":"VLOOKUP(AY47,市町村データ!A2:I106,MATCH(手順書_人口!$F$55, 市町村データ!A1:I1, 0),FALSE)","v":185.2},null,null,null,{"$f":"VLOOKUP(BC47,市町村データ!A2:I106,MATCH(手順書_人口!$F$55, 市町村データ!A1:I1, 0),FALSE)","v":183.5},null,null,null,{"$f":"VLOOKUP(BG47,市町村データ!A2:I106,MATCH(手順書_人口!$F$55, 市町村データ!A1:I1, 0),FALSE)","v":156.6}]
[null,null,null,null,null,null,null,null,null,null,null,null,null,null,null,null,null,null,null,null,null,null,null,null,null,null,null,null,null,null,null,null,null,null,null,null,null,null,null,null,null,null,null,null,null,null,null,null,null,null,{"$f":"VLOOKUP(AY47,市町村データ!A2:I106,MATCH(手順書_人口!$F$56, 市町村データ!A1:I1, 0),FALSE)","v":2593},null,null,null,{"$f":"VLOOKUP(BC47,市町村データ!A2:I106,MATCH(手順書_人口!$F$56, 市町村データ!A1:I1, 0),FALSE)","v":2661},null,null,null,{"$f":"VLOOKUP(BG47,市町村データ!A2:I106,MATCH(手順書_人口!$F$56, 市町村データ!A1:I1, 0),FALSE)","v":2036}]
[null,null,null,null,null,null,null,null,null,null,null,null,null,null,null,null,null,null,null,null,null,null,null,null,null,null,null,null,null,null,null,null,null,null,null,null,null,null,null,null,null,null,null,null,null,null,null,null,null,null,{"$f":"VLOOKUP(AY47,市町村データ!A2:I106,MATCH(手順書_人口!$F$57, 市町村データ!A1:I1, 0),FALSE)","v":14},null,null,null,{"$f":"VLOOKUP(BC47,市町村データ!A2:I106,MATCH(手順書_人口!$F$57, 市町村データ!A1:I1, 0),FALSE)","v":14.5},null,null,null,{"$f":"VLOOKUP(BG47,市町村データ!A2:I106,MATCH(手順書_人口!$F$57, 市町村データ!A1:I1, 0),FALSE)","v":13}]
[null,"［国勢調査］＞［令和２年国勢調査（総務省統計局）　都道府県・市区町村別の主な結果］"]
[null,"https://www.e-stat.go.jp/stat-search/files?page=1&layout=datalist&toukei=00200521&tstat=000001049104&cycle=0&tclass1=000001049105&tclass2val=0"]